Workbook

Sheet Lod&Liq
A1: Table 4. Local Selective Sales & Use Tax
A2: CY 2024
A3: DOR Administered: For monthly collections (2004 through December 2024), double click on links.1
A4: Locally Administered: For annual collections (2006 through 2024), double click on link.
A5: City | B5: Lodging2 | C5: Liquor | D5: Food & Beverage | E5: Entertainment | F5: Vehicle Excise | G5: Total
A6: DOR administered | B6: This cell is intentionally left blank | C6: This cell is intentionally left blank | D6: This cell is intentionally left blank | E6: This cell is intentionally left blank | F6: This cell is intentionally left blank | G6: This cell is intentionally left blank
A7: Detroit Lakes | B7: - | C7: - | D7: ='Detroit Lakes'!$V$17 -> 553094 | E7: - | F7: - | G7: =SUM(B7:F7) -> 553094
A8: Giants Ridge | B8: ='Giants Ridge'!$V$32 -> 81424 | C8: - | D8: ='Giants Ridge'!$V$17 -> 29504 | E8: ='Giants Ridge'!$V$47 -> 104261 | F8: - | G8: =SUM(B8:F8) -> 215189
A9: Lake of the Woods | B9: ='Lake of the Woods'!$V$17 -> 463939 | C9: - | D9: - | E9: - | F9: - | G9: =SUM(B9:F9) -> 463939
A10: Mankato | B10: - | C10: - | D10: =Mankato!$V$32 -> 898955.26 | E10: =Mankato!$V$17 -> 45895 | F10: - | G10: =SUM(B10:F10) -> 944850.26
A11: Marshall | B11: - | C11: - | D11: =Marshall!$V$17 -> 699166 | E11: - | F11: - | G11: =SUM(B11:F11) -> 699166
A12: Minneapolis | B12: =Minneapolis!$V$47 -> 11728208 | C12: =Minneapolis!$V$17 -> 6002879 | D12: =Minneapolis!$V$62 -> 14061560.31 | E12: =Minneapolis!$V$32 -> 29359293.36 | F12: - | G12: =SUM(B12:F12) -> 61151940.67
A13: North Mankato | B13: - | C13: - | D13: ='North Mankato'!$V$17 -> 103095.87 | E13: - | F13: - | G13: =SUM(B13:F13) -> 103095.87
A14: Ortonville | B14: =Ortonville!V20 -> 20865 | G14: =SUM(B14:F14) -> 20865
A15: Proctor | B15: - | C15: - | D15: =Proctor!$V$17 -> 79151.49 | E15: - | F15: - | G15: =SUM(B15:F15) -> 79151.49
A16: Plymouth | B16: =Plymouth!V17 -> 243932 | G16: =SUM(B16:F16) -> 243932
A17: Rogers | B17: - | C17: - | D17: - | E17: - | F17: =Rogers!$V$17 -> 65260 | G17: =SUM(B17:F17) -> 65260
A18: Rochester | B18: =Rochester!$V$17 -> 10945115 | C18: - | D18: - | E18: - | F18: - | G18: 10945115
A19: Sauk Centre | B19: - | C19: - | D19: - | E19: - | F19: ='Sauk Centre'!$V$17 -> 24640 | G19: 24640
A20: St. Cloud | B20: - | C20: ='St. Cloud'!$V$17 -> 191770 | D20: ='St. Cloud'!$V$32 -> 1606185.03 | E20: - | F20: - | G20: 1797955.03
A21: St. Paul | B21: ='St. Paul'!$V$17+'St. Paul'!$V$32 -> 5587662 | C21: - | D21: - | E21: - | F21: - | G21: =SUM(B21:F21) -> 5587662
A22: Two Harbors | B22: ='Two Harbors'!$V$17 -> 92156 | C22: - | D22: - | E22: - | F22: - | G22: =SUM(B22:F22) -> 92156
A23: Willmar | B23: - | C23: - | D23: - | E23: - | F23: =Willmar!$V$17 -> 57480 | G23: =SUM(B23:F23) -> 57480
A24: Locally Administered | B24: This cell is intentionally left blank | C24: This cell is intentionally left blank | D24: This cell is intentionally left blank | E24: This cell is intentionally left blank | F24: This cell is intentionally left blank | G24: This cell is intentionally left blank
A25: Baxter | B25: - | C25: - | D25: - | E25: - | F25: ='Locally Administered'!$T$25 -> 97684 | G25: 97684
A26: Bloomington | B26: ='Locally Administered'!$T$5 -> 19912057.89 | C26: ='Locally Administered'!$T$15 -> 1866101.15 | D26: - | E26: ='Locally Administered'!$T$22 -> 2246847.59 | F26: - | G26: 24025006.63
A27: Brainerd | B27: - | C27: - | D27: - | E27: - | F27: 29271.82 | G27: 29271.82
A28: Brooklyn Center* | B28: ='Locally Administered'!$T$6 -> 459045 | C28: - | D28: - | E28: - | F28: - | G28: 459045
A29: Clearwater | B29: - | C29: - | D29: - | E29: - | F29: ='Locally Administered'!$T$27 -> 5180 | G29: =SUM(B29:F29) -> 5180
A30: Duluth | B30: ='Locally Administered'!$T$8 -> 7958497.17 | C30: - | D30: ='Locally Administered'!$T$18 -> 6848155.09 | E30: - | F30: - | G30: 14806652.26
A31: Hutchinson | B31: - | C31: - | D31: - | E31: - | F31: ='Locally Administered'!$T$28 -> 25242 | G31: 25242
A32: Little Falls | B32: - | C32: - | D32: 143475.57 | E32: - | F32: - | G32: 143475.57
A33: Mankato | B33: - | C33: - | D33: - | E33: - | F33: ='Locally Administered'!$T$29 -> 207680 | G33: =SUM(B33:F33) -> 207680
A34: New Ulm | B34: - | C34: - | D34: - | E34: - | F34: ='Locally Administered'!$T$30 -> 53233.26 | G34: 53233.26
A35: Proctor | B35: ='Locally Administered'!$T$9 -> 165891.59 | C35: - | D35: - | E35: - | F35: - | G35: 165891.59
A36: Rochester | B36: - | C36: - | D36: - | E36: - | F36: ='Locally Administered'!$T$31 -> 428280 | G36: =SUM(B36:F36) -> 428280
A37: St. Cloud | B37: ='Locally Administered'!$T$10 -> 1680573 | C37: - | D37: - | E37: - | F37: - | G37: =SUM(B37:F37) -> 1680573
A38: Two Harbors** | B38: - | C38: - | D38: - | E38: - | F38: - | G38: 0
A39: Winona | B39: ='Locally Administered'!$T$12 -> 123706.87 | C39: - | D39: - | E39: - | F39: - | G39: =SUM(B39:F39) -> 123706.87
A40: Worthington | B40: - | C40: - | D40: - | E40: - | F40: ='Locally Administered'!$Q$32 -> - | G40: =SUM(B40:F40) -> 0
A41: City Total | B41: =SUM(B7:B40) -> 59463072.52 | C41: =SUM(C7:C40) -> 8060750.15 | D41: 25022342.62 | E41: 31756296.95 | F41: 993951.08 | G41: =SUM(G7:G40) -> 125296413.3
A42: County | B42: Lodging2 | C42: Liquor | D42: Food & Beverage | E42: Entertainment | F42: Vehicle Excise | G42: Total
A43: DOR administered | B43: This cell is intentionally left blank | C43: This cell is intentionally left blank | D43: This cell is intentionally left blank | E43: This cell is intentionally left blank | F43: This cell is intentionally left blank | G43: This cell is intentionally left blank
A44: Anoka | B44: - | C44: - | D44: - | E44: - | F44: =Anoka!$V$17 -> 952818.49 | G44: =SUM(B44:F44) -> 952818.49
A45: Beltrami | B45: - | C45: - | D45: - | E45: - | F45: =Beltrami!$V$17 -> 60900 | G45: 60900
A46: Carver | B46: - | C46: - | D46: - | E46: - | F46: =Carver!$V$17 -> 42240 | G46: 42240
A47: Carlton | B47: - | C47: - | D47: - | E47: - | F47: =Carlton!$V$17 -> 27960 | G47: 27960
A48: Dakota | B48: - | C48: - | D48: - | E48: - | F48: =Dakota!$V$17 -> 1400940 | G48: 1400940
A49: Goodhue | B49: - | C49: - | D49: - | E49: - | F49: =Goodhue!$V$17 -> 107640 | G49: 107640
A50: Hennepin | B50: - | C50: - | D50: - | E50: - | F50: =Hennepin!$V$17 -> 2595338.49 | G50: 2595338.49
A51: Kandiyohi | B51: - | C51: - | D51: - | E51: - | F51: =Kandiyohi!$V$17 -> 67900 | G51: 67900
A52: Lake | B52: =Lake!$V$17 -> 1647414 | C52: - | D52: - | E52: - | F52: - | G52: =SUM(B52:F52) -> 1647414
A53: Otter Tail | B53: - | C53: - | D53: - | E53: - | F53: ='Otter Tail'!$V$17 -> 98420 | G53: =SUM(B53:F53) -> 98420
A54: Ramsey | B54: - | C54: - | D54: - | E54: - | F54: =Ramsey!$V$17 -> 1159660 | G54: 1159660
A55: Scott | B55: - | C55: - | D55: - | E55: - | F55: =Scott!$V$17 -> 258220 | G55: 258220
A56: St. Louis | B56: - | C56: - | D56: - | E56: - | F56: ='St. Louis'!$V$17 -> 341780 | G56: 341780
A57: Washington | B57: - | C57: - | D57: - | E57: - | F57: =Washington!$V$17 -> 313220 | G57: 313220
A58: Locally Administered | B58: This cell is intentionally left blank | C58: This cell is intentionally left blank | D58: This cell is intentionally left blank | E58: This cell is intentionally left blank | F58: This cell is intentionally left blank | G58: This cell is intentionally left blank
A59: Cook County | B59: ='[1]Locally Administered'!$U$7 -> 0 | C59: - | D59: - | E59: - | F59: - | G59: =SUM(B59:F59) -> 0
A60: County Total | B60: =SUM(B43:B59) -> 1647414 | C60: =SUM(C43:C59) -> 0 | D60: =SUM(D43:D59) -> 0 | E60: =SUM(E43:E59) -> 0 | F60: =SUM(F43:F59) -> 7427036.98 | G60: =SUM(G44:G59) -> 9074450.98
A61: Metro Area Transit | B61: - | C61: - | D61: - | E61: - | F61: ='Metro Area Transit'!$U$17 -> -1000 | G61: =SUM(B61:F61) -> -1000
A62: All Subdivisions Total*** | B62: =+B41+B60 -> 61110486.52 | C62: =+C41+C60 -> 8060750.15 | D62: =+D41+D60 -> 25022342.62 | E62: =+E41+E60 -> 31756296.95 | F62: =+F41+F60+F61 -> 8419988.06 | G62: =+G41+G61+G60 -> 134369864.3
A63: 1Monthly collection data provided only for taxes administered by the Department of Revenue.
A64: 2Local lodging taxes are included in this table only if they are authorized under special law. For lodging, a city or town may also
A65: impose a tax of up to 3% under a general authorization provided in Minnesota Statutes, Section 469.190 for a local convention
A66: or tourism bureau. About 120 cities and towns levy lodging taxes under this general authorization that are not included here.
A67: Note: Metro Area Transit Tax includes Anoka, Dakota, Hennepin, Ramsey, & Washington Counties.
A68: *
A69: **The Minnesota Department of Revenue took over Two Harbors Local Lodging Tax administration on October 1, 2020. Figures for before and after this administration change are under Locally Administered & DOR Administered respectively.
A70: ***Note that the "through June" versions of this workbook will be quite skewed along this row because locally administed is only added yearly
A71: Source: Minnesota Department of Revenue, Tax Research Division, November 2025
A72: end of worksheet

Sheet Plymouth (hidden)
A1: Plymouth Monthly Detail for Minnesota Local Sales & Use Tax
A2: ='Lod&Liq'!A2 -> CY 2024
A3: Plymouth Lodging Tax (3.00%)
A4: Month | B4: 2004 | C4: 2005 | D4: 2006 | E4: 2007 | F4: 2008 | G4: 2009 | H4: 2010 | I4: 2011 | J4: 2012 | K4: 2013 | L4: 2014 | M4: 2015 | N4: 2016 | O4: 2017 | P4: 2018 | Q4: 2019 | R4: 2020 | S4: 2021 | T4: 2022 | U4: 2023 | V4: 2024
A5: January | B5: - | C5: - | D5: - | E5: - | F5: - | G5: - | H5: - | I5: - | J5: - | K5: - | L5: - | M5: - | N5: - | O5: - | P5: -
A6: February | B6: - | C6: - | D6: - | E6: - | F6: - | G6: - | H6: - | I6: - | J6: - | K6: - | L6: - | M6: - | N6: - | O6: - | P6: -
A7: March | B7: - | C7: - | D7: - | E7: - | F7: - | G7: - | H7: - | I7: - | J7: - | K7: - | L7: - | M7: - | N7: - | O7: - | P7: -
A8: April | B8: - | C8: - | D8: - | E8: - | F8: - | G8: - | H8: - | I8: - | J8: - | K8: - | L8: - | M8: - | N8: - | O8: - | P8: -
A9: May | B9: - | C9: - | D9: - | E9: - | F9: - | G9: - | H9: - | I9: - | J9: - | K9: - | L9: - | M9: - | N9: - | O9: - | P9: -
A10: June | B10: - | C10: - | D10: - | E10: - | F10: - | G10: - | H10: - | I10: - | J10: - | K10: - | L10: - | M10: - | N10: - | O10: - | P10: -
A11: July | B11: - | C11: - | D11: - | E11: - | F11: - | G11: - | H11: - | I11: - | J11: - | K11: - | L11: - | M11: - | N11: - | O11: - | P11: - | V11: 0
A12: August | B12: - | C12: - | D12: - | E12: - | F12: - | G12: - | H12: - | I12: - | J12: - | K12: - | L12: - | M12: - | N12: - | O12: - | P12: - | V12: 55013
A13: September | B13: - | C13: - | D13: - | E13: - | F13: - | G13: - | H13: - | I13: - | J13: - | K13: - | L13: - | M13: - | N13: - | O13: - | P13: - | V13: 49943
A14: October | B14: - | C14: - | D14: - | E14: - | F14: - | G14: - | H14: - | I14: - | J14: - | K14: - | L14: - | M14: - | N14: - | O14: - | P14: - | V14: 52060
A15: November | B15: - | C15: - | D15: - | E15: - | F15: - | G15: - | H15: - | I15: - | J15: - | K15: - | L15: - | M15: - | N15: - | O15: - | P15: - | V15: 49637
A16: December | B16: - | C16: - | D16: - | E16: - | F16: - | G16: - | H16: - | I16: - | J16: - | K16: - | L16: - | M16: - | N16: - | O16: - | P16: - | V16: 37279
A17: Total | B17: - | C17: - | D17: - | E17: - | F17: - | G17: - | H17: - | I17: - | J17: - | K17: - | L17: - | M17: - | N17: - | O17: - | P17: - | Q17: =SUM(Q5:Q16) -> 0 | R17: 0 | S17: 0 | T17: 0 | U17: 0 | V17: 243932
A18: Hidden columns B-N do not contain any data for CY 2004-2016
A19: ='Lod&Liq'!A71:F71 -> Source: Minnesota Department of Revenue, Tax Research Division, November 2025
A20: end of worksheet

Sheet Ortonville
A1: *Due to disclosure reasons, monthly totals for Ortonville are not available. Ortonville Lodging tax was established in 2024.
A6: Ortonville Lodging Tax (3.00%)
B7: 2004 | C7: 2005 | D7: 2006 | E7: 2007 | F7: 2008 | G7: 2009 | H7: 2010 | I7: 2011 | J7: 2012 | K7: 2013 | L7: 2014 | M7: 2015 | N7: 2016 | O7: 2017 | P7: 2018 | Q7: 2019 | R7: 2020 | S7: 2021 | T7: 2022 | U7: 2023 | V7: 2024
A8: January | V8: N/A
A9: February | V9: N/A
A10: March | V10: N/A
A11: April | V11: N/A
A12: May | V12: N/A
A13: June | V13: N/A
A14: July | V14: N/A
A15: August | V15: N/A
A16: September | V16: N/A
A17: October | V17: N/A
A18: November | V18: N/A
A19: December | V19: N/A
A20: Total | V20: 20865

Sheet Goodhue (hidden)
A1: Goodhue County Monthly Detail for Minnesota Local Sales & Use Tax
A2: ='Lod&Liq'!A2 -> CY 2024
A3: Goodhue County Transit Vehicle Excise Tax ($20)
A4: Month | B4: 2004 | C4: 2005 | D4: 2006 | E4: 2007 | F4: 2008 | G4: 2009 | H4: 2010 | I4: 2011 | J4: 2012 | K4: 2013 | L4: 2014 | M4: 2015 | N4: 2016 | O4: 2017 | P4: 2018 | Q4: 2019 | R4: 2020 | S4: 2021 | T4: 2022 | U4: 2023 | V4: 2024
A5: January | B5: - | C5: - | D5: - | E5: - | F5: - | G5: - | H5: - | I5: - | J5: - | K5: - | L5: - | M5: - | N5: - | O5: - | P5: - | Q5: 0 | R5: 13160 | S5: 9060 | T5: 10460 | U5: 13760 | V5: 9220
A6: February | B6: - | C6: - | D6: - | E6: - | F6: - | G6: - | H6: - | I6: - | J6: - | K6: - | L6: - | M6: - | N6: - | O6: - | P6: - | Q6: 5380 | R6: 6080 | S6: 9680 | T6: 7740 | U6: 7800 | V6: 7280
A7: March | B7: - | C7: - | D7: - | E7: - | F7: - | G7: - | H7: - | I7: - | J7: - | K7: - | L7: - | M7: - | N7: - | O7: - | P7: - | Q7: 5960 | R7: 7720 | S7: 10760 | T7: 11340 | U7: 8280 | V7: 7320
A8: April | B8: - | C8: - | D8: - | E8: - | F8: - | G8: - | H8: - | I8: - | J8: - | K8: - | L8: - | M8: - | N8: - | O8: - | P8: - | Q8: 10460 | R8: 10240 | S8: 12520 | T8: 11720 | U8: 9880 | V8: 12480
A9: May | B9: - | C9: - | D9: - | E9: - | F9: - | G9: - | H9: - | I9: - | J9: - | K9: - | L9: - | M9: - | N9: - | O9: - | P9: - | Q9: 7400 | R9: 4760 | S9: 12460 | T9: 8880 | U9: 8900 | V9: 10880
A10: June | B10: - | C10: - | D10: - | E10: - | F10: - | G10: - | H10: - | I10: - | J10: - | K10: - | L10: - | M10: - | N10: - | O10: - | P10: - | Q10: 6980 | R10: 7340 | S10: 10300 | T10: 10340 | U10: 9460 | V10: 9500
A11: July | B11: - | C11: - | D11: - | E11: - | F11: - | G11: - | H11: - | I11: - | J11: - | K11: - | L11: - | M11: - | N11: - | O11: - | P11: - | Q11: 9500 | R11: 18040 | S11: 11100 | T11: 10840 | U11: 11640 | V11: 8700
A12: August | B12: - | C12: - | D12: - | E12: - | F12: - | G12: - | H12: - | I12: - | J12: - | K12: - | L12: - | M12: - | N12: - | O12: - | P12: - | Q12: 6860 | R12: 8020 | S12: 9980 | T12: 8900 | U12: 8020 | V12: 7160
A13: September | B13: - | C13: - | D13: - | E13: - | F13: - | G13: - | H13: - | I13: - | J13: - | K13: - | L13: - | M13: - | N13: - | O13: - | P13: - | Q13: 7980 | R13: 8260 | S13: 10100 | T13: 10000 | U13: 9760 | V13: 8060
A14: October | B14: - | C14: - | D14: - | E14: - | F14: - | G14: - | H14: - | I14: - | J14: - | K14: - | L14: - | M14: - | N14: - | O14: - | P14: - | Q14: 13260 | R14: 11720 | S14: 9980 | T14: 8380 | U14: 8440 | V14: 9740
A15: November | B15: - | C15: - | D15: - | E15: - | F15: - | G15: - | H15: - | I15: - | J15: - | K15: - | L15: - | M15: - | N15: - | O15: - | P15: - | Q15: 7440 | R15: 8660 | S15: 8900 | T15: 8500 | U15: 7260 | V15: 8940
A16: December | B16: - | C16: - | D16: - | E16: - | F16: - | G16: - | H16: - | I16: - | J16: - | K16: - | L16: - | M16: - | N16: - | O16: - | P16: - | Q16: 7560 | R16: 6560 | S16: 9480 | T16: 6680 | U16: 6600 | V16: 8360
A17: Total | B17: - | C17: - | D17: - | E17: - | F17: - | G17: - | H17: - | I17: - | J17: - | K17: - | L17: - | M17: - | N17: - | O17: - | P17: - | Q17: =SUM(Q5:Q16) -> 88780 | R17: 110560 | S17: 124320 | T17: 113780 | U17: 109800 | V17: 107640
A18: Hidden columns B-N do not contain any data for CY 2004-2016
A19: ='Lod&Liq'!A71:F71 -> Source: Minnesota Department of Revenue, Tax Research Division, November 2025
A20: end of worksheet

Sheet Locally Administered (hidden)
A1: Locally Administered Selective Sales & Use Taxes
A2: CY 2006-2024
A3: Locally Administered | B3: 2006 | C3: 2007 | D3: 2008 | E3: 2009 | F3: 2010 | G3: 2011 | H3: 2012 | I3: 2013 | J3: 2014 | K3: 2015 | L3: 2016 | M3: 2017 | N3: 2018 | O3: 2019 | P3: 2020 | Q3: 2021 | R3: 2022 | S3: 2023 | T3: 2024
A4: Lodging: | B4: This cell intentionally left blank | C4: This cell intentionally left blank | D4: This cell intentionally left blank | E4: This cell intentionally left blank | F4: This cell intentionally left blank | G4: This cell intentionally left blank | H4: This cell intentionally left blank | I4: This cell intentionally left blank | J4: This cell intentionally left blank | K4: This cell intentionally left blank | L4: This cell intentionally left blank | M4: This cell intentionally left blank | N4: This cell intentionally left blank | O4: This cell intentionally left blank | P4: This cell intentionally left blank | Q4: This cell intentionally left blank | R4: This cell intentionally left blank | S4: This cell intentionally left blank | T4: This cell intentionally left blank
A5: Bloomington | B5: 12150792 | C5: 13220356 | D5: 13494807 | E5: 11018530 | F5: 11861992 | G5: 12897302 | H5: 13422224 | I5: 14433709 | J5: 16102730 | K5: 16418917 | L5: 19439880 | M5: 18350700 | N5: 20513496 | O5: 20095401 | P5: 6084620 | Q5: 11646726 | R5: 18316891 | S5: 19463870 | T5: 19912057.89
A6: Brooklyn Center* | B6: 369388 | C6: 353465 | D6: 309981 | E6: 295645.625 | F6: 348372.955 | G6: 426151.225 | H6: 441309.895 | I6: 440625.88 | J6: 457325.525 | K6: 537712.605 | L6: 579759.65 | M6: 603282.485 | N6: 583980.57 | O6: 545552.685 | P6: 280801.21 | Q6: 366269.195 | R6: 527007.4 | S6: 430548 | T6: 459045
A7: Cook County | B7: - | C7: - | D7: - | E7: 250478 | F7: 274713 | G7: 293575 | H7: 307000 | I7: 323787 | J7: 330917 | K7: 359781 | L7: 385417 | M7: 399478 | N7: 429491 | O7: 447534 | P7: 481405.25 | Q7: 611352.58 | R7: 610737.81
A8: Duluth | B8: 2996863 | C8: 3323225 | D8: 3432331 | E8: 3302840 | F8: 3597495 | G8: 3836211 | H8: 4053588 | I8: 3990722 | J8: 4449296 | K8: 5266030 | L8: 5750630 | M8: 5845400.27 | N8: 6222186.56 | O8: 6373158 | P8: 4064489 | Q8: 6677522 | R8: 7502082 | S8: 7972470 | T8: 7958497.17
A9: Proctor | B9: 3638 | C9: 3938 | D9: 3812 | E9: 3542 | F9: =36395*0.1 -> 3639.5 | G9: =39528*0.1 -> 3952.8 | H9: 12669 | I9: 13749 | J9: 14668.5 | K9: 15581 | L9: 16444 | M9: 15454 | N9: 15289 | O9: 14914 | P9: 9593.47 | Q9: 145297.54 | R9: 155660.68 | S9: 145781.84 | T9: 165891.59
A10: St. Cloud | B10: 1044517 | C10: 1116272 | D10: 1069702 | E10: 1002729 | F10: 1111445 | G10: 1168599 | H10: 1251438 | I10: 1336559 | J10: 1455900 | K10: 1508300 | L10: 1662376 | M10: 1623035 | N10: 1623034.85 | O10: 1599444 | P10: 749418.27 | Q10: 1145819 | R10: 1517873.78 | S10: 1710924 | T10: 1680573
A11: Two Harbors** | B11: 26832 | C11: 25758 | D11: 28663 | E11: 28038 | F11: =93553/3 -> 31184.33333 | G11: =88937/3 -> 29645.66667 | H11: 31218 | I11: 38805 | J11: 38389.12 | K11: 45362 | L11: 49537 | M11: 49288 | N11: 52862 | O11: 54697 | P11: 42491 | Q11: 0 | R11: 0 | S11: 0 | T11: 0
A12: Winona | B12: 75346 | C12: 79860 | D12: 78651 | E12: 75290 | F12: 76764 | G12: 85003 | H12: 90545 | I12: 88735 | J12: 96007 | K12: 99165 | L12: 93057 | M12: 98616 | N12: 96928 | O12: 105060 | P12: 57648.8175 | Q12: 101403.03 | R12: 120082.05 | S12: 122637.52 | T12: 123706.87
A13: Lodging Total | B13: =SUM(B5:B12) -> 16667376 | C13: 18122874 | D13: 18417947 | E13: 15977092.62 | F13: 17305605.79 | G13: 18740439.69 | H13: 19609991.89 | I13: 20666691.88 | J13: 22945233.14 | K13: 24250848.61 | L13: 27977100.65 | M13: 26985253.75 | N13: 29537267.98 | O13: 29235760.68 | P13: 11770467.02 | Q13: 20694389.34 | R13: 28750334.72 | S13: 29846231.36 | T13: 30299771.52
A14: Liquor: | B14: This cell intentionally left blank | C14: This cell intentionally left blank | D14: This cell intentionally left blank | E14: This cell intentionally left blank | F14: This cell intentionally left blank | G14: This cell intentionally left blank | H14: This cell intentionally left blank | I14: This cell intentionally left blank | J14: This cell intentionally left blank | K14: This cell intentionally left blank | L14: This cell intentionally left blank | M14: This cell intentionally left blank | N14: This cell intentionally left blank | O14: This cell intentionally left blank | P14: This cell intentionally left blank | Q14: This cell intentionally left blank | R14: This cell intentionally left blank | S14: This cell intentionally left blank | T14: This cell intentionally left blank
A15: Bloomington | B15: 1068004 | C15: 1096490 | D15: 1107766 | E15: 1066841 | F15: 1150998 | G15: 1321312 | H15: 1404428 | I15: 1478608 | J15: 1519530 | K15: 1507020 | L15: 1690665 | M15: 1710480 | N15: 1801901 | O15: 1771723 | P15: 706127 | Q15: 1273811 | R15: 1697086 | S15: 1881763 | T15: 1866101.15
A16: Liquor Total | B16: =SUM(B15) -> 1068004 | C16: 1096490 | D16: 1107766 | E16: 1066841 | F16: 1150998 | G16: 1321312 | H16: 1404428 | I16: 1478608 | J16: 1519530 | K16: 1507020 | L16: 1690665 | M16: 1710480 | N16: 1801901 | O16: 1771723 | P16: 706127 | Q16: 1273811 | R16: 1697086 | S16: 1881763 | T16: 1866101.15
A17: Food & Beverage: | B17: This cell intentionally left blank | C17: This cell intentionally left blank | D17: This cell intentionally left blank | E17: This cell intentionally left blank | F17: This cell intentionally left blank | G17: This cell intentionally left blank | H17: This cell intentionally left blank | I17: This cell intentionally left blank | J17: This cell intentionally left blank | K17: This cell intentionally left blank | L17: This cell intentionally left blank | M17: This cell intentionally left blank | N17: This cell intentionally left blank | O17: This cell intentionally left blank | P17: This cell intentionally left blank | Q17: This cell intentionally left blank | R17: This cell intentionally left blank | S17: This cell intentionally left blank | T17: This cell intentionally left blank
A18: Duluth | B18: 2449275 | C18: 2580310 | D18: 3367034 | E18: 3932469 | F18: 4189227 | G18: 4362601 | H18: 4391480 | I18: 3654041 | J18: 4373296 | K18: 5379461 | L18: 5594280 | M18: 5778484.47 | N18: 5950571.7 | O18: 6042886 | P18: 4317413 | Q18: 5769072 | R18: 6284269 | S18: 6769022.57 | T18: 6848155.09
A19: Little Falls | B19: 69650 | C19: 74630 | D19: 78854 | E19: 75892 | F19: 74974 | G19: 80664 | H19: 83485 | I19: 83622 | J19: 85045 | K19: 94285 | L19: 95237 | M19: 95270 | N19: 108965 | O19: 107141 | P19: 93391.73 | Q19: 114635 | R19: 121663.88 | S19: 128839.63 | T19: 143475.57
A20: Food & Beverage Total | B20: =SUM(B18:B19) -> 2518925 | C20: 2654940 | D20: 3445888 | E20: 4008361 | F20: 4264201 | G20: 4443265 | H20: 4474965 | I20: 3737663 | J20: 4458341 | K20: 5473746 | L20: 5689517 | M20: 5873754.47 | N20: 6059536.7 | O20: 6150027 | P20: 4410804.73 | Q20: 5883707 | R20: 6405932.88 | S20: 6897862.2 | T20: 6991630.66
A21: Entertainment: | B21: This cell intentionally left blank | C21: This cell intentionally left blank | D21: This cell intentionally left blank | E21: This cell intentionally left blank | F21: This cell intentionally left blank | G21: This cell intentionally left blank | H21: This cell intentionally left blank | I21: This cell intentionally left blank | J21: This cell intentionally left blank | K21: This cell intentionally left blank | L21: This cell intentionally left blank | M21: This cell intentionally left blank | N21: This cell intentionally left blank | O21: This cell intentionally left blank | P21: This cell intentionally left blank | Q21: This cell intentionally left blank | R21: This cell intentionally left blank | S21: This cell intentionally left blank | T21: This cell intentionally left blank
A22: Bloomington | B22: 855987 | C22: 858350 | D22: 1017748 | E22: 1083169 | F22: 1110944 | G22: 1321094 | H22: 1248238 | I22: 1385570 | J22: 1291588 | K22: 1249272 | L22: 1469958 | M22: 1428680 | N22: 1587584 | O22: 1692989 | P22: 433764 | Q22: 1275477 | R22: 1743407 | S22: 1832142 | T22: 2246847.59
A23: Entertainment Total | B23: =SUM(B22) -> 855987 | C23: 858350 | D23: 1017748 | E23: 1083169 | F23: 1110944 | G23: 1321094 | H23: 1248238 | I23: 1385570 | J23: 1291588 | K23: 1249272 | L23: 1469958 | M23: 1428680 | N23: 1587584 | O23: 1692989 | P23: 433764 | Q23: 1275477 | R23: 1743407 | S23: 1832142 | T23: 2246847.59
A24: Vehicle Excise - Cities: | B24: This cell intentionally left blank | C24: This cell intentionally left blank | D24: This cell intentionally left blank | E24: This cell intentionally left blank | F24: This cell intentionally left blank | G24: This cell intentionally left blank | H24: This cell intentionally left blank | I24: This cell intentionally left blank | J24: This cell intentionally left blank | K24: This cell intentionally left blank | L24: This cell intentionally left blank | M24: This cell intentionally left blank | N24: This cell intentionally left blank | O24: This cell intentionally left blank | P24: This cell intentionally left blank | Q24: This cell intentionally left blank | R24: This cell intentionally left blank | S24: This cell intentionally left blank | T24: This cell intentionally left blank
A25: Baxter | B25: 24244 | C25: 111992 | D25: 101216 | E25: 89489 | F25: 101836 | G25: 111992 | H25: 101734 | I25: 109595 | J25: 114263 | K25: 124500 | L25: 119631 | M25: 122634 | N25: 111086 | O25: 104453 | P25: 107440 | Q25: 117757 | R25: 99272 | S25: 104925 | T25: 97684
A26: Brainerd | B26: - | C26: 30299 | D26: 33351 | E26: 30305 | F26: 25963 | G26: 30171 | H26: 30481 | I26: 34471 | J26: 38335.83 | K26: 32190 | L26: 37470.98 | M26: 47553 | N26: 48846 | O26: 48266 | P26: 43647.2 | Q26: 45735.44 | R26: 35623.05 | S26: 35715.19 | T26: 29271.82
A27: Clearwater | B27: - | C27: - | D27: - | E27: - | F27: 166178 | G27: 299604 | H27: 44702 | I27: 95899 | J27: 0 | K27: 0 | L27: 220 | M27: 0 | N27: 0 | O27: 0 | P27: 0 | Q27: 0 | R27: 8920 | S27: 5340 | T27: 5180
A28: Hutchinson | B28: - | C28: - | D28: - | E28: - | F28: - | G28: - | H28: 27500 | I28: 28640 | J28: 34100 | K28: 32940 | L28: 30128 | M28: 29458 | N28: 24598 | O28: 24882 | P28: 23818 | Q28: 21484 | R28: 20094 | S28: 18802 | T28: 25242
A29: Mankato | B29: 163260 | C29: 171340 | D29: 159080 | E29: 153200 | F29: 180080 | G29: 195960 | H29: 212640 | I29: 205880 | J29: 217300 | K29: 219240 | L29: 211960 | M29: 227440 | N29: 246060 | O29: 255480 | P29: 232950 | Q29: 255955 | R29: 218450 | S29: 256570 | T29: 207680
A30: New Ulm | B30: 41709 | C30: 38688 | D30: 37722 | E30: 32929 | F30: 36850 | G30: 48695 | H30: 50845 | I30: 51515 | J30: 51730.42 | K30: 51387 | L30: 51824.73 | M30: 57081 | N30: 56039.78 | O30: 57215.2 | P30: 61759.01 | Q30: 63132.62 | R30: 57078.82 | S30: 60701.28 | T30: 53233.26
A31: Rochester | B31: 299260 | C31: 299500 | D31: 278520 | E31: 285680 | F31: 315560 | G31: 337170 | H31: 357580 | I31: 376880 | J31: 388300 | K31: 399900 | L31: 400880 | M31: 418120 | N31: 421940 | O31: 437080 | P31: 394000 | Q31: 438490 | R31: 339360 | S31: 436400 | T31: 428280
A32: Worthington | B32: - | C32: - | D32: - | E32: 12508 | F32: 21463 | G32: 21626 | H32: 19506 | I32: 34172 | J32: 39217 | K32: 47697 | L32: 49819 | M32: 54610 | N32: 48248 | O32: - | P32: - | Q32: - | R32: - | S32: - | T32: -
A33: Vehicle Excise - Cities Total | B33: =SUM(B25:B32) -> 528473 | C33: 651819 | D33: 609889 | E33: 604111 | F33: 847930 | G33: 1045218 | H33: 844988 | I33: 937052 | J33: 883246.25 | K33: 907854 | L33: 901933.71 | M33: 956896 | N33: 956817.78 | O33: 927376.2 | P33: 863614.21 | Q33: 942554.06 | R33: 778797.87 | S33: 918453.47 | T33: 846571.08
A34: Note: Local Sales & Use Tax for Worthington ended September 30, 2018.
A35: *Brooklyn Center was revised for all years in 2022.
A36: **The Minnesota Department of Revenue took over Two Harbors Local Lodging Tax administration on October 1, 2020. To see figures after this date select Two Harbors under DOR Administered.
A37: ='Lod&Liq'!A71:F71 -> Source: Minnesota Department of Revenue, Tax Research Division, November 2025
A38: end of worksheet

Sheet Anoka (hidden)
A1: Anoka County Monthly Detail for Minnesota Local Sales & Use Tax
A2: ='Lod&Liq'!A2 -> CY 2024
A3: Anoka County Transit Vehicle Excise Tax ($20)
A4: Month | B4: 2004 | C4: 2005 | D4: 2006 | E4: 2007 | F4: 2008 | G4: 2009 | H4: 2010 | I4: 2011 | J4: 2012 | K4: 2013 | L4: 2014 | M4: 2015 | N4: 2016 | O4: 2017 | P4: 2018 | Q4: 2019 | R4: 2020 | S4: 2021 | T4: 2022 | U4: 2023 | V4: 2024
A5: January | B5: - | C5: - | D5: - | E5: - | F5: - | G5: - | H5: - | I5: - | J5: - | K5: - | L5: - | M5: - | N5: - | O5: - | P5: 52980 | Q5: 75860 | R5: 82000 | S5: 72060 | T5: 71760 | U5: 101800 | V5: 80500
A6: February | B6: - | C6: - | D6: - | E6: - | F6: - | G6: - | H6: - | I6: - | J6: - | K6: - | L6: - | M6: - | N6: - | O6: - | P6: 67100 | Q6: 60980 | R6: 73160 | S6: 82520 | T6: 212220 | U6: 60720 | V6: 63380
A7: March | B7: - | C7: - | D7: - | E7: - | F7: - | G7: - | H7: - | I7: - | J7: - | K7: - | L7: - | M7: - | N7: - | O7: - | P7: 59660 | Q7: 54800 | R7: 63200 | S7: 69080 | T7: 64000 | U7: 65400 | V7: 67820
A8: April | B8: - | C8: - | D8: - | E8: - | F8: - | G8: - | H8: - | I8: - | J8: - | K8: - | L8: - | M8: - | N8: - | O8: - | P8: 82140 | Q8: 86040 | R8: 76800 | S8: 112520 | T8: 99940 | U8: 124620 | V8: 79860
A9: May | B9: - | C9: - | D9: - | E9: - | F9: - | G9: - | H9: - | I9: - | J9: - | K9: - | L9: - | M9: - | N9: - | O9: - | P9: 64640 | Q9: 83560 | R9: 73360 | S9: 84020 | T9: 91020 | U9: 109760 | V9: 91720
A10: June | B10: - | C10: - | D10: - | E10: - | F10: - | G10: - | H10: - | I10: - | J10: - | K10: - | L10: - | M10: - | N10: - | O10: - | P10: 68460 | Q10: 85060 | R10: 82080 | S10: 81060 | T10: 59800 | U10: 69980 | V10: 79520
A11: July | B11: - | C11: - | D11: - | E11: - | F11: - | G11: - | H11: - | I11: - | J11: - | K11: - | L11: - | M11: - | N11: - | O11: - | P11: 64920 | Q11: 88680 | R11: 104400 | S11: 87120 | T11: 77300 | U11: 89120 | V11: 98800
A12: August | B12: - | C12: - | D12: - | E12: - | F12: - | G12: - | H12: - | I12: - | J12: - | K12: - | L12: - | M12: - | N12: - | O12: - | P12: 92460 | Q12: 81560 | R12: 98980 | S12: 90420 | T12: 58280 | U12: 69600 | V12: 77778.49
A13: September | B13: - | C13: - | D13: - | E13: - | F13: - | G13: - | H13: - | I13: - | J13: - | K13: - | L13: - | M13: - | N13: - | O13: - | P13: 68000 | Q13: 77860 | R13: 84740 | S13: 67960 | T13: 63020 | U13: 81020 | V13: 89580
A14: October | B14: - | C14: - | D14: - | E14: - | F14: - | G14: - | H14: - | I14: - | J14: - | K14: - | L14: - | M14: - | N14: - | O14: - | P14: 74100 | Q14: 77240 | R14: 94720 | S14: 85740 | T14: 80620 | U14: 101920 | V14: 90600
A15: November | B15: - | C15: - | D15: - | E15: - | F15: - | G15: - | H15: - | I15: - | J15: - | K15: - | L15: - | M15: - | N15: - | O15: 61320 | P15: 64320 | Q15: 77240 | R15: 84000 | S15: 88180 | T15: 67560 | U15: 70520 | V15: 72720
A16: December | B16: - | C16: - | D16: - | E16: - | F16: - | G16: - | H16: - | I16: - | J16: - | K16: - | L16: - | M16: - | N16: - | O16: 61820 | P16: 57820 | Q16: 71860 | R16: 65480 | S16: 80288 | T16: 41660 | U16: 69720 | V16: 60540
A17: Total | B17: - | C17: - | D17: - | E17: - | F17: - | G17: - | H17: - | I17: - | J17: - | K17: - | L17: - | M17: - | N17: - | O17: =SUM(O5:O16) -> 123140 | P17: 816600 | Q17: 920740 | R17: 982920 | S17: 1000968 | T17: 987180 | U17: =SUM(U5:U16) -> 1014180 | V17: =SUM(V5:V16) -> 952818.49
A18: Hidden columns B-N do not contain any data for CY 2004-2016
A19: ='Lod&Liq'!A71:F71 -> Source: Minnesota Department of Revenue, Tax Research Division, November 2025
A20: end of worksheet

Sheet Carver (hidden)
A1: Carver County Monthly Detail for Minnesota Local Sales & Use Tax
A2: ='Lod&Liq'!A2 -> CY 2024
A3: Carver County Transit Vehicle Excise Tax ($20)
A4: Month | B4: 2004 | C4: 2005 | D4: 2006 | E4: 2007 | F4: 2008 | G4: 2009 | H4: 2010 | I4: 2011 | J4: 2012 | K4: 2013 | L4: 2014 | M4: 2015 | N4: 2016 | O4: 2017 | P4: 2018 | Q4: 2019 | R4: 2020 | S4: 2021 | T4: 2022 | U4: 2023 | V4: 2024
A5: January | B5: - | C5: - | D5: - | E5: - | F5: - | G5: - | H5: - | I5: - | J5: - | K5: - | L5: - | M5: - | N5: - | O5: - | P5: 4700 | Q5: 4960 | R5: 4220 | S5: 4140 | T5: 3640 | U5: 3300 | V5: 3420
A6: February | B6: - | C6: - | D6: - | E6: - | F6: - | G6: - | H6: - | I6: - | J6: - | K6: - | L6: - | M6: - | N6: - | O6: - | P6: 3600 | Q6: 3580 | R6: 3440 | S6: 3680 | T6: 3360 | U6: 2420 | V6: 6560
A7: March | B7: - | C7: - | D7: - | E7: - | F7: - | G7: - | H7: - | I7: - | J7: - | K7: - | L7: - | M7: - | N7: - | O7: - | P7: 3960 | Q7: 2960 | R7: 3360 | S7: 3600 | T7: 3580 | U7: 3120 | V7: 2440
A8: April | B8: - | C8: - | D8: - | E8: - | F8: - | G8: - | H8: - | I8: - | J8: - | K8: - | L8: - | M8: - | N8: - | O8: - | P8: 4920 | Q8: 4460 | R8: 3160 | S8: 4620 | T8: 3460 | U8: 3060 | V8: 3420
A9: May | B9: - | C9: - | D9: - | E9: - | F9: - | G9: - | H9: - | I9: - | J9: - | K9: - | L9: - | M9: - | N9: - | O9: - | P9: 4020 | Q9: 4380 | R9: 2920 | S9: 5240 | T9: 4020 | U9: 3340 | V9: 3400
A10: June | B10: - | C10: - | D10: - | E10: - | F10: - | G10: - | H10: - | I10: - | J10: - | K10: - | L10: - | M10: - | N10: - | O10: - | P10: 4760 | Q10: 5300 | R10: 4300 | S10: 4780 | T10: 3260 | U10: 3760 | V10: 4880
A11: July | B11: - | C11: - | D11: - | E11: - | F11: - | G11: - | H11: - | I11: - | J11: - | K11: - | L11: - | M11: - | N11: - | O11: - | P11: 5000 | Q11: 4240 | R11: 4760 | S11: 5040 | T11: 3840 | U11: 3620 | V11: 3400
A12: August | B12: - | C12: - | D12: - | E12: - | F12: - | G12: - | H12: - | I12: - | J12: - | K12: - | L12: - | M12: - | N12: - | O12: - | P12: 4240 | Q12: 4580 | R12: 5120 | S12: 4200 | T12: 3560 | U12: 3580 | V12: 3100
A13: September | B13: - | C13: - | D13: - | E13: - | F13: - | G13: - | H13: - | I13: - | J13: - | K13: - | L13: - | M13: - | N13: - | O13: - | P13: 5120 | Q13: 5040 | R13: 4680 | S13: 3940 | T13: 3560 | U13: 19000 | V13: 3100
A14: October | B14: - | C14: - | D14: - | E14: - | F14: - | G14: - | H14: - | I14: - | J14: - | K14: - | L14: - | M14: - | N14: - | O14: - | P14: 5300 | Q14: 4040 | R14: 4560 | S14: 4020 | T14: 11340 | U14: 3920 | V14: 2920
A15: November | B15: - | C15: - | D15: - | E15: - | F15: - | G15: - | H15: - | I15: - | J15: - | K15: - | L15: - | M15: - | N15: - | O15: 4140 | P15: 4820 | Q15: 4540 | R15: 4420 | S15: 3900 | T15: 3040 | U15: 3480 | V15: 2800
A16: December | B16: - | C16: - | D16: - | E16: - | F16: - | G16: - | H16: - | I16: - | J16: - | K16: - | L16: - | M16: - | N16: - | O16: 3700 | P16: 4080 | Q16: 4320 | R16: 3660 | S16: 4380 | T16: 2000 | U16: 2920 | V16: 2800
A17: Total | B17: - | C17: - | D17: - | E17: - | F17: - | G17: - | H17: - | I17: - | J17: - | K17: - | L17: - | M17: - | N17: - | O17: =SUM(O5:O16) -> 7840 | P17: 54520 | Q17: 52400 | R17: 48600 | S17: 51540 | T17: 48660 | U17: =SUM(U5:U16) -> 55520 | V17: =SUM(V5:V16) -> 42240
A18: Hidden columns B-N do not contain any data for CY 2004-2016
A19: ='Lod&Liq'!A71:F71 -> Source: Minnesota Department of Revenue, Tax Research Division, November 2025
A20: end of worksheet

Sheet Dakota (hidden)
A1: Dakota County Monthly Detail for Minnesota Local Sales & Use Tax
A2: ='Lod&Liq'!A2 -> CY 2024
A3: Dakota County Transit Vehicle Excise Tax ($20)
A4: Month | B4: 2004 | C4: 2005 | D4: 2006 | E4: 2007 | F4: 2008 | G4: 2009 | H4: 2010 | I4: 2011 | J4: 2012 | K4: 2013 | L4: 2014 | M4: 2015 | N4: 2016 | O4: 2017 | P4: 2018 | Q4: 2019 | R4: 2020 | S4: 2021 | T4: 2022 | U4: 2023 | V4: 2024
A5: January | B5: - | C5: - | D5: - | E5: - | F5: - | G5: - | H5: - | I5: - | J5: - | K5: - | L5: - | M5: - | N5: - | O5: - | P5: 110340 | Q5: 119400 | R5: 118760 | S5: 121980 | T5: 97720 | U5: 105440 | V5: 120160
A6: February | B6: - | C6: - | D6: - | E6: - | F6: - | G6: - | H6: - | I6: - | J6: - | K6: - | L6: - | M6: - | N6: - | O6: - | P6: 95680 | Q6: 99080 | R6: 100100 | S6: 101320 | T6: 102880 | U6: 97580 | V6: 111120
A7: March | B7: - | C7: - | D7: - | E7: - | F7: - | G7: - | H7: - | I7: - | J7: - | K7: - | L7: - | M7: - | N7: - | O7: - | P7: 94720 | Q7: 87480 | R7: 113540 | S7: 98700 | T7: 90840 | U7: 95580 | V7: 101780
A8: April | B8: - | C8: - | D8: - | E8: - | F8: - | G8: - | H8: - | I8: - | J8: - | K8: - | L8: - | M8: - | N8: - | O8: - | P8: 127880 | Q8: 132200 | R8: 101200 | S8: 148560 | T8: 115180 | U8: 131240 | V8: 131820
A9: May | B9: - | C9: - | D9: - | E9: - | F9: - | G9: - | H9: - | I9: - | J9: - | K9: - | L9: - | M9: - | N9: - | O9: - | P9: 109340 | Q9: 110560 | R9: 76560 | S9: 129260 | T9: 106820 | U9: 121760 | V9: 143780
A10: June | B10: - | C10: - | D10: - | E10: - | F10: - | G10: - | H10: - | I10: - | J10: - | K10: - | L10: - | M10: - | N10: - | O10: - | P10: 140660 | Q10: 130200 | R10: 112640 | S10: 140420 | T10: 122440 | U10: 128820 | V10: 115040
A11: July | B11: - | C11: - | D11: - | E11: - | F11: - | G11: - | H11: - | I11: - | J11: - | K11: - | L11: - | M11: - | N11: - | O11: - | P11: 126140 | Q11: 118100 | R11: 128640 | S11: 107560 | T11: 121480 | U11: 130900 | V11: 106980
A12: August | B12: - | C12: - | D12: - | E12: - | F12: - | G12: - | H12: - | I12: - | J12: - | K12: - | L12: - | M12: - | N12: - | O12: - | P12: 133520 | Q12: 142880 | R12: 153780 | S12: 160780 | T12: 102580 | U12: 134460 | V12: 119360
A13: September | B13: - | C13: - | D13: - | E13: - | F13: - | G13: - | H13: - | I13: - | J13: - | K13: - | L13: - | M13: - | N13: - | O13: - | P13: 133300 | Q13: 139400 | R13: 126560 | S13: 101900 | T13: 132340 | U13: 126200 | V13: 120520
A14: October | B14: - | C14: - | D14: - | E14: - | F14: - | G14: - | H14: - | I14: - | J14: - | K14: - | L14: - | M14: - | N14: - | O14: - | P14: 120960 | Q14: 131860 | R14: 121660 | S14: 115140 | T14: 115040 | U14: 123200 | V14: 115920
A15: November | B15: - | C15: - | D15: - | E15: - | F15: - | G15: - | H15: - | I15: - | J15: - | K15: - | L15: - | M15: - | N15: - | O15: 101620 | P15: 113160 | Q15: 125340 | R15: 106600 | S15: 108420 | T15: 106360 | U15: 109780 | V15: 115260
A16: December | B16: - | C16: - | D16: - | E16: - | F16: - | G16: - | H16: - | I16: - | J16: - | K16: - | L16: - | M16: - | N16: - | O16: 99440 | P16: 107180 | Q16: 136800 | R16: 90840 | S16: 90580 | T16: 104320 | U16: 111380 | V16: 99200
A17: Total | B17: - | C17: - | D17: - | E17: - | F17: - | G17: - | H17: - | I17: - | J17: - | K17: - | L17: - | M17: - | N17: - | O17: =SUM(O5:O16) -> 201060 | P17: 1412880 | Q17: 1473300 | R17: 1350880 | S17: 1424620 | T17: 1318000 | U17: =SUM(U5:U16) -> 1416340 | V17: =SUM(V5:V16) -> 1400940
A18: Hidden columns B-N do not contain any data for CY 2004-2016
A19: ='Lod&Liq'!A71:F71 -> Source: Minnesota Department of Revenue, Tax Research Division, November 2025
A20: end of worksheet

Sheet Hennepin (hidden)
A1: Hennepin County Monthly Detail for Minnesota Local Sales & Use Tax
A2: ='Lod&Liq'!A2 -> CY 2024
A3: Hennepin County Transit Vehicle Excise Tax ($20)
A4: Month | B4: 2004 | C4: 2005 | D4: 2006 | E4: 2007 | F4: 2008 | G4: 2009 | H4: 2010 | I4: 2011 | J4: 2012 | K4: 2013 | L4: 2014 | M4: 2015 | N4: 2016 | O4: 2017 | P4: 2018 | Q4: 2019 | R4: 2020 | S4: 2021 | T4: 2022 | U4: 2023 | V4: 2024
A5: January | B5: - | C5: - | D5: - | E5: - | F5: - | G5: - | H5: - | I5: - | J5: - | K5: - | L5: - | M5: - | N5: - | O5: - | P5: 223080 | Q5: 214580 | R5: 220300 | S5: 206380 | T5: 198320 | U5: 204320 | V5: 222360
A6: February | B6: - | C6: - | D6: - | E6: - | F6: - | G6: - | H6: - | I6: - | J6: - | K6: - | L6: - | M6: - | N6: - | O6: - | P6: 187860 | Q6: 176000 | R6: 200140 | S6: 180260 | T6: 166440 | U6: 215520 | V6: 187640
A7: March | B7: - | C7: - | D7: - | E7: - | F7: - | G7: - | H7: - | I7: - | J7: - | K7: - | L7: - | M7: - | N7: - | O7: - | P7: 167040 | Q7: 175540 | R7: 193900 | S7: 187680 | T7: 175780 | U7: 174100 | V7: 215920
A8: April | B8: - | C8: - | D8: - | E8: - | F8: - | G8: - | H8: - | I8: - | J8: - | K8: - | L8: - | M8: - | N8: - | O8: - | P8: 251120 | Q8: 256580 | R8: 180020 | S8: 281440 | T8: 236700 | U8: 223900 | V8: 206680
A9: May | B9: - | C9: - | D9: - | E9: - | F9: - | G9: - | H9: - | I9: - | J9: - | K9: - | L9: - | M9: - | N9: - | O9: - | P9: 204040 | Q9: 241700 | R9: 140540 | S9: 238340 | T9: 202920 | U9: 219520 | V9: 278620
A10: June | B10: - | C10: - | D10: - | E10: - | F10: - | G10: - | H10: - | I10: - | J10: - | K10: - | L10: - | M10: - | N10: - | O10: - | P10: 251660 | Q10: 231860 | R10: 223440 | S10: 229140 | T10: 235380 | U10: 249560 | V10: 215100
A11: July | B11: - | C11: - | D11: - | E11: - | F11: - | G11: - | H11: - | I11: - | J11: - | K11: - | L11: - | M11: - | N11: - | O11: - | P11: 212860 | Q11: 219540 | R11: 256820 | S11: 212920 | T11: 225060 | U11: 238040 | V11: 232560
A12: August | B12: - | C12: - | D12: - | E12: - | F12: - | G12: - | H12: - | I12: - | J12: - | K12: - | L12: - | M12: - | N12: - | O12: 0 | P12: 253680 | Q12: 258880 | R12: 266420 | S12: 254820 | T12: 201080 | U12: 218760 | V12: 213258.49
A13: September | B13: - | C13: - | D13: - | E13: - | F13: - | G13: - | H13: - | I13: - | J13: - | K13: - | L13: - | M13: - | N13: - | O13: 0 | P13: 242700 | Q13: 256780 | R13: 221600 | S13: 221520 | T13: 243500 | U13: 231400 | V13: 206320
A14: October | B14: - | C14: - | D14: - | E14: - | F14: - | G14: - | H14: - | I14: - | J14: - | K14: - | L14: - | M14: - | N14: - | O14: 0 | P14: 239280 | Q14: 238600 | R14: 234780 | S14: 214420 | T14: 234480 | U14: 235000 | V14: 202260
A15: November | B15: - | C15: - | D15: - | E15: - | F15: - | G15: - | H15: - | I15: - | J15: - | K15: - | L15: - | M15: - | N15: - | O15: 201940 | P15: 224420 | Q15: 234560 | R15: 224040 | S15: 194500 | T15: 202400 | U15: 210040 | V15: 197040
A16: December | B16: - | C16: - | D16: - | E16: - | F16: - | G16: - | H16: - | I16: - | J16: - | K16: - | L16: - | M16: - | N16: - | O16: 190120 | P16: 213560 | Q16: 228160 | R16: 168860 | S16: 191840 | T16: 191920 | U16: 200480 | V16: 217580
A17: Total | B17: - | C17: - | D17: - | E17: - | F17: - | G17: - | H17: - | I17: - | J17: - | K17: - | L17: - | M17: - | N17: - | O17: =SUM(O5:O16) -> 392060 | P17: 2671300 | Q17: 2732780 | R17: 2530860 | S17: 2613260 | T17: 2513980 | U17: =SUM(U5:U16) -> 2620640 | V17: =SUM(V5:V16) -> 2595338.49
A18: Hidden columns B-N do not contain any data for CY 2004-2016
A19: ='Lod&Liq'!A71:F71 -> Source: Minnesota Department of Revenue, Tax Research Division, November 2025
A20: end of worksheet

Sheet Proctor (hidden)
A1: Proctor Monthly Detail for Minnesota Special Sales & Use Tax
A2: ='Lod&Liq'!A2 -> CY 2024
A3: Proctor Food & Beverage Tax ( 1.0%)
A4: Month | B4: 2004 | C4: 2005 | D4: 2006 | E4: 2007 | F4: 2008 | G4: 2009 | H4: 2010 | I4: 2011 | J4: 2012 | K4: 2013 | L4: 2014 | M4: 2015 | N4: 2016 | O4: 2017 | P4: 2018 | Q4: 2019 | R4: 2020 | S4: 2021 | T4: 2022 | U4: 2023 | V4: 2024
A5: January | B5: - | C5: - | D5: - | E5: - | F5: - | G5: - | H5: - | I5: - | J5: - | K5: - | L5: - | M5: - | N5: 6665 | O5: 7242 | P5: 8348 | Q5: 6423 | R5: 6206 | S5: 3695 | T5: 6431 | U5: 6775 | V5: 7868
A6: February | B6: - | C6: - | D6: - | E6: - | F6: - | G6: - | H6: - | I6: - | J6: - | K6: - | L6: - | M6: - | N6: 5702 | O6: 5627 | P6: 5777 | Q6: 5417 | R6: 5662 | S6: 4528 | T6: 5524 | U6: 6044 | V6: 5797
A7: March | B7: - | C7: - | D7: - | E7: - | F7: - | G7: - | H7: - | I7: - | J7: - | K7: - | L7: - | M7: - | N7: 5517 | O7: 5351 | P7: 5433 | Q7: 4988 | R7: 5382 | S7: 4632 | T7: 5491 | U7: 5815 | V7: 5746
A8: April | B8: - | C8: - | D8: - | E8: - | F8: - | G8: - | H8: - | I8: - | J8: - | K8: - | L8: - | M8: - | N8: 5987 | O8: 5608 | P8: 6152 | Q8: 5665 | R8: 3561 | S8: 5423 | T8: 6102 | U8: 6521 | V8: 6403
A9: May | B9: - | C9: - | D9: - | E9: - | F9: - | G9: - | H9: - | I9: - | J9: - | K9: - | L9: - | M9: 4056 | N9: 5970 | O9: 5846 | P9: 5579 | Q9: 5119 | R9: 1717 | S9: 5266 | T9: 6226 | U9: 5915 | V9: 6268
A10: June | B10: - | C10: - | D10: - | E10: - | F10: - | G10: - | H10: - | I10: - | J10: - | K10: - | L10: - | M10: 6216 | N10: 6196 | O10: 6559 | P10: 6040 | Q10: 6109 | R10: 2924 | S10: 6157 | T10: 6131 | U10: 6257 | V10: 6334
A11: July | B11: - | C11: - | D11: - | E11: - | F11: - | G11: - | H11: - | I11: - | J11: - | K11: - | L11: - | M11: 6311 | N11: 6416 | O11: 7220 | P11: 6455 | Q11: 6491 | R11: 4618 | S11: 6864 | T11: 6846 | U11: 7702 | V11: 7340
A12: August | B12: - | C12: - | D12: - | E12: - | F12: - | G12: - | H12: - | I12: - | J12: - | K12: - | L12: - | M12: 6839 | N12: 7292 | O12: 6913 | P12: 6408 | Q12: 6624 | R12: 5611 | S12: 7324 | T12: 7298 | U12: 6880 | V12: 6676
A13: September | B13: - | C13: - | D13: - | E13: - | F13: - | G13: - | H13: - | I13: - | J13: - | K13: - | L13: - | M13: 8520 | N13: 7620 | O13: 7282 | P13: 7209 | Q13: 7636 | R13: 5928 | S13: 8048 | T13: 8292 | U13: 7543 | V13: 7601.49
A14: October | B14: - | C14: - | D14: - | E14: - | F14: - | G14: - | H14: - | I14: - | J14: - | K14: - | L14: - | M14: 6516 | N14: 6498 | O14: 6809 | P14: 15698 | Q14: 6141 | R14: 5766 | S14: 6730 | T14: 7357 | U14: 7817 | V14: 6300
A15: November | B15: - | C15: - | D15: - | E15: - | F15: - | G15: - | H15: - | I15: - | J15: - | K15: - | L15: - | M15: 7327 | N15: 6831 | O15: 7136 | P15: 6544 | Q15: 6264 | R15: 5545 | S15: 7431 | T15: 7635 | U15: 7163 | V15: 7022
A16: December | B16: - | C16: - | D16: - | E16: - | F16: - | G16: - | H16: - | I16: - | J16: - | K16: - | L16: - | M16: 5888 | N16: 6125 | O16: 6048 | P16: 5612 | Q16: 5534 | R16: 3819 | S16: 5658 | T16: 5771 | U16: 5918 | V16: 5796
A17: Total | B17: - | C17: - | D17: - | E17: - | F17: - | G17: - | H17: - | I17: - | J17: - | K17: - | L17: - | M17: =SUM(M5:M16) -> 51673 | N17: 76819 | O17: 77641 | P17: 85255 | Q17: =SUM(Q5:Q16) -> 72411 | R17: =SUM(R5:R16) -> 56739 | S17: 71756 | T17: =SUM(T5:T16) -> 79104 | U17: =SUM(U5:U16) -> 80350 | V17: =SUM(V5:V16) -> 79151.49
A18: Hidden columns B-L do not contain any data for CY 2004-2014
A19: ='Lod&Liq'!A71:F71 -> Source: Minnesota Department of Revenue, Tax Research Division, November 2025
A20: end of worksheet

Sheet Kandiyohi (hidden)
A1: Kandiyohi County Monthly Detail for Minnesota Local Sales & Use Tax
A2: ='Lod&Liq'!A2 -> CY 2024
A3: Kandiyohi County Transit Vehicle Excise Tax ($20)
A4: Month | B4: 2004 | C4: 2005 | D4: 2006 | E4: 2007 | F4: 2008 | G4: 2009 | H4: 2010 | I4: 2011 | J4: 2012 | K4: 2013 | L4: 2014 | M4: 2015 | N4: 2016 | O4: 2017 | P4: 2018 | Q4: 2019 | R4: 2020 | S4: 2021 | T4: 2022 | U4: 2023 | V4: 2024
A5: January | B5: - | C5: - | D5: - | E5: - | F5: - | G5: - | H5: - | I5: - | J5: - | K5: - | L5: - | M5: - | N5: - | O5: - | P5: - | Q5: 8660 | R5: 5860 | S5: 7480 | T5: 5480 | U5: 5100 | V5: 5500
A6: February | B6: - | C6: - | D6: - | E6: - | F6: - | G6: - | H6: - | I6: - | J6: - | K6: - | L6: - | M6: - | N6: - | O6: - | P6: - | Q6: 3160 | R6: 7300 | S6: 5280 | T6: 4880 | U6: 4720 | V6: 5300
A7: March | B7: - | C7: - | D7: - | E7: - | F7: - | G7: - | H7: - | I7: - | J7: - | K7: - | L7: - | M7: - | N7: - | O7: - | P7: - | Q7: 2780 | R7: 5980 | S7: 5940 | T7: 6800 | U7: 5200 | V7: 5240
A8: April | B8: - | C8: - | D8: - | E8: - | F8: - | G8: - | H8: - | I8: - | J8: - | K8: - | L8: - | M8: - | N8: - | O8: - | P8: 0 | Q8: 4640 | R8: 5380 | S8: 8540 | T8: 6120 | U8: 6480 | V8: 6320
A9: May | B9: - | C9: - | D9: - | E9: - | F9: - | G9: - | H9: - | I9: - | J9: - | K9: - | L9: - | M9: - | N9: - | O9: - | P9: 3200 | Q9: 3740 | R9: 5160 | S9: 5520 | T9: 4920 | U9: 5860 | V9: 6800
A10: June | B10: - | C10: - | D10: - | E10: - | F10: - | G10: - | H10: - | I10: - | J10: - | K10: - | L10: - | M10: - | N10: - | O10: - | P10: 4560 | Q10: 3940 | R10: 7160 | S10: 6840 | T10: 4920 | U10: 5940 | V10: 5780
A11: July | B11: - | C11: - | D11: - | E11: - | F11: - | G11: - | H11: - | I11: - | J11: - | K11: - | L11: - | M11: - | N11: - | O11: - | P11: 4600 | Q11: 3560 | R11: 9180 | S11: 8320 | T11: 6380 | U11: 6360 | V11: 5680
A12: August | B12: - | C12: - | D12: - | E12: - | F12: - | G12: - | H12: - | I12: - | J12: - | K12: - | L12: - | M12: - | N12: - | O12: - | P12: 4860 | Q12: 5040 | R12: 7820 | S12: 5980 | T12: 5060 | U12: 5220 | V12: 5860
A13: September | B13: - | C13: - | D13: - | E13: - | F13: - | G13: - | H13: - | I13: - | J13: - | K13: - | L13: - | M13: - | N13: - | O13: - | P13: 5940 | Q13: 5040 | R13: 6980 | S13: 6200 | T13: 6640 | U13: 5320 | V13: 5660
A14: October | B14: - | C14: - | D14: - | E14: - | F14: - | G14: - | H14: - | I14: - | J14: - | K14: - | L14: - | M14: - | N14: - | O14: - | P14: 4940 | Q14: 3800 | R14: 7260 | S14: 6060 | T14: 5980 | U14: 5800 | V14: 5280
A15: November | B15: - | C15: - | D15: - | E15: - | F15: - | G15: - | H15: - | I15: - | J15: - | K15: - | L15: - | M15: - | N15: - | O15: - | P15: 3860 | Q15: 1300 | R15: 6380 | S15: 4460 | T15: 5040 | U15: 4700 | V15: 5940
A16: December | B16: - | C16: - | D16: - | E16: - | F16: - | G16: - | H16: - | I16: - | J16: - | K16: - | L16: - | M16: - | N16: - | O16: - | P16: 3940 | Q16: 5200 | R16: 5240 | S16: 4400 | T16: 5500 | U16: 5740 | V16: 4540
A17: Total | B17: - | C17: - | D17: - | E17: - | F17: - | G17: - | H17: - | I17: - | J17: - | K17: - | L17: - | M17: - | N17: - | O17: - | P17: =SUM(P5:P16) -> 35900 | Q17: 50860 | R17: 79700 | S17: 75020 | T17: 67720 | U17: 66440 | V17: =SUM(V5:V16) -> 67900
A18: Hidden columns B-O do not contain any data for CY 2004-2017
A19: ='Lod&Liq'!A71:F71 -> Source: Minnesota Department of Revenue, Tax Research Division, November 2025
A20: end of worksheet

Sheet Ramsey (hidden)
A1: Ramsey County Monthly Detail for Minnesota Local Sales & Use Tax
A2: ='Lod&Liq'!A2 -> CY 2024
A3: Ramsey County Transit Vehicle Excise Tax ($20)
A4: Month | B4: 2004 | C4: 2005 | D4: 2006 | E4: 2007 | F4: 2008 | G4: 2009 | H4: 2010 | I4: 2011 | J4: 2012 | K4: 2013 | L4: 2014 | M4: 2015 | N4: 2016 | O4: 2017 | P4: 2018 | Q4: 2019 | R4: 2020 | S4: 2021 | T4: 2022 | U4: 2023 | V4: 2024
A5: January | B5: - | C5: - | D5: - | E5: - | F5: - | G5: - | H5: - | I5: - | J5: - | K5: - | L5: - | M5: - | N5: - | O5: - | P5: 99040 | Q5: 108820 | R5: 102680 | S5: 105300 | T5: 92340 | U5: 94540 | V5: 101780
A6: February | B6: - | C6: - | D6: - | E6: - | F6: - | G6: - | H6: - | I6: - | J6: - | K6: - | L6: - | M6: - | N6: - | O6: - | P6: 81960 | Q6: 89280 | R6: 95100 | S6: 88380 | T6: 94260 | U6: 81620 | V6: 80400
A7: March | B7: - | C7: - | D7: - | E7: - | F7: - | G7: - | H7: - | I7: - | J7: - | K7: - | L7: - | M7: - | N7: - | O7: - | P7: 82380 | Q7: 82360 | R7: 108180 | S7: 88420 | T7: 170040 | U7: 81540 | V7: 84540
A8: April | B8: - | C8: - | D8: - | E8: - | F8: - | G8: - | H8: - | I8: - | J8: - | K8: - | L8: - | M8: - | N8: - | O8: - | P8: 116900 | Q8: 126640 | R8: 75320 | S8: 123660 | T8: 104860 | U8: 146140 | V8: 108340
A9: May | B9: - | C9: - | D9: - | E9: - | F9: - | G9: - | H9: - | I9: - | J9: - | K9: - | L9: - | M9: - | N9: - | O9: - | P9: 99160 | Q9: 101020 | R9: 60860 | S9: 105760 | T9: 87640 | U9: 89660 | V9: 122560
A10: June | B10: - | C10: - | D10: - | E10: - | F10: - | G10: - | H10: - | I10: - | J10: - | K10: - | L10: - | M10: - | N10: - | O10: - | P10: 115580 | Q10: 114120 | R10: 93720 | S10: 113600 | T10: 101640 | U10: 99580 | V10: 97540
A11: July | B11: - | C11: - | D11: - | E11: - | F11: - | G11: - | H11: - | I11: - | J11: - | K11: - | L11: - | M11: - | N11: - | O11: - | P11: 107160 | Q11: 112520 | R11: 109200 | S11: 106620 | T11: 121140 | U11: 112720 | V11: 90700
A12: August | B12: - | C12: - | D12: - | E12: - | F12: - | G12: - | H12: - | I12: - | J12: - | K12: - | L12: - | M12: - | N12: - | O12: - | P12: 126900 | Q12: 113940 | R12: 104980 | S12: 115800 | T12: 75280 | U12: 110720 | V12: 98340
A13: September | B13: - | C13: - | D13: - | E13: - | F13: - | G13: - | H13: - | I13: - | J13: - | K13: - | L13: - | M13: - | N13: - | O13: - | P13: 120920 | Q13: 116660 | R13: 111720 | S13: 79540 | T13: 95860 | U13: 96000 | V13: 103280
A14: October | B14: - | C14: - | D14: - | E14: - | F14: - | G14: - | H14: - | I14: - | J14: - | K14: - | L14: - | M14: - | N14: - | O14: - | P14: 116500 | Q14: 121520 | R14: 111880 | S14: 108680 | T14: 99200 | U14: 99620 | V14: 96000
A15: November | B15: - | C15: - | D15: - | E15: - | F15: - | G15: - | H15: - | I15: - | J15: - | K15: - | L15: - | M15: - | N15: - | O15: 93300 | P15: 109460 | Q15: 112420 | R15: 102760 | S15: 88500 | T15: 86580 | U15: 85820 | V15: 90220
A16: December | B16: - | C16: - | D16: - | E16: - | F16: - | G16: - | H16: - | I16: - | J16: - | K16: - | L16: - | M16: - | N16: - | O16: 84180 | P16: 88380 | Q16: 103600 | R16: 112000 | S16: 98420 | T16: 94860 | U16: 91340 | V16: 85960
A17: Total | B17: - | C17: - | D17: - | E17: - | F17: - | G17: - | H17: - | I17: - | J17: - | K17: - | L17: - | M17: - | N17: - | O17: =SUM(O5:O16) -> 177480 | P17: 1264340 | Q17: 1302900 | R17: 1188400 | S17: 1222680 | T17: 1223700 | U17: =SUM(U5:U16) -> 1189300 | V17: =SUM(V5:V16) -> 1159660
A18: Hidden columns B-N do not contain any data for CY 2004-2016
A19: ='Lod&Liq'!A71:F71 -> Source: Minnesota Department of Revenue, Tax Research Division, November 2025
A20: end of worksheet

Sheet Scott (hidden)
A1: Scott County Monthly Detail for Minnesota Local Sales & Use Tax
A2: ='Lod&Liq'!A2 -> CY 2024
A3: Scott County Transit Vehicle Excise Tax ($20)
A4: Month | B4: 2004 | C4: 2005 | D4: 2006 | E4: 2007 | F4: 2008 | G4: 2009 | H4: 2010 | I4: 2011 | J4: 2012 | K4: 2013 | L4: 2014 | M4: 2015 | N4: 2016 | O4: 2017 | P4: 2018 | Q4: 2019 | R4: 2020 | S4: 2021 | T4: 2022 | U4: 2023 | V4: 2024
A5: January | B5: - | C5: - | D5: - | E5: - | F5: - | G5: - | H5: - | I5: - | J5: - | K5: - | L5: - | M5: - | N5: 13660 | O5: 23400 | P5: 20380 | Q5: 19720 | R5: 39080 | S5: 25180 | T5: 22620 | U5: 24900 | V5: 24240
A6: February | B6: - | C6: - | D6: - | E6: - | F6: - | G6: - | H6: - | I6: - | J6: - | K6: - | L6: - | M6: - | N6: 12440 | O6: 15840 | P6: 21240 | Q6: 25000 | R6: 27450 | S6: 19940 | T6: 19420 | U6: 18860 | V6: 21120
A7: March | B7: - | C7: - | D7: - | E7: - | F7: - | G7: - | H7: - | I7: - | J7: - | K7: - | L7: - | M7: - | N7: 13980 | O7: 16860 | P7: 18020 | Q7: 19080 | R7: 22055 | S7: 21600 | T7: 19040 | U7: 22820 | V7: 22220
A8: April | B8: - | C8: - | D8: - | E8: - | F8: - | G8: - | H8: - | I8: - | J8: - | K8: - | L8: - | M8: - | N8: 18920 | O8: 22540 | P8: 28160 | Q8: 33520 | R8: 24855 | S8: 42000 | T8: 30760 | U8: 25600 | V8: 22100
A9: May | B9: - | C9: - | D9: - | E9: - | F9: - | G9: - | H9: - | I9: - | J9: - | K9: - | L9: - | M9: - | N9: 18540 | O9: 22220 | P9: 21600 | Q9: 29520 | R9: 18080 | S9: 32180 | T9: 23220 | U9: 23960 | V9: 21720
A10: June | B10: - | C10: - | D10: - | E10: - | F10: - | G10: - | H10: - | I10: - | J10: - | K10: - | L10: - | M10: - | N10: 22140 | O10: 22440 | P10: 26780 | Q10: 25200 | R10: 29080 | S10: 30800 | T10: 31800 | U10: 25960 | V10: 22200
A11: July | B11: - | C11: - | D11: - | E11: - | F11: - | G11: - | H11: - | I11: - | J11: - | K11: - | L11: - | M11: - | N11: 20560 | O11: 18760 | P11: 28460 | Q11: 33860 | R11: 39440 | S11: 21640 | T11: 24880 | U11: 28500 | V11: 20960
A12: August | B12: - | C12: - | D12: - | E12: - | F12: - | G12: - | H12: - | I12: - | J12: - | K12: - | L12: - | M12: - | N12: 19320 | O12: 24120 | P12: 24560 | Q12: 25180 | R12: 29620 | S12: 33200 | T12: 23180 | U12: 23380 | V12: 21420
A13: September | B13: - | C13: - | D13: - | E13: - | F13: - | G13: - | H13: - | I13: - | J13: - | K13: - | L13: - | M13: - | N13: 20200 | O13: 21000 | P13: 22900 | Q13: 24080 | R13: 29460 | S13: 22960 | T13: 25880 | U13: 23860 | V13: 22060
A14: October | B14: - | C14: - | D14: - | E14: - | F14: - | G14: - | H14: - | I14: - | J14: - | K14: - | L14: - | M14: - | N14: 19720 | O14: 18880 | P14: 19940 | Q14: 25780 | R14: 33980 | S14: 24600 | T14: 23400 | U14: 26060 | V14: 22160
A15: November | B15: - | C15: - | D15: - | E15: - | F15: - | G15: - | H15: - | I15: - | J15: - | K15: - | L15: - | M15: 12400 | N15: 15540 | O15: 19180 | P15: 20720 | Q15: 29550 | R15: 25040 | S15: 22060 | T15: 26460 | U15: 21500 | V15: 19980
A16: December | B16: - | C16: - | D16: - | E16: - | F16: - | G16: - | H16: - | I16: - | J16: - | K16: - | L16: - | M16: 12960 | N16: 14360 | O16: 17240 | P16: 16920 | Q16: 31515 | R16: 15300 | S16: 21100 | T16: 18100 | U16: 18100 | V16: 18040
A17: Total | B17: - | C17: - | D17: - | E17: - | F17: - | G17: - | H17: - | I17: - | J17: - | K17: - | L17: - | M17: =SUM(M5:M16) -> 25360 | N17: 209380 | O17: 242480 | P17: 269680 | Q17: 322005 | R17: =SUM(R5:R16) -> 333440 | S17: =SUM(S5:S16) -> 317260 | T17: 288760 | U17: =SUM(U5:U16) -> 283500 | V17: =SUM(V5:V16) -> 258220
A18: Hidden columns B-L do not contain any data for CY 2004-2014
A19: ='Lod&Liq'!A71:F71 -> Source: Minnesota Department of Revenue, Tax Research Division, November 2025
A20: end of worksheet

Sheet St. Louis (hidden)
A1: St. Louis County Monthly Detail for Minnesota Local Sales & Use Tax
A2: ='Lod&Liq'!A2 -> CY 2024
A3: St. Louis County Transit Vehicle Excise Tax ($20)
A4: Month | B4: 2004 | C4: 2005 | D4: 2006 | E4: 2007 | F4: 2008 | G4: 2009 | H4: 2010 | I4: 2011 | J4: 2012 | K4: 2013 | L4: 2014 | M4: 2015 | N4: 2016 | O4: 2017 | P4: 2018 | Q4: 2019 | R4: 2020 | S4: 2021 | T4: 2022 | U4: 2023 | V4: 2024
A5: January | B5: - | C5: - | D5: - | E5: - | F5: - | G5: - | H5: - | I5: - | J5: - | K5: - | L5: - | M5: - | N5: 29920 | O5: 37320 | P5: 26440 | Q5: 32680 | R5: 42680 | S5: 34160 | T5: 29960 | U5: 25480 | V5: 26280
A6: February | B6: - | C6: - | D6: - | E6: - | F6: - | G6: - | H6: - | I6: - | J6: - | K6: - | L6: - | M6: - | N6: 18460 | O6: 21900 | P6: 28640 | Q6: 26440 | R6: 36540 | S6: 40360 | T6: 29340 | U6: 6440 | V6: 23820
A7: March | B7: - | C7: - | D7: - | E7: - | F7: - | G7: - | H7: - | I7: - | J7: - | K7: - | L7: - | M7: - | N7: 22500 | O7: 24520 | P7: 27500 | Q7: 33260 | R7: 36360 | S7: 30660 | T7: 31480 | U7: 24280 | V7: 26180
A8: April | B8: - | C8: - | D8: - | E8: - | F8: - | G8: - | H8: - | I8: - | J8: - | K8: - | L8: - | M8: - | N8: 27640 | O8: 30900 | P8: 39780 | Q8: 39440 | R8: 32060 | S8: 47140 | T8: 34340 | U8: 31120 | V8: 30300
A9: May | B9: - | C9: - | D9: - | E9: - | F9: - | G9: - | H9: - | I9: - | J9: - | K9: - | L9: - | M9: 26320 | N9: 28020 | O9: 27200 | P9: 34280 | Q9: 36780 | R9: 25660 | S9: 39520 | T9: 25360 | U9: 28080 | V9: 30800
A10: June | B10: - | C10: - | D10: - | E10: - | F10: - | G10: - | H10: - | I10: - | J10: - | K10: - | L10: - | M10: 25040 | N10: 26380 | O10: 29340 | P10: 35640 | Q10: 40380 | R10: -5300 | S10: 37400 | T10: 31600 | U10: 32000 | V10: 30540
A11: July | B11: - | C11: - | D11: - | E11: - | F11: - | G11: - | H11: - | I11: - | J11: - | K11: - | L11: - | M11: 29820 | N11: 25920 | O11: 32580 | P11: 35900 | Q11: 41080 | R11: 46200 | S11: 38980 | T11: 34860 | U11: 34420 | V11: 29060
A12: August | B12: - | C12: - | D12: - | E12: - | F12: - | G12: - | H12: - | I12: - | J12: - | K12: - | L12: - | M12: 28140 | N12: 29120 | O12: 29320 | P12: 38120 | Q12: 39000 | R12: 44080 | S12: 32640 | T12: 32040 | U12: 29000 | V12: 30040
A13: September | B13: - | C13: - | D13: - | E13: - | F13: - | G13: - | H13: - | I13: - | J13: - | K13: - | L13: - | M13: 27740 | N13: 31540 | O13: 32300 | P13: 38500 | Q13: 44660 | R13: 36620 | S13: 35280 | T13: 31580 | U13: 32580 | V13: 30700
A14: October | B14: - | C14: - | D14: - | E14: - | F14: - | G14: - | H14: - | I14: - | J14: - | K14: - | L14: - | M14: 28480 | N14: 28420 | O14: 33000 | P14: 35400 | Q14: 43520 | R14: 38440 | S14: 33880 | T14: 30880 | U14: 31020 | V14: 29120
A15: November | B15: - | C15: - | D15: - | E15: - | F15: - | G15: - | H15: - | I15: - | J15: - | K15: - | L15: - | M15: 23960 | N15: 24280 | O15: 26240 | P15: 33940 | Q15: 39200 | R15: 31580 | S15: 27180 | T15: 27800 | U15: 28740 | V15: 29960
A16: December | B16: - | C16: - | D16: - | E16: - | F16: - | G16: - | H16: - | I16: - | J16: - | K16: - | L16: - | M16: 20140 | N16: 21320 | O16: 26840 | P16: 34380 | Q16: 38540 | R16: 25840 | S16: 21020 | T16: 23760 | U16: 31360 | V16: 24980
A17: Total | B17: - | C17: - | D17: - | E17: - | F17: - | G17: - | H17: - | I17: - | J17: - | K17: - | L17: - | M17: =SUM(M5:M16) -> 209640 | N17: 313520 | O17: 351460 | P17: 408520 | Q17: 454980 | R17: =SUM(R5:R16) -> 390760 | S17: =SUM(S5:S16) -> 418220 | T17: 363000 | U17: =SUM(U5:U16) -> 334520 | V17: =SUM(V5:V16) -> 341780
A18: Hidden columns B-L do not contain any data for CY 2004-2014
A19: ='Lod&Liq'!A71:F71 -> Source: Minnesota Department of Revenue, Tax Research Division, November 2025
A20: end of worksheet

Sheet Washington (hidden)
A1: Washington County Monthly Detail for Minnesota Local Sales & Use Tax
A2: ='Lod&Liq'!A2 -> CY 2024
A3: Washington County Transit Vehicle Excise Tax ($20)
A4: Month | B4: 2004 | C4: 2005 | D4: 2006 | E4: 2007 | F4: 2008 | G4: 2009 | H4: 2010 | I4: 2011 | J4: 2012 | K4: 2013 | L4: 2014 | M4: 2015 | N4: 2016 | O4: 2017 | P4: 2018 | Q4: 2019 | R4: 2020 | S4: 2021 | T4: 2022 | U4: 2023 | V4: 2024
A5: January | B5: - | C5: - | D5: - | E5: - | F5: - | G5: - | H5: - | I5: - | J5: - | K5: - | L5: - | M5: - | N5: - | O5: - | P5: 36000 | Q5: 33200 | R5: 36520 | S5: 35160 | T5: 33440 | U5: 27300 | V5: 28020
A6: February | B6: - | C6: - | D6: - | E6: - | F6: - | G6: - | H6: - | I6: - | J6: - | K6: - | L6: - | M6: - | N6: - | O6: - | P6: 32540 | Q6: 33740 | R6: 31860 | S6: 41180 | T6: 24080 | U6: 26840 | V6: 19920
A7: March | B7: - | C7: - | D7: - | E7: - | F7: - | G7: - | H7: - | I7: - | J7: - | K7: - | L7: - | M7: - | N7: - | O7: - | P7: 26980 | Q7: 28600 | R7: 24040 | S7: 24580 | T7: 28880 | U7: 24740 | V7: 22720
A8: April | B8: - | C8: - | D8: - | E8: - | F8: - | G8: - | H8: - | I8: - | J8: - | K8: - | L8: - | M8: - | N8: - | O8: - | P8: 43680 | Q8: 44160 | R8: 31580 | S8: 51080 | T8: 32220 | U8: 28240 | V8: 28700
A9: May | B9: - | C9: - | D9: - | E9: - | F9: - | G9: - | H9: - | I9: - | J9: - | K9: - | L9: - | M9: - | N9: - | O9: - | P9: 38400 | Q9: 40260 | R9: 20500 | S9: 34200 | T9: 27580 | U9: 25340 | V9: 36540
A10: June | B10: - | C10: - | D10: - | E10: - | F10: - | G10: - | H10: - | I10: - | J10: - | K10: - | L10: - | M10: - | N10: - | O10: - | P10: 38740 | Q10: 34660 | R10: 31100 | S10: 31560 | T10: 25120 | U10: 27200 | V10: 29980
A11: July | B11: - | C11: - | D11: - | E11: - | F11: - | G11: - | H11: - | I11: - | J11: - | K11: - | L11: - | M11: - | N11: - | O11: - | P11: 43020 | Q11: 38800 | R11: 37660 | S11: 38420 | T11: 29920 | U11: 31920 | V11: 29680
A12: August | B12: - | C12: - | D12: - | E12: - | F12: - | G12: - | H12: - | I12: - | J12: - | K12: - | L12: - | M12: - | N12: - | O12: - | P12: 33300 | Q12: 38560 | R12: 35820 | S12: 34580 | T12: 16820 | U12: 24040 | V12: 21580
A13: September | B13: - | C13: - | D13: - | E13: - | F13: - | G13: - | H13: - | I13: - | J13: - | K13: - | L13: - | M13: - | N13: - | O13: - | P13: 26880 | Q13: 32900 | R13: 28700 | S13: 34100 | T13: 23640 | U13: 23040 | V13: 22580
A14: October | B14: - | C14: - | D14: - | E14: - | F14: - | G14: - | H14: - | I14: - | J14: - | K14: - | L14: - | M14: - | N14: - | O14: - | P14: 36340 | Q14: 36460 | R14: 33400 | S14: 29020 | T14: 27120 | U14: 30980 | V14: 30760
A15: November | B15: - | C15: - | D15: - | E15: - | F15: - | G15: - | H15: - | I15: - | J15: - | K15: - | L15: - | M15: - | N15: - | O15: 25280 | P15: 31080 | Q15: 29120 | R15: 22880 | S15: 26200 | T15: 19420 | U15: 24280 | V15: 21800
A16: December | B16: - | C16: - | D16: - | E16: - | F16: - | G16: - | H16: - | I16: - | J16: - | K16: - | L16: - | M16: - | N16: - | O16: 27020 | P16: 33020 | Q16: 31220 | R16: 31500 | S16: 20480 | T16: 18500 | U16: 18860 | V16: 20940
A17: Total | B17: - | C17: - | D17: - | E17: - | F17: - | G17: - | H17: - | I17: - | J17: - | K17: - | L17: - | M17: - | N17: - | O17: =SUM(O5:O16) -> 52300 | P17: 419980 | Q17: 421680 | R17: 365560 | S17: 400560 | T17: 306740 | U17: =SUM(U5:U16) -> 312780 | V17: =SUM(V5:V16) -> 313220
A18: Hidden columns B-N do not contain any data for CY 2004-2016
A19: ='Lod&Liq'!A71:F71 -> Source: Minnesota Department of Revenue, Tax Research Division, November 2025
A20: end of worksheet

Sheet Otter Tail (hidden)
A1: Otter Tail County Monthly Detail for Minnesota Local Sales & Use Tax
A2: ='Lod&Liq'!A2 -> CY 2024
A3: Otter Tail County Transit Vehicle Excise Tax ($20)
A4: Month | B4: 2004 | C4: 2005 | D4: 2006 | E4: 2007 | F4: 2008 | G4: 2009 | H4: 2010 | I4: 2011 | J4: 2012 | K4: 2013 | L4: 2014 | M4: 2015 | N4: 2016 | O4: 2017 | P4: 2018 | Q4: 2019 | R4: 2020 | S4: 2021 | T4: 2022 | U4: 2023 | V4: 2024
A5: January | B5: - | C5: - | D5: - | E5: - | F5: - | G5: - | H5: - | I5: - | J5: - | K5: - | L5: - | M5: - | N5: 0 | O5: 5620 | P5: 6720 | Q5: 8260 | R5: 68940 | S5: 8820 | T5: 6540 | U5: 9220 | V5: 11340
A6: February | B6: - | C6: - | D6: - | E6: - | F6: - | G6: - | H6: - | I6: - | J6: - | K6: - | L6: - | M6: - | N6: 4700 | O6: 6900 | P6: 8420 | Q6: 8780 | R6: 7140 | S6: 9220 | T6: 10620 | U6: 6540 | V6: 9800
A7: March | B7: - | C7: - | D7: - | E7: - | F7: - | G7: - | H7: - | I7: - | J7: - | K7: - | L7: - | M7: - | N7: 4360 | O7: 5080 | P7: 31100 | Q7: 66920 | R7: 67660 | S7: 8000 | T7: 7460 | U7: 6520 | V7: 6540
A8: April | B8: - | C8: - | D8: - | E8: - | F8: - | G8: - | H8: - | I8: - | J8: - | K8: - | L8: - | M8: - | N8: 6000 | O8: 6580 | P8: 8920 | Q8: 9660 | R8: 6460 | S8: 11340 | T8: 7680 | U8: 8620 | V8: 8460
A9: May | B9: - | C9: - | D9: - | E9: - | F9: - | G9: - | H9: - | I9: - | J9: - | K9: - | L9: - | M9: - | N9: 5240 | O9: 6380 | P9: 5520 | Q9: 9560 | R9: 5980 | S9: 10800 | T9: 7360 | U9: 17146 | V9: 7940
A10: June | B10: - | C10: - | D10: - | E10: - | F10: - | G10: - | H10: - | I10: - | J10: - | K10: - | L10: - | M10: - | N10: 5460 | O10: 6600 | P10: 8580 | Q10: 9460 | R10: 9360 | S10: 9880 | T10: 6300 | U10: 8440 | V10: 8120
A11: July | B11: - | C11: - | D11: - | E11: - | F11: - | G11: - | H11: - | I11: - | J11: - | K11: - | L11: - | M11: - | N11: 5340 | O11: 6300 | P11: 6640 | Q11: 6320 | R11: 8440 | S11: 6580 | T11: 4860 | U11: 8760 | V11: 7380
A12: August | B12: - | C12: - | D12: - | E12: - | F12: - | G12: - | H12: - | I12: - | J12: - | K12: - | L12: - | M12: - | N12: 5040 | O12: 5700 | P12: 12000 | Q12: 11520 | R12: 11320 | S12: 12560 | T12: 4900 | U12: 7320 | V12: 8000
A13: September | B13: - | C13: - | D13: - | E13: - | F13: - | G13: - | H13: - | I13: - | J13: - | K13: - | L13: - | M13: - | N13: 5180 | O13: 6460 | P13: 8780 | Q13: 9460 | R13: 8500 | S13: 7420 | T13: 8000 | U13: 7860 | V13: 7880
A14: October | B14: - | C14: - | D14: - | E14: - | F14: - | G14: - | H14: - | I14: - | J14: - | K14: - | L14: - | M14: - | N14: 5120 | O14: 6080 | P14: 8060 | Q14: 8160 | R14: 8660 | S14: 6960 | T14: 11440 | U14: 8760 | V14: 8860
A15: November | B15: - | C15: - | D15: - | E15: - | F15: - | G15: - | H15: - | I15: - | J15: - | K15: - | L15: - | M15: - | N15: 4900 | O15: 5540 | P15: 7500 | Q15: -51460 | R15: 7860 | S15: 6720 | T15: 6460 | U15: 7460 | V15: 7000
A16: December | B16: - | C16: - | D16: - | E16: - | F16: - | G16: - | H16: - | I16: - | J16: - | K16: - | L16: - | M16: - | N16: 5280 | O16: 4780 | P16: 7960 | Q16: 67840 | R16: 7160 | S16: 6460 | T16: 6300 | U16: 6780 | V16: 7100
A17: Total | B17: - | C17: - | D17: - | E17: - | F17: - | G17: - | H17: - | I17: - | J17: - | K17: - | L17: - | M17: - | N17: =SUM(N5:N16) -> 56620 | O17: 72020 | P17: 120200 | Q17: 164480 | R17: 217480 | S17: =SUM(S5:S16) -> 104760 | T17: 87920 | U17: =SUM(U5:U16) -> 103426 | V17: =SUM(V5:V16) -> 98420
A18: Hidden columns B-M do not contain any data for CY 2004-2015
A19: ='Lod&Liq'!A71:F71 -> Source: Minnesota Department of Revenue, Tax Research Division, November 2025
A20: end of worksheet

Sheet Carlton (hidden)
A1: Carlton County Monthly Detail for Minnesota Local Sales & Use Tax
A2: ='Lod&Liq'!A2 -> CY 2024
A3: Carlton County Transit Vehicle Excise Tax ($20)
A4: Month | B4: 2004 | C4: 2005 | D4: 2006 | E4: 2007 | F4: 2008 | G4: 2009 | H4: 2010 | I4: 2011 | J4: 2012 | K4: 2013 | L4: 2014 | M4: 2015 | N4: 2016 | O4: 2017 | P4: 2018 | Q4: 2019 | R4: 2020 | S4: 2021 | T4: 2022 | U4: 2023 | V4: 2024
A5: January | B5: - | C5: - | D5: - | E5: - | F5: - | G5: - | H5: - | I5: - | J5: - | K5: - | L5: - | M5: - | N5: 3200 | O5: 1860 | P5: 3380 | Q5: 2760 | R5: 2960 | S5: 2700 | T5: 7440 | U5: 2600 | V5: 2140
A6: February | B6: - | C6: - | D6: - | E6: - | F6: - | G6: - | H6: - | I6: - | J6: - | K6: - | L6: - | M6: - | N6: 1380 | O6: 15720 | P6: 2360 | Q6: 2160 | R6: 2100 | S6: 6200 | T6: 1800 | U6: 1560 | V6: 1980
A7: March | B7: - | C7: - | D7: - | E7: - | F7: - | G7: - | H7: - | I7: - | J7: - | K7: - | L7: - | M7: - | N7: 1780 | O7: 2380 | P7: 2440 | Q7: 2160 | R7: 2300 | S7: 1540 | T7: 2320 | U7: 1400 | V7: 2100
A8: April | B8: - | C8: - | D8: - | E8: - | F8: - | G8: - | H8: - | I8: - | J8: - | K8: - | L8: - | M8: - | N8: 2020 | O8: 3040 | P8: 4960 | Q8: 3160 | R8: 2540 | S8: 3540 | T8: 3460 | U8: 2600 | V8: 2760
A9: May | B9: - | C9: - | D9: - | E9: - | F9: - | G9: - | H9: - | I9: - | J9: - | K9: - | L9: - | M9: 1040 | N9: 1880 | O9: 2720 | P9: 3360 | Q9: 3860 | R9: 2060 | S9: 2780 | T9: 3220 | U9: 2280 | V9: 2300
A10: June | B10: - | C10: - | D10: - | E10: - | F10: - | G10: - | H10: - | I10: - | J10: - | K10: - | L10: - | M10: 1040 | N10: 1940 | O10: 3040 | P10: 5060 | Q10: 3760 | R10: 3340 | S10: 2440 | T10: 3400 | U10: 3140 | V10: 3140
A11: July | B11: - | C11: - | D11: - | E11: - | F11: - | G11: - | H11: - | I11: - | J11: - | K11: - | L11: - | M11: 1340 | N11: 2220 | O11: 3780 | P11: 5220 | Q11: 4160 | R11: 4700 | S11: 3280 | T11: 3480 | U11: 2720 | V11: 2580
A12: August | B12: - | C12: - | D12: - | E12: - | F12: - | G12: - | H12: - | I12: - | J12: - | K12: - | L12: - | M12: 1180 | N12: 1480 | O12: 2420 | P12: 4220 | Q12: 3360 | R12: 4980 | S12: 3180 | T12: 2180 | U12: 2720 | V12: 2200
A13: September | B13: - | C13: - | D13: - | E13: - | F13: - | G13: - | H13: - | I13: - | J13: - | K13: - | L13: - | M13: 760 | N13: 1660 | O13: 2700 | P13: 3600 | Q13: 3380 | R13: 3880 | S13: 1680 | T13: 3940 | U13: 2460 | V13: 2680
A14: October | B14: - | C14: - | D14: - | E14: - | F14: - | G14: - | H14: - | I14: - | J14: - | K14: - | L14: - | M14: 1680 | N14: 1880 | O14: 4880 | P14: 3640 | Q14: 3600 | R14: 2900 | S14: 2480 | T14: 3400 | U14: 3100 | V14: 2160
A15: November | B15: - | C15: - | D15: - | E15: - | F15: - | G15: - | H15: - | I15: - | J15: - | K15: - | L15: - | M15: 1000 | N15: 1380 | O15: 5080 | P15: 3260 | Q15: 2840 | R15: 3280 | S15: 1940 | T15: 2000 | U15: 2660 | V15: 2180
A16: December | B16: - | C16: - | D16: - | E16: - | F16: - | G16: - | H16: - | I16: - | J16: - | K16: - | L16: - | M16: 860 | N16: 3800 | O16: 2300 | P16: 2760 | Q16: 2920 | R16: 2540 | S16: 2640 | T16: 2360 | U16: 2440 | V16: 1740
A17: Total | B17: - | C17: - | D17: - | E17: - | F17: - | G17: - | H17: - | I17: - | J17: - | K17: - | L17: - | M17: =SUM(M5:M16) -> 8900 | N17: 24620 | O17: 49920 | P17: 44260 | Q17: 38120 | R17: =SUM(R5:R16) -> 37580 | S17: =SUM(S5:S16) -> 34400 | T17: 39000 | U17: =SUM(U5:U16) -> 29680 | V17: =SUM(V5:V16) -> 27960
A18: Hidden columns B-L do not contain any data for CY 2004-2014
A19: ='Lod&Liq'!A71:F71 -> Source: Minnesota Department of Revenue, Tax Research Division, November 2025
A20: end of worksheet

Sheet Beltrami (hidden)
A1: Beltrami County Monthly Detail for Minnesota Local Sales & Use Tax
A2: ='Lod&Liq'!A2 -> CY 2024
A3: Beltrami County Transit Vehicle Excise Tax ($20)
A4: Month | B4: 2004 | C4: 2005 | D4: 2006 | E4: 2007 | F4: 2008 | G4: 2009 | H4: 2010 | I4: 2011 | J4: 2012 | K4: 2013 | L4: 2014 | M4: 2015 | N4: 2016 | O4: 2017 | P4: 2018 | Q4: 2019 | R4: 2020 | S4: 2021 | T4: 2022 | U4: 2023 | V4: 2024
A5: January | B5: - | C5: - | D5: - | E5: - | F5: - | G5: - | H5: - | I5: - | J5: - | K5: - | L5: - | M5: 5820 | N5: 6460 | O5: 6680 | P5: 19040 | Q5: 8420 | R5: 9000 | S5: 5760 | T5: 5700 | U5: 5500 | V5: 5620
A6: February | B6: - | C6: - | D6: - | E6: - | F6: - | G6: - | H6: - | I6: - | J6: - | K6: - | L6: - | M6: 5440 | N6: 5460 | O6: 3880 | P6: 4180 | Q6: 8400 | R6: 4720 | S6: 3740 | T6: 4620 | U6: 3880 | V6: 3940
A7: March | B7: - | C7: - | D7: - | E7: - | F7: - | G7: - | H7: - | I7: - | J7: - | K7: - | L7: - | M7: 6420 | N7: 6840 | O7: 4640 | P7: 5960 | Q7: 5700 | R7: 6000 | S7: 5800 | T7: 8340 | U7: 4580 | V7: 3900
A8: April | B8: - | C8: - | D8: - | E8: - | F8: - | G8: - | H8: - | I8: - | J8: - | K8: - | L8: - | M8: 6880 | N8: 5600 | O8: 7200 | P8: 8380 | Q8: 8260 | R8: 6980 | S8: 9020 | T8: 7320 | U8: 6360 | V8: 6280
A9: May | B9: - | C9: - | D9: - | E9: - | F9: - | G9: - | H9: - | I9: - | J9: - | K9: - | L9: 5500 | M9: 5760 | N9: 5060 | O9: 6640 | P9: 6320 | Q9: 6620 | R9: 4360 | S9: 7400 | T9: 5060 | U9: 4820 | V9: 5180
A10: June | B10: - | C10: - | D10: - | E10: - | F10: - | G10: - | H10: - | I10: - | J10: - | K10: - | L10: 5560 | M10: 4900 | N10: 4980 | O10: 5480 | P10: 5620 | Q10: 6340 | R10: 6220 | S10: 10900 | T10: 4040 | U10: 5660 | V10: 5280
A11: July | B11: - | C11: - | D11: - | E11: - | F11: - | G11: - | H11: - | I11: - | J11: - | K11: - | L11: 6360 | M11: 8020 | N11: 6240 | O11: 6380 | P11: 6540 | Q11: 8100 | R11: 8720 | S11: 8460 | T11: 6160 | U11: 7260 | V11: 6100
A12: August | B12: - | C12: - | D12: - | E12: - | F12: - | G12: - | H12: - | I12: - | J12: - | K12: - | L12: 6940 | M12: 6560 | N12: 6380 | O12: 5200 | P12: 6320 | Q12: 7460 | R12: 7480 | S12: 6580 | T12: 5540 | U12: 5400 | V12: 5760
A13: September | B13: - | C13: - | D13: - | E13: - | F13: - | G13: - | H13: - | I13: - | J13: - | K13: - | L13: 5520 | M13: 6200 | N13: 6220 | O13: 6600 | P13: 7340 | Q13: 6840 | R13: 6940 | S13: 5420 | T13: 5200 | U13: 5260 | V13: 4380
A14: October | B14: - | C14: - | D14: - | E14: - | F14: - | G14: - | H14: - | I14: - | J14: - | K14: - | L14: 6440 | M14: 11160 | N14: 6240 | O14: 5820 | P14: 6840 | Q14: 7320 | R14: 8200 | S14: 6640 | T14: 6420 | U14: 6640 | V14: 6440
A15: November | B15: - | C15: - | D15: - | E15: - | F15: - | G15: - | H15: - | I15: - | J15: - | K15: - | L15: 6260 | M15: 6300 | N15: 5500 | O15: 6500 | P15: 8140 | Q15: 8300 | R15: 7080 | S15: 5660 | T15: 5180 | U15: 4720 | V15: 4040
A16: December | B16: - | C16: - | D16: - | E16: - | F16: - | G16: - | H16: - | I16: - | J16: - | K16: - | L16: 4580 | M16: 4660 | N16: 4220 | O16: 4040 | P16: 4760 | Q16: 5340 | R16: 4840 | S16: 5720 | T16: 4320 | U16: 4540 | V16: 3980
A17: Total | B17: - | C17: - | D17: - | E17: - | F17: - | G17: - | H17: - | I17: - | J17: - | K17: - | L17: =SUM(L5:L16) -> 47160 | M17: 78120 | N17: 69200 | O17: 69060 | P17: 89440 | Q17: 87100 | R17: =SUM(R5:R16) -> 80540 | S17: =SUM(S5:S16) -> 81100 | T17: 67900 | U17: =SUM(U5:U16) -> 64620 | V17: =SUM(V5:V16) -> 60900
A18: Hidden columns B-K do not contain any data for CY 2004-2013
A19: ='Lod&Liq'!A71:F71 -> Source: Minnesota Department of Revenue, Tax Research Division, November 2025
A20: end of worksheet

Sheet Detroit Lakes (hidden)
A1: Detroit Lakes Monthly Detail for Minnesota Special Sales & Use Tax
A2: ='Lod&Liq'!A2 -> CY 2024
A3: Detroit Lakes Local Restaurant Food & Beverage Tax (1.0%)
A4: Month | B4: 2004 | C4: 2005 | D4: 2006 | E4: 2007 | F4: 2008 | G4: 2009 | H4: 2010 | I4: 2011 | J4: 2012 | K4: 2013 | L4: 2014 | M4: 2015 | N4: 2016 | O4: 2017 | P4: 2018 | Q4: 2019 | R4: 2020 | S4: 2021 | T4: 2022 | U4: 2023 | V4: 2024
A5: January | B5: - | C5: - | D5: - | E5: - | F5: - | G5: - | H5: - | I5: - | J5: 23512 | K5: 25331 | L5: 25642 | M5: 27992 | N5: 29317 | O5: 29551 | P5: 31486 | Q5: 54405 | R5: 34818 | S5: 22359 | T5: 34152 | U5: 33369 | V5: 36828
A6: February | B6: - | C6: - | D6: - | E6: - | F6: - | G6: - | H6: - | I6: - | J6: 21097 | K6: 20983 | L6: 21493 | M6: 25326 | N6: 26304 | O6: 28517 | P6: 30710 | Q6: 53157 | R6: 29790 | S6: 27863 | T6: 30484 | U6: 31512 | V6: 34593
A7: March | B7: - | C7: - | D7: - | E7: - | F7: - | G7: - | H7: - | I7: - | J7: 21258 | K7: 24090 | L7: 22408 | M7: 24299 | N7: 27415 | O7: 27243 | P7: 30517 | Q7: 29045 | R7: 33043 | S7: 26820 | T7: 30405 | U7: 36817 | V7: 43671
A8: April | B8: - | C8: - | D8: - | E8: - | F8: - | G8: - | H8: - | I8: - | J8: 24546 | K8: 23432 | L8: 25582 | M8: 27796 | N8: 29087 | O8: 30929 | P8: 33113 | Q8: 34105 | R8: 25116 | S8: 35071 | T8: 34062 | U8: 36217 | V8: 39767
A9: May | B9: - | C9: - | D9: - | E9: - | F9: - | G9: - | H9: - | I9: 21267 | J9: 23824 | K9: 23823 | L9: 26048 | M9: 28869 | N9: 30233 | O9: 30978 | P9: 31329 | Q9: 33846 | R9: 18232 | S9: 34878 | T9: 33248 | U9: 33967 | V9: 37856
A10: June | B10: - | C10: - | D10: - | E10: - | F10: - | G10: - | H10: - | I10: 25101 | J10: 29758 | K10: 29181 | L10: 32611 | M10: 35066 | N10: 36352 | O10: 37482 | P10: 40697 | Q10: 43250 | R10: 28276 | S10: 43364 | T10: 49301 | U10: 48293 | V10: 49633
A11: July | B11: - | C11: - | D11: - | E11: - | F11: - | G11: - | H11: - | I11: 31679 | J11: 32156 | K11: 31949 | L11: 34931 | M11: 37913 | N11: 37030 | O11: 38629 | P11: 41552 | Q11: 48521 | R11: 43318 | S11: 46483 | T11: 51857 | U11: 60788 | V11: 57098
A12: August | B12: - | C12: - | D12: - | E12: - | F12: - | G12: - | H12: - | I12: 38129 | J12: 44089 | K12: 42669 | L12: 45827 | M12: 45407 | N12: 55797 | O12: 60079 | P12: 62748 | Q12: 59557 | R12: 51763 | S12: 67515 | T12: 62487 | U12: 64933 | V12: 68808
A13: September | B13: - | C13: - | D13: - | E13: - | F13: - | G13: - | H13: - | I13: 32969 | J13: 36987 | K13: 39643 | L13: 42655 | M13: 42907 | N13: 43220 | O13: 44035 | P13: 47523 | Q13: 57426 | R13: 45221 | S13: 51544 | T13: 44839 | U13: 55287 | V13: 58545
A14: October | B14: - | C14: - | D14: - | E14: - | F14: - | G14: - | H14: - | I14: 26616 | J14: 29057 | K14: 29601 | L14: 31711 | M14: 32783 | N14: 36174 | O14: 37504 | P14: 36634 | Q14: 39073 | R14: 36756 | S14: 41376 | T14: 44156 | U14: 47049 | V14: 49129
A15: November | B15: - | C15: - | D15: - | E15: - | F15: - | G15: - | H15: - | I15: 23750 | J15: 24675 | K15: 25961 | L15: 27783 | M15: 29001 | N15: 31669 | O15: 31443 | P15: 31646 | Q15: 34037 | R15: 31984 | S15: 37014 | T15: 38369 | U15: 38973 | V15: 39094
A16: December | B16: - | C16: - | D16: - | E16: - | F16: - | G16: - | H16: - | I16: 21092 | J16: 23091 | K16: 22896 | L16: 24714 | M16: 24572 | N16: 26780 | O16: 32764 | P16: 32314 | Q16: 30306 | R16: 23722 | S16: 30778 | T16: 31667 | U16: 33959 | V16: 38072
A17: Total | B17: - | C17: - | D17: - | E17: - | F17: - | G17: - | H17: - | I17: =SUM(I5:I16) -> 220603 | J17: 334050 | K17: 339559 | L17: 361405 | M17: 381931 | N17: 409378 | O17: 429154 | P17: 450269 | Q17: =SUM(Q5:Q16) -> 516728 | R17: =SUM(R5:R16) -> 402039 | S17: 465065 | T17: =SUM(T5:T16) -> 485027 | U17: =SUM(U5:U16) -> 521164 | V17: =SUM(V5:V16) -> 553094
A18: Hidden columns B-H do not contain any data for CY 2004-2010
A19: ='Lod&Liq'!A71:F71 -> Source: Minnesota Department of Revenue, Tax Research Division, November 2025
A20: end of worksheet

Sheet Giants Ridge (hidden)
A1: Biwabik (Giants Ridge) Monthly Detail for Minnesota Special Sales & Use Tax
A2: ='Lod&Liq'!A2 -> CY 2024
A3: Biwabik (Giants Ridge) Local Food & Beverage Tax (1.0%)
A4: Month | B4: 2004 | C4: 2005 | D4: 2006 | E4: 2007 | F4: 2008 | G4: 2009 | H4: 2010 | I4: 2011 | J4: 2012 | K4: 2013 | L4: 2014 | M4: 2015 | N4: 2016 | O4: 2017 | P4: 2018 | Q4: 2019 | R4: 2020 | S4: 2021 | T4: 2022 | U4: 2023 | V4: 2024
A5: January | B5: - | C5: - | D5: - | E5: - | F5: - | G5: - | H5: - | I5: - | J5: 4000 | K5: 3500 | L5: 3424 | M5: 2561 | N5: 1737 | O5: -176086 | P5: 741 | Q5: 734 | R5: 1144 | S5: 277 | T5: 628 | U5: 793 | V5: 819
A6: February | B6: - | C6: - | D6: - | E6: - | F6: - | G6: - | H6: - | I6: - | J6: 3881 | K6: 3683 | L6: 3784 | M6: 4044 | N6: 2905 | O6: 1220 | P6: 1871 | Q6: 1938 | R6: 1958 | S6: 61 | T6: 5001 | U6: 3132 | V6: 6383
A7: March | B7: - | C7: - | D7: - | E7: - | F7: - | G7: - | H7: - | I7: - | J7: 4783 | K7: 6129 | L7: 3555 | M7: 3282 | N7: 3122 | O7: 2044 | P7: 1891 | Q7: 1905 | R7: 1941 | S7: 706 | T7: 1406 | U7: 1858 | V7: 1984
A8: April | B8: - | C8: - | D8: - | E8: - | F8: - | G8: - | H8: - | I8: - | J8: 5827 | K8: 6985 | L8: 5428 | M8: 5469 | N8: 3737 | O8: 1534 | P8: 1992 | Q8: 1696 | R8: 1146 | S8: 1160 | T8: 2660 | U8: 2501 | V8: 1421
A9: May | B9: - | C9: - | D9: - | E9: - | F9: - | G9: - | H9: - | I9: - | J9: 1783 | K9: 768 | L9: 992 | M9: 607 | N9: 190 | O9: 466 | P9: 524 | Q9: 575 | R9: 14 | S9: 747 | T9: 700 | U9: 962 | V9: 6
A10: June | B10: - | C10: - | D10: - | E10: - | F10: - | G10: - | H10: - | I10: - | J10: 4595 | K10: 4026 | L10: 2741 | M10: 3088 | N10: 1869 | O10: 1156 | P10: 708 | Q10: 821 | R10: 185 | S10: 913 | T10: 731 | U10: 1101 | V10: 1416
A11: July | B11: - | C11: - | D11: - | E11: - | F11: - | G11: - | H11: - | I11: - | J11: 6049 | K11: 7254 | L11: 7038 | M11: 3520 | N11: 7546 | O11: 1936 | P11: 1648 | Q11: 1326 | R11: 663 | S11: 2043 | T11: 2859 | U11: 3104 | V11: 6576
A12: August | B12: - | C12: - | D12: - | E12: - | F12: - | G12: - | H12: - | I12: 682 | J12: 6459 | K12: 7115 | L12: 5878 | M12: 10409 | N12: 1911 | O12: 2058 | P12: 1456 | Q12: 2320 | R12: 1398 | S12: 3458 | T12: 2270 | U12: 2341 | V12: 136
A13: September | B13: - | C13: - | D13: - | E13: - | F13: - | G13: - | H13: - | I13: 181 | J13: 8802 | K13: 9053 | L13: 9171 | M13: 7601 | N13: 2850 | O13: 3043 | P13: 1628 | Q13: 2156 | R13: 1892 | S13: 255 | T13: 4254 | U13: 4371 | V13: 2317
A14: October | B14: - | C14: - | D14: - | E14: - | F14: - | G14: - | H14: - | I14: 978 | J14: 9732 | K14: 9254 | L14: 8025 | M14: 6709 | N14: 2347 | O14: 2245 | P14: 1521 | Q14: 1651 | R14: 1782 | S14: 2883 | T14: 3461 | U14: 2355 | V14: 2779
A15: November | B15: - | C15: - | D15: - | E15: - | F15: - | G15: - | H15: - | I15: 3352 | J15: 1688 | K15: 2155 | L15: 1654 | M15: 1866 | N15: 1556 | O15: 1198 | P15: 1102 | Q15: 931 | R15: 1038 | S15: 1024 | T15: 1450 | U15: 1613 | V15: 4168
A16: December | B16: - | C16: - | D16: - | E16: - | F16: - | G16: - | H16: - | I16: 276 | J16: 537 | K16: 618 | L16: 260 | M16: 85 | N16: 514 | O16: 353 | P16: 491 | Q16: 552 | R16: 96 | S16: 235 | T16: 273 | U16: 474 | V16: 1499
A17: Total | B17: - | C17: - | D17: - | E17: - | F17: - | G17: - | H17: - | I17: =SUM(I5:I16) -> 5469 | J17: 58136 | K17: 60540 | L17: 51950 | M17: 49241 | N17: 30284 | O17: -158833 | P17: 15573 | Q17: =SUM(Q5:Q16) -> 16605 | R17: =SUM(R5:R16) -> 13257 | S17: 13762 | T17: =SUM(T5:T16) -> 25693 | U17: =SUM(U5:U16) -> 24605 | V17: =SUM(V5:V16) -> 29504
A18: Biwabik (Giants Ridge) Local Lodging Tax (2.0%)
A19: Month | B19: 2004 | C19: 2005 | D19: 2006 | E19: 2007 | F19: 2008 | G19: 2009 | H19: 2010 | I19: 2011 | J19: 2012 | K19: 2013 | L19: 2014 | M19: 2015 | N19: 2016 | O19: 2017 | P19: 2018 | Q19: 2019 | R19: 2020 | S19: 2021 | T19: 2022 | U19: 2023 | V19: 2024
A20: January | B20: - | C20: - | D20: - | E20: - | F20: - | G20: - | H20: - | I20: - | J20: 4263 | K20: 4004 | L20: 3020 | M20: 4189 | N20: 5041 | O20: 4280 | P20: 4521 | Q20: 4580 | R20: 5755 | S20: 5902 | T20: 6461 | U20: 6770 | V20: 7474
A21: February | B21: - | C21: - | D21: - | E21: - | F21: - | G21: - | H21: - | I21: - | J21: 4244 | K21: 3412 | L21: 4954 | M21: 6057 | N21: 6455 | O21: 3901 | P21: 5039 | Q21: 5009 | R21: 4817 | S21: 5477 | T21: 6123 | U21: 7570 | V21: 6321
A22: March | B22: - | C22: - | D22: - | E22: - | F22: - | G22: - | H22: - | I22: - | J22: 4259 | K22: 5753 | L22: 4328 | M22: 5059 | N22: 5472 | O22: 6521 | P22: 5635 | Q22: 7449 | R22: 7746 | S22: 4959 | T22: 8494 | U22: 9816 | V22: 9371
A23: April | B23: - | C23: - | D23: - | E23: - | F23: - | G23: - | H23: - | I23: - | J23: 3457 | K23: 4002 | L23: 4220 | M23: 3130 | N23: 3433 | O23: 3914 | P23: 10843 | Q23: 5924 | R23: 3073 | S23: 6354 | T23: 7892 | U23: 8433 | V23: 9988
A24: May | B24: - | C24: - | D24: - | E24: - | F24: - | G24: - | H24: - | I24: - | J24: 1751 | K24: 996 | L24: 749 | M24: 822 | N24: 686 | O24: 808 | P24: 924 | Q24: 1408 | R24: 135 | S24: 978 | T24: 1204 | U24: 2157 | V24: 2425
A25: June | B25: - | C25: - | D25: - | E25: - | F25: - | G25: - | H25: - | I25: - | J25: 1879 | K25: 1104 | L25: 1617 | M25: 2096 | N25: 1778 | O25: 2046 | P25: 2436 | Q25: 2055 | R25: 1186 | S25: 2469 | T25: 1904 | U25: 2567 | V25: 2709
A26: July | B26: - | C26: - | D26: - | E26: - | F26: - | G26: - | H26: - | I26: - | J26: 2625 | K26: 2239 | L26: 2918 | M26: 3354 | N26: 3289 | O26: 4224 | P26: 6261 | Q26: 3892 | R26: 3534 | S26: 7853 | T26: 7658 | U26: 9833 | V26: 8181
A27: August | B27: - | C27: - | D27: - | E27: - | F27: - | G27: - | H27: - | I27: 3844 | J27: 4305 | K27: 4452 | L27: 4575 | M27: 6254 | N27: 7392 | O27: 6739 | P27: 7287 | Q27: 6907 | R27: 7043 | S27: 9936 | T27: 10243 | U27: 10274 | V27: 10753
A28: September | B28: - | C28: - | D28: - | E28: - | F28: - | G28: - | H28: - | I28: 3829 | J28: 4075 | K28: 4659 | L28: 6230 | M28: 5474 | N28: 5592 | O28: 5959 | P28: 5412 | Q28: 6219 | R28: 7618 | S28: 9284 | T28: 9640 | U28: 11084 | V28: 11355
A29: October | B29: - | C29: - | D29: - | E29: - | F29: - | G29: - | H29: - | I29: 3319 | J29: 2655 | K29: 3255 | L29: 3304 | M29: 4109 | N29: 4406 | O29: 4826 | P29: 3513 | Q29: 4474 | R29: 5693 | S29: 6306 | T29: 7210 | U29: 8321 | V29: 7184
A30: November | B30: - | C30: - | D30: - | E30: - | F30: - | G30: - | H30: - | I30: 1504 | J30: 957 | K30: 900 | L30: 2355 | M30: 2058 | N30: 2315 | O30: 2416 | P30: 2667 | Q30: 2785 | R30: 3333 | S30: 3620 | T30: 3579 | U30: 10057 | V30: 4459
A31: December | B31: - | C31: - | D31: - | E31: - | F31: - | G31: - | H31: - | I31: 1687 | J31: 1047 | K31: 1000 | L31: 840 | M31: 1180 | N31: 2196 | O31: 1643 | P31: -1639 | Q31: 1461 | R31: 833 | S31: 1337 | T31: 1140 | U31: 3181 | V31: 1204
A32: Total | B32: - | C32: - | D32: - | E32: - | F32: - | G32: - | H32: - | I32: =SUM(I20:I31) -> 14183 | J32: 35517 | K32: 35776 | L32: 39110 | M32: 43782 | N32: 48055 | O32: 47277 | P32: 52899 | Q32: =SUM(Q20:Q31) -> 52163 | R32: =SUM(R20:R31) -> 50766 | S32: 64475 | T32: =SUM(T20:T31) -> 71548 | U32: =SUM(U20:U31) -> 90063 | V32: =SUM(V20:V31) -> 81424
A33: Biwabik (Giants Ridge) Local Entertainment Tax (2.0%)
A34: Month | B34: 2004 | C34: 2005 | D34: 2006 | E34: 2007 | F34: 2008 | G34: 2009 | H34: 2010 | I34: 2011 | J34: 2012 | K34: 2013 | L34: 2014 | M34: 2015 | N34: 2016 | O34: 2017 | P34: 2018 | Q34: 2019 | R34: 2020 | S34: 2021 | T34: 2022 | U34: 2023 | V34: 2024
A35: January | B35: - | C35: - | D35: - | E35: - | F35: - | G35: - | H35: - | I35: - | J35: 4105 | K35: 3754 | L35: 3134 | M35: 3190 | N35: 2456 | O35: 2995 | P35: 1597 | Q35: 1443 | R35: 1929 | S35: 3545 | T35: 1385 | U35: 1490 | V35: 2434
A36: February | B36: - | C36: - | D36: - | E36: - | F36: - | G36: - | H36: - | I36: - | J36: 3660 | K36: 3247 | L36: 3467 | M36: 4179 | N36: 3730 | O36: 3721 | P36: 5160 | Q36: 6193 | R36: 8789 | S36: 0 | T36: 23722 | U36: 16520 | V36: 12544
A37: March | B37: - | C37: - | D37: - | E37: - | F37: - | G37: - | H37: - | I37: - | J37: 5090 | K37: 5114 | L37: 5052 | M37: 3043 | N37: 4451 | O37: 4775 | P37: 5153 | Q37: 4665 | R37: 5546 | S37: 5091 | T37: 4731 | U37: 8483 | V37: 6786
A38: April | B38: - | C38: - | D38: - | E38: - | F38: - | G38: - | H38: - | I38: - | J38: 4033 | K38: 6043 | L38: 5754 | M38: 4942 | N38: 4200 | O38: 1626 | P38: 6205 | Q38: 4268 | R38: 4668 | S38: 7243 | T38: 10949 | U38: 11087 | V38: 5621
A39: May | B39: - | C39: - | D39: - | E39: - | F39: - | G39: - | H39: - | I39: - | J39: 797 | K39: 614 | L39: 975 | M39: 619 | N39: 295 | O39: 364 | P39: 1634 | Q39: 2236 | R39: 279 | S39: 9476 | T39: 1128 | U39: 1544 | V39: 0
A40: June | B40: - | C40: - | D40: - | E40: - | F40: - | G40: - | H40: - | I40: - | J40: 4555 | K40: 2646 | L40: 2166 | M40: 2152 | N40: 1587 | O40: 1292 | P40: 1656 | Q40: 1003 | R40: 2320 | S40: 2070 | T40: 1974 | U40: 3074 | V40: 2777
A41: July | B41: - | C41: - | D41: - | E41: - | F41: - | G41: - | H41: - | I41: - | J41: 4760 | K41: 5253 | L41: 5640 | M41: 9765 | N41: 4943 | O41: 5987 | P41: 2590 | Q41: 3202 | R41: 4011 | S41: 8527 | T41: 11725 | U41: 12625 | V41: 13125
A42: August | B42: - | C42: - | D42: - | E42: - | F42: - | G42: - | H42: - | I42: 6 | J42: 5676 | K42: 6277 | L42: 6329 | M42: 4259 | N42: 6859 | O42: 7041 | P42: 2982 | Q42: 6220 | R42: 7646 | S42: 13852 | T42: 8495 | U42: 10257 | V42: 15632
A43: September | B43: - | C43: - | D43: - | E43: - | F43: - | G43: - | H43: - | I43: 60 | J43: 8357 | K43: 8014 | L43: 8780 | M43: 8393 | N43: 9491 | O43: 10876 | P43: 3602 | Q43: 7171 | R43: 9618 | S43: 0 | T43: 17584 | U43: 18861 | V43: 12084
A44: October | B44: - | C44: - | D44: - | E44: - | F44: - | G44: - | H44: - | I44: 25 | J44: 6097 | K44: 6346 | L44: 6425 | M44: 6761 | N44: 5851 | O44: 7624 | P44: 3043 | Q44: 4027 | R44: 9752 | S44: 11052 | T44: 12143 | U44: 11264 | V44: 11969
A45: November | B45: - | C45: - | D45: - | E45: - | F45: - | G45: - | H45: - | I45: 16287 | J45: 555 | K45: 1050 | L45: 1074 | M45: 1644 | N45: 1895 | O45: 4697 | P45: 918 | Q45: 1151 | R45: 4852 | S45: 3102 | T45: 3391 | U45: 3433 | V45: 18674
A46: December | B46: - | C46: - | D46: - | E46: - | F46: - | G46: - | H46: - | I46: 114 | J46: 48 | K46: 164 | L46: 219 | M46: 156 | N46: 225 | O46: 1047 | P46: 221 | Q46: 106 | R46: 141 | S46: 479 | T46: 384 | U46: 561 | V46: 2615
A47: Total | B47: - | C47: - | D47: - | E47: - | F47: - | G47: - | H47: - | I47: =SUM(I35:I46) -> 16492 | J47: 47733 | K47: 48522 | L47: 49015 | M47: 49103 | N47: 45983 | O47: 52045 | P47: 34761 | Q47: =SUM(Q35:Q46) -> 41685 | R47: =SUM(R35:R46) -> 59551 | S47: 64437 | T47: =SUM(T35:T46) -> 97611 | U47: =SUM(U35:U46) -> 99199 | V47: =SUM(V35:V46) -> 104261
A48: Hidden columns B-H do not contain any data for CY 2004-2010
A49: ='Lod&Liq'!A71:F71 -> Source: Minnesota Department of Revenue, Tax Research Division, November 2025
A50: end of worksheet

Sheet Mankato (hidden)
A1: Mankato Monthly Detail for Minnesota Special Sales & Use Tax
A2: ='Lod&Liq'!A2 -> CY 2024
A3: Mankato Local Entertainment Tax (0.5%)
A4: Month | B4: 2004 | C4: 2005 | D4: 2006 | E4: 2007 | F4: 2008 | G4: 2009 | H4: 2010 | I4: 2011 | J4: 2012 | K4: 2013 | L4: 2014 | M4: 2015 | N4: 2016 | O4: 2017 | P4: 2018 | Q4: 2019 | R4: 2020 | S4: 2021 | T4: 2022 | U4: 2023 | V4: 2024
A5: January | B5: - | C5: - | D5: - | E5: - | F5: - | G5: - | H5: 5736 | I5: 5736 | J5: 5456 | K5: 5405 | L5: 1994 | M5: 2802 | N5: 3433 | O5: 3123 | P5: 3293 | Q5: 2845 | R5: 4152 | S5: 249 | T5: 4601 | U5: 3406 | V5: 2981
A6: February | B6: - | C6: - | D6: - | E6: - | F6: - | G6: - | H6: 5814 | I6: 4423 | J6: 4682 | K6: 5238 | L6: 1743 | M6: 2759 | N6: 2483 | O6: 2304 | P6: 2669 | Q6: 2629 | R6: 2611 | S6: 683 | T6: 3381 | U6: 2764 | V6: 2791
A7: March | B7: - | C7: - | D7: - | E7: - | F7: - | G7: - | H7: 4732 | I7: 4736 | J7: 5315 | K7: 5357 | L7: 1667 | M7: 2584 | N7: 2899 | O7: 1810 | P7: 2068 | Q7: 1996 | R7: 2664 | S7: 1050 | T7: 1927 | U7: 4713 | V7: 3694
A8: April | B8: - | C8: - | D8: - | E8: - | F8: - | G8: - | H8: 7091 | I8: 6029 | J8: 5901 | K8: 6052 | L8: 1443 | M8: 890 | N8: 1426 | O8: 2931 | P8: 2465 | Q8: 4772 | R8: 1208 | S8: 1233 | T8: 4383 | U8: 3277 | V8: 3279
A9: May | B9: - | C9: - | D9: - | E9: - | F9: - | G9: 4215 | H9: 4359 | I9: 4852 | J9: 8073 | K9: 4404 | L9: 1209 | M9: 1629 | N9: 939 | O9: 4409 | P9: 1615 | Q9: 2600 | R9: 96 | S9: 1078 | T9: 2355 | U9: 2459 | V9: 3917
A10: June | B10: - | C10: - | D10: - | E10: - | F10: - | G10: 4928 | H10: 4633 | I10: 4770 | J10: 4645 | K10: 5387 | L10: 1288 | M10: 1904 | N10: 3604 | O10: 2921 | P10: 3015 | Q10: 2881 | R10: 20 | S10: 1375 | T10: 2675 | U10: 2499 | V10: 2524
A11: July | B11: - | C11: - | D11: - | E11: - | F11: - | G11: 5045 | H11: 4539 | I11: 3836 | J11: 3629 | K11: 4477 | L11: 1828 | M11: 5054 | N11: 1584 | O11: 2100 | P11: 3809 | Q11: 5484 | R11: 639 | S11: 3137 | T11: 4256 | U11: 4819 | V11: 3386
A12: August | B12: - | C12: - | D12: - | E12: - | F12: - | G12: 2344 | H12: 4801 | I12: 5893 | J12: 9107 | K12: 4077 | L12: 2438 | M12: 2733 | N12: 3547 | O12: 3483 | P12: 3458 | Q12: 4983 | R12: 757 | S12: 2224 | T12: 3284 | U12: 3898 | V12: 6089
A13: September | B13: - | C13: - | D13: - | E13: - | F13: - | G13: 3516 | H13: 5851 | I13: 5529 | J13: 5591 | K13: 2329 | L13: 4174 | M13: 4593 | N13: 4480 | O13: 2938 | P13: 3246 | Q13: 3905 | R13: 498 | S13: 4975 | T13: 5517 | U13: 5314 | V13: 5024
A14: October | B14: - | C14: - | D14: - | E14: - | F14: - | G14: 5956 | H14: 5162 | I14: 6403 | J14: 7306 | K14: 1454 | L14: 1818 | M14: 4464 | N14: 1044 | O14: 2545 | P14: 1902 | Q14: 2583 | R14: 636 | S14: 3154 | T14: 4679 | U14: 3915 | V14: 4395
A15: November | B15: - | C15: - | D15: - | E15: - | F15: - | G15: 4918 | H15: 4823 | I15: 4657 | J15: 6121 | K15: 1872 | L15: 3346 | M15: 3400 | N15: 3133 | O15: 2648 | P15: 2306 | Q15: 7195 | R15: 1566 | S15: 5245 | T15: 4015 | U15: 3733 | V15: 4784
A16: December | B16: - | C16: - | D16: - | E16: - | F16: - | G16: 4789 | H16: 4695 | I16: 4829 | J16: 5168 | K16: 2185 | L16: 2089 | M16: 2462 | N16: 2223 | O16: 2685 | P16: 2803 | Q16: 3008 | R16: 461 | S16: 2214 | T16: 2927 | U16: 3576 | V16: 3031
A17: Total | B17: - | C17: - | D17: - | E17: - | F17: - | G17: =SUM(G5:G16) -> 35711 | H17: 62236 | I17: 61693 | J17: 70994 | K17: 48237 | L17: 25037 | M17: 35274 | N17: 30795 | O17: 33897 | P17: 32649 | Q17: =SUM(Q5:Q16) -> 44881 | R17: =SUM(R5:R16) -> 15308 | S17: 26617 | T17: =SUM(T5:T16) -> 44000 | U17: =SUM(U5:U16) -> 44373 | V17: =SUM(V5:V16) -> 45895
A18: Mankato Local Food & Beverage Tax (0.5%)
A19: Month | B19: 2004 | C19: 2005 | D19: 2006 | E19: 2007 | F19: 2008 | G19: 2009 | H19: 2010 | I19: 2011 | J19: 2012 | K19: 2013 | L19: 2014 | M19: 2015 | N19: 2016 | O19: 2017 | P19: 2018 | Q19: 2019 | R19: 2020 | S19: 2021 | T19: 2022 | U19: 2023 | V19: 2024
A20: January | B20: - | C20: - | D20: - | E20: - | F20: - | G20: - | H20: 39570 | I20: 39179 | J20: 44640 | K20: 49577 | L20: 51295 | M20: 59967 | N20: 61436 | O20: 63572 | P20: 60631 | Q20: 66970 | R20: 69815 | S20: 39798 | T20: 67651 | U20: 69663 | V20: 78861
A21: February | B21: - | C21: - | D21: - | E21: - | F21: - | G21: - | H21: 36437 | I21: 38937 | J21: 41238 | K21: 43665 | L21: 79668 | M21: 59347 | N21: 56020 | O21: 55821 | P21: 54667 | Q21: 55429 | R21: 57910 | S21: 47740 | T21: 63425 | U21: 69841 | V21: 66651
A22: March | B22: - | C22: - | D22: - | E22: - | F22: - | G22: - | H22: 37141 | I22: 39069 | J22: 42570 | K22: 44206 | L22: 106851 | M22: 71820 | N22: 54929 | O22: 59033 | P22: 55103 | Q22: 51106 | R22: 60897 | S22: 51532 | T22: 59943 | U22: 73241 | V22: 71835
A23: April | B23: - | C23: - | D23: - | E23: - | F23: - | G23: - | H23: 41061 | I23: 43994 | J23: 55626 | K23: 50764 | L23: 57331 | M23: 58920 | N23: 59619 | O23: 62708 | P23: 63958 | Q23: 66192 | R23: 45296 | S23: 62634 | T23: 68588 | U23: 88852 | V23: 79998
A24: May | B24: - | C24: - | D24: - | E24: - | F24: - | G24: 36284 | H24: 38915 | I24: 43988 | J24: 45420 | K24: 48374 | L24: 54114 | M24: 70536 | N24: 61929 | O24: 63254 | P24: 56649 | Q24: 62672 | R24: 30651 | S24: 61579 | T24: 62911 | U24: 74678 | V24: 74225
A25: June | B25: - | C25: - | D25: - | E25: - | F25: - | G25: 38270 | H25: 39179 | I25: 40767 | J25: 44154 | K25: 46531 | L25: 59388 | M25: 58119 | N25: 57610 | O25: 60583 | P25: 57701 | Q25: 62803 | R25: 39408 | S25: 66346 | T25: 77669 | U25: 71457 | V25: 71874
A26: July | B26: - | C26: - | D26: - | E26: - | F26: - | G26: 33618 | H26: 35198 | I26: 36557 | J26: 34034 | K26: 39889 | L26: 45556 | M26: 45884 | N26: 51232 | O26: 57743 | P26: 55081 | Q26: 57048 | R26: 44977 | S26: 62251 | T26: 60482 | U26: 75353 | V26: 70223
A27: August | B27: - | C27: - | D27: - | E27: - | F27: - | G27: 40674 | H27: 40403 | I27: 42080 | J27: 52934 | K27: 53967 | L27: 54859 | M27: 62737 | N27: 62978 | O27: 71449 | P27: 61596 | Q27: 63821 | R27: 54922 | S27: 68680 | T27: 61522 | U27: 68122 | V27: 64116
A28: September | B28: - | C28: - | D28: - | E28: - | F28: - | G28: 41635 | H28: 40474 | I28: 47439 | J28: 47596 | K28: 53508 | L28: 54840 | M28: 167895 | N28: 68394 | O28: 61658 | P28: 61428 | Q28: 62626 | R28: 55334 | S28: 66626 | T28: 68975 | U28: 72616 | V28: 94094.26
A29: October | B29: - | C29: - | D29: - | E29: - | F29: - | G29: 37859 | H29: 40607 | I29: 44383 | J29: 45524 | K29: 53631 | L29: 55059 | M29: 58750 | N29: 63142 | O29: 64128 | P29: 60102 | Q29: 61746 | R29: 58566 | S29: 67250 | T29: 72294 | U29: 85681 | V29: 73496
A30: November | B30: - | C30: - | D30: - | E30: - | F30: - | G30: 41334 | H30: 42231 | I30: 45397 | J30: 47682 | K30: 54470 | L30: 57146 | M30: 69035 | N30: 73306 | O30: 63869 | P30: 62326 | Q30: 66750 | R30: 57919 | S30: 70375 | T30: 74507 | U30: 74790 | V30: 80175
A31: December | B31: - | C31: - | D31: - | E31: - | F31: - | G31: 38204 | H31: 36521 | I31: 39821 | J31: 50001 | K31: 50517 | L31: 52992 | M31: 54662 | N31: 56712 | O31: 58227 | P31: 57850 | Q31: 60875 | R31: 45864 | S31: 60340 | T31: 66990 | U31: 68101 | V31: 73407
A32: Total | B32: - | C32: - | D32: - | E32: - | F32: - | G32: =SUM(G20:G31) -> 307878 | H32: 467737 | I32: 501611 | J32: 551419 | K32: 589099 | L32: 729099 | M32: 837672 | N32: 727307 | O32: 742045 | P32: 707092 | Q32: =SUM(Q20:Q31) -> 738038 | R32: =SUM(R20:R31) -> 621559 | S32: 725151 | T32: =SUM(T20:T31) -> 804957 | U32: =SUM(U20:U31) -> 892395 | V32: =SUM(V20:V31) -> 898955.26
A33: Hidden columns B-F do not contain any data for CY 2004-2008
A34: ='Lod&Liq'!A71:F71 -> Source: Minnesota Department of Revenue, Tax Research Division, November 2025
A35: end of worksheet

Sheet Minneapolis (hidden)
A1: Minneapolis Monthly Detail for Minnesota Special Sales & Use Tax
A2: ='Lod&Liq'!A2 -> CY 2024
A3: Minneapolis Downtown Liquor Tax (3.0%)
A4: Month | B4: 2004 | C4: 2005 | D4: 2006 | E4: 2007 | F4: 2008 | G4: 2009 | H4: 2010 | I4: 2011 | J4: 2012 | K4: 2013 | L4: 2014 | M4: 2015 | N4: 2016 | O4: 2017 | P4: 2018 | Q4: 2019 | R4: 2020 | S4: 2021 | T4: 2022 | U4: 2023 | V4: 2024
A5: January | B5: 321062.01 | C5: 356409 | D5: 340968.79 | E5: 363027 | F5: 353603 | G5: 358567 | H5: 320401 | I5: 324470 | J5: 380139 | K5: 451483 | L5: 400958 | M5: 400871 | N5: 436295 | O5: 534046 | P5: 513262 | Q5: 535331 | R5: 542582 | S5: 19840 | T5: 365455 | U5: 414195 | V5: 564013
A6: February | B6: 253258 | C6: 264695 | D6: 257725.47 | E6: 300584.52 | F6: 291103 | G6: 345283 | H6: 265260 | I6: 301268 | J6: 301591 | K6: 304256 | L6: 320386 | M6: 355624 | N6: 355857 | O6: 398165 | P6: 474617 | Q6: 382229 | R6: 383991 | S6: 42720 | T6: 226602 | U6: 315962 | V6: 310803
A7: March | B7: 259449 | C7: 277502 | D7: 252657 | E7: 241733 | F7: 337702.04 | G7: 292479 | H7: 266057 | I7: 338081 | J7: 315174 | K7: 339789 | L7: 343067 | M7: 336548 | N7: 326928 | O7: 378350 | P7: 623742 | Q7: 547392 | R7: 387539 | S7: 69780 | T7: 270905 | U7: 301780 | V7: 451569
A8: April | B8: 274464.27 | C8: 297289 | D8: 290176.01 | E8: 312650 | F8: 315788.54 | G8: 294989 | H8: 332697 | I8: 312550 | J8: 820666 | K8: 362869 | L8: 367733 | M8: 418370 | N8: 380219 | O8: 409560 | P8: 401896 | Q8: 464149 | R8: 173425 | S8: 51340 | T8: 375087 | U8: 358396 | V8: 458861
A9: May | B9: 267752 | C9: 354872.48 | D9: 280105 | E9: 281560 | F9: 327194.49 | G9: 375973 | H9: 435205 | I9: 450454 | J9: 511587 | K9: 422086 | L9: 400143 | M9: 402316 | N9: 518319 | O9: 450933 | P9: 449562 | Q9: 595383 | R9: 9993 | S9: 169970 | T9: 425039 | U9: 466810 | V9: 514736
A10: June | B10: 306295.26 | C10: 272402 | D10: 276780.9 | E10: 307180.8 | F10: 334823 | G10: 293738 | H10: 527538 | I10: 392667 | J10: 427731 | K10: 494835 | L10: 456497 | M10: 500525 | N10: 456569 | O10: 473137 | P10: 497231 | Q10: 580424 | R10: 38900 | S10: 255985 | T10: 404003 | U10: 507898 | V10: 602589
A11: July | B11: 234296 | C11: 240183.74 | D11: 225717.67 | E11: 306290 | F11: 281935.11 | G11: 231299 | H11: 373104 | I11: 383487 | J11: 432759 | K11: 422820 | L11: 421823 | M11: 468978 | N11: 484680 | O11: 484072 | P11: 559589 | Q11: 599754 | R11: 57211 | S11: 235454 | T11: 496318 | U11: 562373 | V11: 554353
A12: August | B12: 368356.83 | C12: 383163 | D12: 376946.02 | E12: 360462 | F12: 367263 | G12: 344351 | H12: 502783 | I12: 567551 | J12: 547316 | K12: 610693 | L12: 636961 | M12: 601103 | N12: 518925 | O12: 592038 | P12: 606579 | Q12: 560919 | R12: 105843 | S12: 355513 | T12: 387784 | U12: 421867 | V12: 461269
A13: September | B13: 284320 | C13: 295792 | D13: 303497 | E13: 325762 | F13: 396634.61 | G13: 309355 | H13: 409179 | I13: 489992 | J13: 415064 | K13: 461075 | L13: 500618 | M13: 464323 | N13: 531237 | O13: 507172 | P13: 582862 | Q13: 613099 | R13: 103160 | S13: 314947 | T13: 515707 | U13: 517457 | V13: 587254
A14: October | B14: 291067 | C14: 325137.5 | D14: 452362.69 | E14: 357958.76 | F14: 383856 | G14: 319765 | H14: 465468 | I14: 413227 | J14: 480135 | K14: 450490 | L14: 551490 | M14: 469751 | N14: 494869 | O14: 657009 | P14: 585099 | Q14: 612533 | R14: 215556 | S14: 372011 | T14: 494718 | U14: 602369 | V14: 548573
A15: November | B15: 305142 | C15: 279152 | D15: 317268.68 | E15: 337007.56 | F15: * | G15: 361880 | H15: 448040 | I15: 352544 | J15: 469273 | K15: 444834 | L15: 423899 | M15: 461484 | N15: 528528 | O15: 553947 | P15: 524576 | Q15: 522896 | R15: 115019 | S15: 423309 | T15: 481231 | U15: 555414 | V15: 458877
A16: December | B16: 317584 | C16: 279628.05 | D16: 300199 | E16: 385113.18 | F16: 620644 | G16: 297447 | H16: 272588 | I16: 303650 | J16: 356480 | K16: 379559 | L16: 432874 | M16: 370028 | N16: 432745 | O16: 419037 | P16: 462099 | Q16: 489948 | R16: 70234 | S16: 392991 | T16: 463526 | U16: 444642 | V16: 489982
A17: Total | B17: =SUM(B5:B16) -> 3483046.37 | C17: 3626225.77 | D17: 3674404.23 | E17: 3879328.82 | F17: 4010546.79 | G17: 3825126 | H17: 4618320 | I17: 4629941 | J17: =SUM(J5:J16) -> 5457915 | K17: 5144789 | L17: 5256449 | M17: 5249921 | N17: 5465171 | O17: 5857466 | P17: 6281114 | Q17: =SUM(Q5:Q16) -> 6504057 | R17: =SUM(R5:R16) -> 2203453 | S17: 2703860 | T17: =SUM(T5:T16) -> 4906375 | U17: =SUM(U5:U16) -> 5469163 | V17: =SUM(V5:V16) -> 6002879
A18: Minneapolis Local Entertainment Tax - Includes Lodging (3%)
A19: Month | B19: 2004 | C19: 2005 | D19: 2006 | E19: 2007 | F19: 2008 | G19: 2009 | H19: 2010 | I19: 2011 | J19: 2012 | K19: 2013 | L19: 2014 | M19: 2015 | N19: 2016 | O19: 2017 | P19: 2018 | Q19: 2019 | R19: 2020 | S19: 2021 | T19: 2022 | U19: 2023 | V19: 2024
A20: January | B20: 570420 | C20: 745801.43 | D20: 778638.77 | E20: 763423.75 | F20: 696929.62 | G20: 793915 | H20: 566550 | I20: 727614 | J20: 774404 | K20: 987185 | L20: 816397 | M20: 1117019 | N20: 1276874 | O20: 1533118 | P20: 1627964 | Q20: 1576899 | R20: 2159627 | S20: 98704 | T20: 1988274 | U20: 2139496 | V20: 2282006
A21: February | B21: 817619.88 | C21: 764829.98 | D21: 642862 | E21: 753103.32 | F21: 693095 | G21: 855137 | H21: 588715 | I21: 639898 | J21: 742608 | K21: 704621 | L21: 867917 | M21: 1485898 | N21: 1077974 | O21: 1287372 | P21: 1599368 | Q21: 1056706 | R21: 1217517 | S21: 23931 | T21: 1582249 | U21: 2116194 | V21: 1066931
A22: March | B22: 669500 | C22: 825965.34 | D22: 734277.76 | E22: 763534.86 | F22: 775384.19 | G22: 598137 | H22: 737456 | I22: 874829 | J22: 669884 | K22: 720067 | L22: 840093 | M22: 848148 | N22: 1132228 | O22: 1035052 | P22: 1757188 | Q22: 1377642 | R22: 1116748 | S22: 200553 | T22: 1063706 | U22: 1178074 | V22: 1349026
A23: April | B23: 712887 | C23: 729455 | D23: 786508.62 | E23: 842373.95 | F23: 799611 | G23: 658608 | H23: 736603 | I23: 863822 | J23: 1071163 | K23: 902553 | L23: 979117 | M23: 1121955 | N23: 1172325 | O23: 1260675 | P23: 1256045 | Q23: 1607889 | R23: 585593 | S23: 326168 | T23: 1418777 | U23: 1439525 | V23: 2117430
A24: May | B24: 782513.48 | C24: 801832.15 | D24: 843789 | E24: 784686 | F24: 817141.09 | G24: 802604 | H24: 1322127 | I24: 1355378 | J24: 1392630 | K24: 1337560 | L24: 1278304 | M24: 1387957 | N24: 1507730 | O24: 1390573 | P24: 1661254 | Q24: 2586730 | R24: 79318 | S24: 499340 | T24: 1583584 | U24: 1974288 | V24: 2512013
A25: June | B25: 957437.31 | C25: 650961 | D25: 770781 | E25: 990604.29 | F25: 815603 | G25: 992792 | H25: 1706154 | I25: 1359415 | J25: 1488484 | K25: 1382437 | L25: 1483083 | M25: 2178800 | N25: 1811443 | O25: 1593449 | P25: 1733406 | Q25: 2109550 | R25: -972198 | S25: 628804 | T25: 1686975 | U25: -778902 | V25: 3378795
A26: July | B26: 304201.71 | C26: 464409.48 | D26: 381890.48 | E26: 573015 | F26: 596061.76 | G26: 397126 | H26: 892074 | I26: 1076567 | J26: 1170148 | K26: 1413546 | L26: 1318733 | M26: 1914102 | N26: 1468720 | O26: 1361504 | P26: 1944301 | Q26: 1832883 | R26: 150143 | S26: 846414 | T26: 2210640 | U26: 3408308 | V26: 3090848
A27: August | B27: 831651.94 | C27: 1043592.99 | D27: 1193386.32 | E27: 1212986.87 | F27: 971244.11 | G27: 1098888 | H27: 1734174 | I27: 2481845 | J27: 2092648 | K27: 1880567 | L27: 2840798 | M27: 2360578 | N27: 1982676 | O27: 2507210 | P27: 2168427 | Q27: 2388108 | R27: 414613 | S27: 1037133 | T27: 1726130 | U27: 2304772 | V27: 2441143
A28: September | B28: 790793 | C28: 949247.11 | D28: 2034407.26 | E28: 858604 | F28: 1187519.95 | G28: 705229 | H28: 1435959 | I28: 1646579 | J28: 1332996 | K28: 1481021 | L28: 2003601 | M28: 1693950 | N28: 2161182 | O28: 2226559 | P28: 2436264 | Q28: 2416742 | R28: 237420 | S28: 1280929 | T28: 2648396 | U28: 2937491 | V28: 3528913
A29: October | B29: 655363 | C29: 855912.81 | D29: 819125.33 | E29: 812426 | F29: 1137589.71 | G29: 700886 | H29: 1368648 | I29: 1402686 | J29: 1486874 | K29: 1406397 | L29: 1452422 | M29: 1682168 | N29: 2024859 | O29: 2411421 | P29: 2678330 | Q29: 2637020 | R29: 225826 | S29: 1751375 | T29: 2530544 | U29: 3122868 | V29: 3125408
A30: November | B30: 774105.26 | C30: 816019.43 | D30: 907024.07 | E30: 969243.88 | F30: * | G30: 962107 | H30: 1282069 | I30: 1047004 | J30: 1170371 | K30: 1277630 | L30: 1311783 | M30: 1603997 | N30: 2107990 | O30: 2347442 | P30: 3868472 | Q30: 2360172 | R30: 3368499 | S30: 2181245 | T30: 2268548 | U30: 3095252 | V30: 2369592.41
A31: December | B31: 975117.22 | C31: 907773.37 | D31: -362543.49 | E31: 809754.71 | F31: 1270470 | G31: 692941 | H31: 806256 | I31: 694788 | J31: 898791 | K31: 988861 | L31: 1736441 | M31: 1392491 | N31: 1511299 | O31: 1466404 | P31: 1991858 | Q31: 1707212 | R31: 164427 | S31: 1695628 | T31: 2228748 | U31: 2452198 | V31: 2097187.95
A32: Total | B32: =SUM(B20:B31) -> 8841609.8 | C32: =SUM(C20:C31) -> 9555800.09 | D32: 9530147.12 | E32: 10133756.63 | F32: 9760649.43 | G32: 9258370 | H32: 13176785 | I32: 14170425 | J32: =SUM(J20:J31) -> 14291001 | K32: 14482445 | L32: 16928689 | M32: 18787063 | N32: 19235300 | O32: 20420779 | P32: 24722877 | Q32: =SUM(Q20:Q31) -> 23657553 | R32: =SUM(R20:R31) -> 8747533 | S32: 10570224 | T32: =SUM(T20:T31) -> 22936571 | U32: =SUM(U20:U31) -> 25389564 | V32: =SUM(V20:V31) -> 29359293.36
A33: Minneapolis Local Lodging Tax (2.625% from 4/1/02 to 9/30/17; 2.125% starting 10/1/17) in addition to 3.0% Entertainment Tax
A34: Month | B34: 2004 | C34: 2005 | D34: 2006 | E34: 2007 | F34: 2008 | G34: 2009 | H34: 2010 | I34: 2011 | J34: 2012 | K34: 2013 | L34: 2014 | M34: 2015 | N34: 2016 | O34: 2017 | P34: 2018 | Q34: 2019 | R34: 2020 | S34: 2021 | T34: 2022 | U34: 2023 | V34: 2024
A35: January | B35: 254818 | C35: 335246 | D35: 376971 | E35: 429313 | F35: 428981 | G35: 421180 | H35: 315352 | I35: 352000 | J35: 382725 | K35: 416520 | L35: 361875 | M35: 370370 | N35: 411035 | O35: 470160 | P35: 387902 | Q35: 411991 | R35: 592196 | S35: 71048 | T35: 368485 | U35: 593412 | V35: 535896
A36: February | B36: 281338 | C36: 378830.3 | D36: 332924 | E36: 399382 | F36: 416021 | G36: 527807 | H36: 341134 | I36: 336857 | J36: 379048 | K36: 391682 | L36: 412890 | M36: 480543 | N36: 452781 | O36: 506994 | P36: 509568 | Q36: 397684 | R36: 599969 | S36: 78746 | T36: 267954 | U36: 470293 | V36: 404292
A37: March | B37: 352405 | C37: 354967 | D37: 399512 | E37: 420783 | F37: 438780 | G37: 376520 | H37: 325927 | I37: 345210 | J37: 389625 | K37: 403548 | L37: 407853 | M37: 441845 | N37: 471711 | O37: 464782 | P37: 765435 | Q37: 427601 | R37: 589269 | S37: 110918 | T37: 269735 | U37: 440565 | V37: 484713
A38: April | B38: 346089 | C38: 411352 | D38: 459984 | E38: 504841.19 | F38: 543385.03 | G38: 419276 | H38: 379621 | I38: 440348 | J38: 455570 | K38: 426531 | L38: 469252 | M38: 505217 | N38: 520475 | O38: 643475 | P38: 486174 | Q38: 515798 | R38: 267561 | S38: 130809 | T38: 582028 | U38: 688487 | V38: 901856
A39: May | B39: 391832 | C39: 459754 | D39: 534243 | E39: 501897 | F39: 611467 | G39: 482853 | H39: 476621 | I39: 506879 | J39: 497429 | K39: 564928 | L39: 579824 | M39: 666731 | N39: 725684 | O39: 684567 | P39: 623127 | Q39: 796073 | R39: 24574 | S39: 185476 | T39: 592042 | U39: 828470 | V39: 953916
A40: June | B40: 530219 | C40: 464652 | D40: 606408 | E40: 617450.77 | F40: 654935 | G40: 532067 | H40: 529539 | I40: 528230 | J40: 562316 | K40: 605094 | L40: 700423 | M40: 1008981 | N40: 757130 | O40: 796645 | P40: 695774 | Q40: 732853 | R40: 44699 | S40: 230343 | T40: 846463 | U40: 816994 | V40: 1106542
A41: July | B41: 180097 | C41: 335072 | D41: 180182 | E41: 441369 | F41: 446336 | G41: 297437 | H41: 266335 | I41: 421456 | J41: 419933 | K41: 577899 | L41: 569526 | M41: 664609 | N41: 628446 | O41: 737172 | P41: 664143 | Q41: 681041 | R41: 60727 | S41: 265680 | T41: 1169047 | U41: 1175972 | V41: 1410044
A42: August | B42: 717855 | C42: 824775 | D42: 906981 | E42: 897529.41 | F42: 713172 | G42: 727713 | H42: 874703 | I42: 919648 | J42: 903649 | K42: 822820 | L42: 1063217 | M42: 990904 | N42: 989614 | O42: 1089704 | P42: 917366 | Q42: 1012014 | R42: 116680 | S42: 443486 | T42: 950771 | U42: 1102159 | V42: 1341073
A43: September | B43: 522230 | C43: 606748.2 | D43: 591363 | E43: 691311 | F43: 730511 | G43: 483813 | H43: 711600 | I43: 674488 | J43: 661887 | K43: 655302 | L43: 809282 | M43: 785406 | N43: 899820 | O43: 899524 | P43: 822644 | Q43: 862942 | R43: 123194 | S43: 512459 | T43: 1103780 | U43: 1159411 | V43: 1350898
A44: October | B44: 462602 | C44: 552347.81 | D44: 593598 | E44: 617921 | F44: 848932 | G44: 503831 | H44: 537249 | I44: 640813 | J44: 602245 | K44: 653173 | L44: 742565 | M44: 791405 | N44: 961759 | O44: 871760 | P44: 780128 | Q44: 841426 | R44: 132230 | S44: 468311 | T44: 953716 | U44: 1309021 | V44: 1189466
A45: November | B45: 562141 | C45: 566307.66 | D45: 649989 | E45: 713120 | F45: * | G45: 592213 | H45: 635920 | I45: 702932 | J45: 732104 | K45: 810831 | L45: 743941 | M45: 935599 | N45: 999648 | O45: 781626 | P45: 897899 | Q45: 1174264 | R45: 128809 | S45: 566914 | T45: 941058 | U45: 1282689 | V45: 1356170
A46: December | B46: 412544 | C46: 453435 | D46: 472235 | E46: 508215 | F46: 908323 | G46: 396041 | H46: 447431 | I46: 473929 | J46: 486521 | K46: 496269 | L46: 526131 | M46: 657976 | N46: 476310 | O46: 511579 | P46: 482237 | Q46: 774550 | R46: 78193 | S46: 445344 | T46: 761489 | U46: 748804 | V46: 693342
A47: Total | B47: =SUM(B35:B46) -> 5014170 | C47: =SUM(C35:C46) -> 5743486.97 | D47: 6104390 | E47: 6743132.37 | F47: 6740843.03 | G47: 5760751 | H47: 5841432 | I47: 6342790 | J47: =SUM(J35:J46) -> 6473052 | K47: 6824597 | L47: 7386779 | M47: 8299586 | N47: 8294413 | O47: 8457988 | P47: 8032397 | Q47: =SUM(Q35:Q46) -> 8628237 | R47: =SUM(R35:R46) -> 2758101 | S47: 3509534 | T47: =SUM(T35:T46) -> 8806568 | U47: =SUM(U35:U46) -> 10616277 | V47: =SUM(V35:V46) -> 11728208
A48: Minneapolis Downtown Restaurant (3.0%)
A49: Month | B49: 2004 | C49: 2005 | D49: 2006 | E49: 2007 | F49: 2008 | G49: 2009 | H49: 2010 | I49: 2011 | J49: 2012 | K49: 2013 | L49: 2014 | M49: 2015 | N49: 2016 | O49: 2017 | P49: 2018 | Q49: 2019 | R49: 2020 | S49: 2021 | T49: 2022 | U49: 2023 | V49: 2024
A50: January | B50: 729892.62 | C50: 853921 | D50: 950123.88 | E50: 920219 | F50: 955881 | G50: 1002516 | H50: 840143 | I50: 862775 | J50: 1012737 | K50: 1059413 | L50: 1066282 | M50: 1012675 | N50: 1044693 | O50: 1102858 | P50: 1133099 | Q50: 1052434 | R50: 1051170 | S50: 156836 | T50: 654105 | U50: 831121 | V50: 1031096
A51: February | B51: 577009.14 | C51: 634925.74 | D51: 757557.79 | E51: 778694.53 | F51: 807301 | G51: 842601 | H51: 691381 | I51: 669204 | J51: 820040 | K51: 794250 | L51: 824174 | M51: 928909 | N51: 944782 | O51: 1054643 | P51: 1148315 | Q51: 907588 | R51: 993565 | S51: 214779 | T51: 428652 | U51: 792583 | V51: 742150
A52: March | B52: 630777 | C52: 1085928.36 | D52: 668264.21 | E52: 702294.6 | F52: 768695.34 | G52: 691805 | H52: 665433 | I52: 730121 | J52: 824181 | K52: 816130 | L52: 846681 | M52: 829044 | N52: 867304 | O52: 984159 | P52: 1299880 | Q52: 1143282 | R52: 881561 | S52: 246924 | T52: 601261 | U52: 717955 | V52: 941273
A53: April | B53: 678665.31 | C53: 728290 | D53: 770890.58 | E53: 834856.02 | F53: 928093.63 | G53: 749227 | H53: 788354 | I53: 814865 | J53: 880236 | K53: 825835 | L53: 874051 | M53: 1151211 | N53: 931584 | O53: 994042 | P53: 1041527 | Q53: 1027268 | R53: 463517 | S53: 351191 | T53: 662560 | U53: 880406 | V53: 1064616
A54: May | B54: 695764 | C54: 773601 | D54: 762475 | E54: 817560.83 | F54: 978252.34 | G54: 801535 | H54: 868980 | I54: 947126 | J54: 927804 | K54: 986890 | L54: 892179 | M54: 1015676 | N54: 1134493 | O54: 1056141 | P54: 1108069 | Q54: 1224705 | R54: 73445 | S54: 402337 | T54: 848942 | U54: 1128274 | V54: 1211206
A55: June | B55: 741968.88 | C55: 862807.12 | D55: 828195.75 | E55: 921960 | F55: 968280 | G55: 867795 | H55: 1084371 | I55: 942799 | J55: 999166 | K55: 1064886 | L55: 1127217 | M55: 1052437 | N55: 1165338 | O55: 1130543 | P55: 1237122 | Q55: 1279208 | R55: 94753 | S55: 507710 | T55: 1085329 | U55: 1130036 | V55: 1413548
A56: July | B56: 465928 | C56: 552910.64 | D56: 619536.1 | E56: 694332 | F56: 645548.81 | G56: 554200 | H56: 735106 | I56: 838538 | J56: 890508 | K56: 923158 | L56: 1036179 | M56: 1093737 | N56: 1106163 | O56: 1047087 | P56: 1177952 | Q56: 1179607 | R56: 114347 | S56: 511902 | T56: 1205691 | U56: 1263738 | V56: 1432221
A57: August | B57: 1121419.05 | C57: 1091348.23 | D57: 1189837.25 | E57: 1269187.68 | F57: 1174749.28 | G57: 1058464 | H57: 1161399 | I57: 1282138 | J57: 1197244 | K57: 1165620 | L57: 1356705 | M57: 1253719 | N57: 1272165 | O57: 1391593 | P57: 1423018 | Q57: 1449074 | R57: 271878 | S57: 806619 | T57: 1028381 | U57: 1152951 | V57: 1272035
A58: September | B58: 885666.26 | C58: 791574 | D58: 916932.01 | E58: 932642 | F58: 996157.76 | G58: 834307 | H58: 978788 | I58: 1126306 | J58: 1026223 | K58: 1083115 | L58: 1089648 | M58: 1137339 | N58: 1170185 | O58: 1213575 | P58: 1286515 | Q58: 1454480 | R58: 244634 | S58: 776382 | T58: 1167738 | U58: 1271083 | V58: 1402669
A59: October | B59: 881820 | C59: 918392.94 | D59: 1099320.42 | E59: 1014154.61 | F59: 1154049 | G59: 896955 | H59: 1168648 | I59: 1115906 | J59: 1114826 | K59: 1152010 | L59: 1408401 | M59: 1161124 | N59: 1215435 | O59: 1279546 | P59: 1270208 | Q59: 1381935 | R59: 311303 | S59: 742736 | T59: 1058421 | U59: 1444000 | V59: 1371173
A60: November | B60: 848855.5 | C60: 816041 | D60: 920133.53 | E60: 921665 | F60: * | G60: 990873 | H60: 743081 | I60: 994849 | J60: 1048269 | K60: 1236900 | L60: 1048931 | M60: 1219935 | N60: 1225207 | O60: 1259852 | P60: 1316667 | Q60: 1225627 | R60: 255315 | S60: 697852 | T60: 990613 | U60: 1230405 | V60: 1217784
A61: December | B61: 703536.34 | C61: 760660.15 | D61: 775140 | E61: 799454.93 | F61: 1560625 | G61: 784457 | H61: 784325 | I61: 832914 | J61: 877001 | K61: 901071 | L61: 894145 | M61: 990340 | N61: 998961 | O61: 1036407 | P61: 966186 | Q61: 1037166 | R61: 231255 | S61: 621233 | T61: 849836 | U61: 933468 | V61: 961789.31
A62: Total | B62: =SUM(B50:B61) -> 8961302.1 | C62: =SUM(C50:C61) -> 9870400.18 | D62: 10258406.52 | E62: 10607021.2 | F62: 10937633.16 | G62: 10074735 | H62: 10510009 | I62: 11157541 | J62: =SUM(J50:J61) -> 11618235 | K62: 12009278 | L62: 12464593 | M62: 12846146 | N62: 13076310 | O62: 13550446 | P62: 14408558 | Q62: =SUM(Q50:Q61) -> 14362374 | R62: =SUM(R50:R61) -> 4986743 | S62: 6036501 | T62: =SUM(T50:T61) -> 10581529 | U62: =SUM(U50:U61) -> 12776020 | V62: =SUM(V50:V61) -> 14061560.31
A63: *Collections for November 2008 are included in December totals due to a new processing system.
A64: ='Lod&Liq'!A71:F71 -> Source: Minnesota Department of Revenue, Tax Research Division, November 2025
A65: end of worksheet

Sheet Marshall (hidden)
A1: Marshall Monthly Detail for Minnesota Special Sales & Use Tax
A2: ='Lod&Liq'!A2 -> CY 2024
A3: Marshall Local Food & Beverage Tax (1.5%)
A4: Month | B4: 2004 | C4: 2005 | D4: 2006 | E4: 2007 | F4: 2008 | G4: 2009 | H4: 2010 | I4: 2011 | J4: 2012 | K4: 2013 | L4: 2014 | M4: 2015 | N4: 2016 | O4: 2017 | P4: 2018 | Q4: 2019 | R4: 2020 | S4: 2021 | T4: 2022 | U4: 2023 | V4: 2024
A5: January | B5: - | C5: - | D5: - | E5: - | F5: - | G5: - | H5: - | I5: - | J5: - | K5: - | L5: 37886 | M5: 39540 | N5: 40214 | O5: 39507 | P5: 42694 | Q5: 43188 | R5: 44187 | S5: 33261 | T5: 50885 | U5: 49148 | V5: 57958
A6: February | B6: - | C6: - | D6: - | E6: - | F6: - | G6: - | H6: - | I6: - | J6: - | K6: - | L6: 31447 | M6: 36679 | N6: 36545 | O6: 38424 | P6: 39806 | Q6: 36124 | R6: 38594 | S6: 36950 | T6: 45385 | U6: 49668 | V6: 50260
A7: March | B7: - | C7: - | D7: - | E7: - | F7: - | G7: - | H7: - | I7: - | J7: - | K7: - | L7: 31494 | M7: 36203 | N7: 36699 | O7: 36473 | P7: 37435 | Q7: 35287 | R7: 40188 | S7: 37735 | T7: 44866 | U7: 47869 | V7: 53331
A8: April | B8: - | C8: - | D8: - | E8: - | F8: - | G8: - | H8: - | I8: - | J8: - | K8: - | L8: 36759 | M8: 40804 | N8: 40368 | O8: 44380 | P8: 44781 | Q8: 44904 | R8: 33708 | S8: 47225 | T8: 52891 | U8: 52900 | V8: 58698
A9: May | B9: - | C9: - | D9: - | E9: - | F9: - | G9: - | H9: - | I9: - | J9: - | K9: - | L9: 35250 | M9: 39255 | N9: 41604 | O9: 41339 | P9: 40534 | Q9: 42656 | R9: 25940 | S9: 47222 | T9: 52455 | U9: 55190 | V9: 59216
A10: June | B10: - | C10: - | D10: - | E10: - | F10: - | G10: - | H10: - | I10: - | J10: - | K10: - | L10: 38289 | M10: 41400 | N10: 42310 | O10: 41873 | P10: 45790 | Q10: 50582 | R10: 32216 | S10: 49402 | T10: 65223 | U10: 59272 | V10: 59986
A11: July | B11: - | C11: - | D11: - | E11: - | F11: - | G11: - | H11: - | I11: - | J11: - | K11: - | L11: 34716 | M11: 38697 | N11: 39629 | O11: 40422 | P11: 55517 | Q11: 43408 | R11: 37006 | S11: 51534 | T11: 58034 | U11: 59702 | V11: 62908
A12: August | B12: - | C12: - | D12: - | E12: - | F12: - | G12: - | H12: - | I12: - | J12: - | K12: 29284 | L12: 43399 | M12: 43374 | N12: 45162 | O12: 44991 | P12: 47823 | Q12: 49229 | R12: 41508 | S12: 52598 | T12: 57657 | U12: 63001 | V12: 58793
A13: September | B13: - | C13: - | D13: - | E13: - | F13: - | G13: - | H13: - | I13: - | J13: - | K13: 34388 | L13: 40463 | M13: 40560 | N13: 42404 | O13: 43253 | P13: 45862 | Q13: 46575 | R13: 42170 | S13: 52408 | T13: 56503 | U13: 59442 | V13: 61110
A14: October | B14: - | C14: - | D14: - | E14: - | F14: - | G14: - | H14: - | I14: - | J14: - | K14: 36171 | L14: 38735 | M14: 40768 | N14: 41971 | O14: 43029 | P14: 44440 | Q14: 45149 | R14: 42036 | S14: 48936 | T14: 54259 | U14: 58523 | V14: 55520
A15: November | B15: - | C15: - | D15: - | E15: - | F15: - | G15: - | H15: - | I15: - | J15: - | K15: 36372 | L15: 39800 | M15: 41046 | N15: 42141 | O15: 44865 | P15: 47182 | Q15: 45756 | R15: 42550 | S15: 51366 | T15: 58066 | U15: 57537 | V15: 63191
A16: December | B16: - | C16: - | D16: - | E16: - | F16: - | G16: - | H16: - | I16: - | J16: - | K16: 32430 | L16: 36724 | M16: 39736 | N16: 39790 | O16: 40762 | P16: 42240 | Q16: 41879 | R16: 34843 | S16: 47880 | T16: 51383 | U16: 53946 | V16: 58195
A17: Total | B17: - | C17: - | D17: - | E17: - | F17: - | G17: - | H17: - | I17: - | J17: - | K17: =SUM(K5:K16) -> 168645 | L17: 444962 | M17: 478062 | N17: 488837 | O17: 499318 | P17: 534104 | Q17: =SUM(Q5:Q16) -> 524737 | R17: =SUM(R5:R16) -> 454946 | S17: 556517 | T17: =SUM(T5:T16) -> 647607 | U17: =SUM(U5:U16) -> 666198 | V17: =SUM(V5:V16) -> 699166
A18: Hidden columns B-J do not contain any data for CY 2004-2012
A19: ='Lod&Liq'!A71:F71 -> Source: Minnesota Department of Revenue, Tax Research Division, November 2025
A20: end of worksheet

Sheet Rochester (hidden)
A1: Rochester Monthly Detail for Minnesota Special Sales & Use Tax
A2: ='Lod&Liq'!A2 -> CY 2024
A3: Rochester Local Lodging Tax (7.0%)
A4: Month | B4: 2004 | C4: 2005 | D4: 2006 | E4: 2007 | F4: 2008 | G4: 2009 | H4: 2010 | I4: 2011 | J4: 2012 | K4: 2013 | L4: 2014 | M4: 2015 | N4: 2016 | O4: 2017 | P4: 2018 | Q4: 2019 | R4: 2020 | S4: 2021 | T4: 2022 | U4: 2023 | V4: 2024
A5: January | B5: 164090 | C5: 254310 | D5: 230431 | E5: 214936.44 | F5: 215187 | G5: 219802 | H5: 230819 | I5: 226469 | J5: 227584 | K5: 316491 | L5: 276423 | M5: 498368 | N5: 583431 | O5: 585628 | P5: 595437 | Q5: 654674 | R5: 707500 | S5: 363727 | T5: 648504 | U5: 673130 | V5: 823064
A6: February | B6: 226291 | C6: 203461 | D6: 221593 | E6: 254778 | F6: 271622 | G6: 246587 | H6: 254335 | I6: 260892 | J6: 268257 | K6: 293175 | L6: 576032 | M6: 563836 | N6: 600613 | O6: 646239 | P6: 785885 | Q6: 741547 | R6: 790115 | S6: 452404 | T6: 645473 | U6: 795763 | V6: 769479
A7: March | B7: 201389.42 | C7: 201821.13 | D7: 230752 | E7: 244291 | F7: 259616 | G7: 238978 | H7: 243619 | I7: 258253 | J7: 279494 | K7: 289490 | L7: 580655 | M7: 584804 | N7: 633584 | O7: 644701 | P7: 680458 | Q7: 718788 | R7: 752735 | S7: 460773 | T7: 657008 | U7: 683147 | V7: 749880
A8: April | B8: 231803.38 | C8: 239447 | D8: 264322 | E8: 316518 | F8: 290281 | G8: 275026 | H8: 283127 | I8: 307302 | J8: 327836 | K8: 345829 | L8: 639856 | M8: 660835 | N8: 722774 | O8: 791365 | P8: 769275 | Q8: 800759 | R8: 503735 | S8: 565927 | T8: 791672 | U8: 943167 | V8: 842890
A9: May | B9: 218220 | C9: 333670 | D9: 242150 | E9: 269422 | F9: 289166 | G9: 277226 | H9: 282745 | I9: 296427 | J9: 296020 | K9: 454289 | L9: 660597 | M9: 665390 | N9: 694641 | O9: 795796 | P9: 876859 | Q9: 909255 | R9: 120441 | S9: 610772 | T9: 757709 | U9: 845611 | V9: 974293
A10: June | B10: 254441.38 | C10: 254459 | D10: 281920 | E10: 297447 | F10: 289675.01 | G10: 283789 | H10: 296915 | I10: 315254 | J10: 327237 | K10: 379282 | L10: 673502 | M10: 825652 | N10: 785418 | O10: 797138 | P10: 1056641 | Q10: 906409 | R10: -76914 | S10: 633188 | T10: 859394 | U10: 919021 | V10: 1002961
A11: July | B11: 225987 | C11: 274489 | D11: 286734 | E11: 315620 | F11: 292972 | G11: 277050 | H11: 281292 | I11: 282713 | J11: 346330 | K11: 320204 | L11: 616879 | M11: 454952 | N11: 484747 | O11: 742678 | P11: 796525 | Q11: 825481 | R11: 524216 | S11: 888412 | T11: 893247 | U11: 952299 | V11: 1026401
A12: August | B12: 260890 | C12: 289438 | D12: 333137 | E12: 353282 | F12: 390628 | G12: 507583 | H12: 394423 | I12: 396274 | J12: 364198 | K12: 491300 | L12: 783975 | M12: 1127521 | N12: 1068566 | O12: 998857 | P12: 1022774 | Q12: 1185304 | R12: 682729 | S12: 746092 | T12: 798923 | U12: 935157 | V12: 978573
A13: September | B13: 262389 | C13: 251997.38 | D13: 318952 | E13: 340215 | F13: 335582 | G13: 354264 | H13: 334149 | I13: 337342 | J13: 374510 | K13: 402853 | L13: 743254 | M13: 832614 | N13: 856839 | O13: 892061 | P13: 951557 | Q13: 953971 | R13: 567369 | S13: 752234 | T13: 878167 | U13: 968852 | V13: 995004
A14: October | B14: 239107 | C14: 285782 | D14: 286564 | E14: 318468 | F14: 308061 | G14: 346578 | H14: 311934 | I14: 323614 | J14: 329568 | K14: 391213 | L14: 730492 | M14: 789009 | N14: 744889 | O14: 783309 | P14: 862175 | Q14: 930403 | R14: 578689 | S14: 748714 | T14: 879500 | U14: 863489 | V14: 922733
A15: November | B15: 247302.58 | C15: 220259 | D15: 306029 | E15: 354962 | F15: * | G15: 325344 | H15: 278486 | I15: 323889 | J15: 377757 | K15: 402023 | L15: 768663 | M15: 809124 | N15: 824143 | O15: 976789 | P15: 1385542 | Q15: 1006928 | R15: 596522 | S15: 738673 | T15: 826017 | U15: 947037 | V15: 1035077
A16: December | B16: 199118 | C16: 226057 | D16: 243875 | E16: 263450 | F16: 569194 | G16: 256647 | H16: 316636 | I16: 284826 | J16: 288250 | K16: 331872 | L16: 591215 | M16: 683654 | N16: 563353 | O16: 777655 | P16: 714515 | Q16: 807401 | R16: 413592 | S16: 631410 | T16: 695763 | U16: 772513 | V16: 824760
A17: Total | B17: =SUM(B5:B16) -> 2731028.76 | C17: =SUM(C5:C16) -> 3035190.51 | D17: 3246459 | E17: 3543389.44 | F17: 3511984.01 | G17: 3608874 | H17: 3508480 | I17: 3613255 | J17: =SUM(J5:J16) -> 3807041 | K17: 4418021 | L17: 7641543 | M17: 8495759 | N17: 8562998 | O17: 9432216 | P17: 10497643 | Q17: =SUM(Q5:Q16) -> 10440920 | R17: =SUM(R5:R16) -> 6160729 | S17: 7592326 | T17: 9331377 | U17: =SUM(U5:U16) -> 10299186 | V17: =SUM(V5:V16) -> 10945115
A18: *Collections for November 2008 are included in December totals due to a new processing system.
A19: ='Lod&Liq'!A71:F71 -> Source: Minnesota Department of Revenue, Tax Research Division, November 2025
A20: end of worksheet

Sheet North Mankato (hidden)
A1: North Mankato Monthly Detail for Minnesota Special Sales & Use Tax
A2: ='Lod&Liq'!A2 -> CY 2024
A3: North Mankato Local Food & Beverage Tax (0.5%)
A4: Month | B4: 2004 | C4: 2005 | D4: 2006 | E4: 2007 | F4: 2008 | G4: 2009 | H4: 2010 | I4: 2011 | J4: 2012 | K4: 2013 | L4: 2014 | M4: 2015 | N4: 2016 | O4: 2017 | P4: 2018 | Q4: 2019 | R4: 2020 | S4: 2021 | T4: 2022 | U4: 2023 | V4: 2024
A5: January | B5: - | C5: - | D5: - | E5: - | F5: - | G5: - | H5: - | I5: - | J5: - | K5: - | L5: - | M5: - | N5: - | O5: - | P5: - | Q5: - | R5: - | S5: 3401 | T5: 5942 | U5: 6602 | V5: 9187
A6: February | B6: - | C6: - | D6: - | E6: - | F6: - | G6: - | H6: - | I6: - | J6: - | K6: - | L6: - | M6: - | N6: - | O6: - | P6: - | Q6: - | R6: - | S6: 4015 | T6: 4955 | U6: 6030 | V6: 7413
A7: March | B7: - | C7: - | D7: - | E7: - | F7: - | G7: - | H7: - | I7: - | J7: - | K7: - | L7: - | M7: - | N7: - | O7: - | P7: - | Q7: - | R7: - | S7: 3725 | T7: 5129 | U7: 6259 | V7: 8035
A8: April | B8: - | C8: - | D8: - | E8: - | F8: - | G8: - | H8: - | I8: - | J8: - | K8: - | L8: - | M8: - | N8: - | O8: - | P8: - | Q8: - | R8: 0 | S8: 4401 | T8: 5764 | U8: 7856 | V8: 8778
A9: May | B9: - | C9: - | D9: - | E9: - | F9: - | G9: - | H9: - | I9: - | J9: - | K9: - | L9: - | M9: - | N9: - | O9: - | P9: - | Q9: - | R9: 2434 | S9: 5390 | T9: 5724 | U9: 7387 | V9: 8239
A10: June | B10: - | C10: - | D10: - | E10: - | F10: - | G10: - | H10: - | I10: - | J10: - | K10: - | L10: - | M10: - | N10: - | O10: - | P10: - | Q10: - | R10: 3451 | S10: 6109 | T10: 7876 | U10: 8662 | V10: 9209
A11: July | B11: - | C11: - | D11: - | E11: - | F11: - | G11: - | H11: - | I11: - | J11: - | K11: - | L11: - | M11: - | N11: - | O11: - | P11: - | Q11: - | R11: 4249 | S11: 6269 | T11: 7700 | U11: 9319 | V11: 9307
A12: August | B12: - | C12: - | D12: - | E12: - | F12: - | G12: - | H12: - | I12: - | J12: - | K12: - | L12: - | M12: - | N12: - | O12: - | P12: - | Q12: - | R12: 5096 | S12: 6837 | T12: 8069 | U12: 8819 | V12: 8336
A13: September | B13: - | C13: - | D13: - | E13: - | F13: - | G13: - | H13: - | I13: - | J13: - | K13: - | L13: - | M13: - | N13: - | O13: - | P13: - | Q13: - | R13: 5371 | S13: 6411 | T13: 7010 | U13: 8546 | V13: 9184.87
A14: October | B14: - | C14: - | D14: - | E14: - | F14: - | G14: - | H14: - | I14: - | J14: - | K14: - | L14: - | M14: - | N14: - | O14: - | P14: - | Q14: - | R14: 4580 | S14: 6191 | T14: 7603 | U14: 8519 | V14: 8418
A15: November | B15: - | C15: - | D15: - | E15: - | F15: - | G15: - | H15: - | I15: - | J15: - | K15: - | L15: - | M15: - | N15: - | O15: - | P15: - | Q15: - | R15: 4872 | S15: 6162 | T15: 7222 | U15: 8684 | V15: 8827
A16: December | B16: - | C16: - | D16: - | E16: - | F16: - | G16: - | H16: - | I16: - | J16: - | K16: - | L16: - | M16: - | N16: - | O16: - | P16: - | Q16: - | R16: 4001 | S16: 5261 | T16: 6020 | U16: 7448 | V16: 8162
A17: Total | B17: - | C17: - | D17: - | E17: - | F17: - | G17: - | H17: - | I17: - | J17: - | K17: =SUM(K5:K16) -> 0 | L17: 0 | M17: 0 | N17: 0 | O17: 0 | P17: 0 | Q17: =SUM(Q5:Q16) -> 0 | R17: =SUM(R5:R16) -> 34054 | S17: 64172 | T17: =SUM(T5:T16) -> 79014 | U17: =SUM(U5:U16) -> 94131 | V17: =SUM(V5:V16) -> 103095.87
A18: Hidden columns B-Q do not contain any data for CY 2004-2019
A19: ='Lod&Liq'!A71:F71 -> Source: Minnesota Department of Revenue, Tax Research Division, November 2025
A20: end of worksheet

Sheet St. Cloud (hidden)
A1: St. Cloud Monthly Detail for Minnesota Special Sales & Use Tax
A2: ='Lod&Liq'!A2 -> CY 2024
A3: St. Cloud Local Liquor Tax (1.0%)
A4: Month | B4: 2004 | C4: 2005 | D4: 2006 | E4: 2007 | F4: 2008 | G4: 2009 | H4: 2010 | I4: 2011 | J4: 2012 | K4: 2013 | L4: 2014 | M4: 2015 | N4: 2016 | O4: 2017 | P4: 2018 | Q4: 2019 | R4: 2020 | S4: 2021 | T4: 2022 | U4: 2023 | V4: 2024
A5: January | B5: 14890 | C5: 16990 | D5: 17054 | E5: 17963 | F5: 15193 | G5: 15670 | H5: 20602 | I5: 14814 | J5: 15114 | K5: 17233 | L5: 16224 | M5: 17833 | N5: 20448 | O5: 17774 | P5: 17209 | Q5: 15045 | R5: 19224 | S5: 5283 | T5: 12704 | U5: 15426 | V5: 19015
A6: February | B6: 13839 | C6: 13189 | D6: 28376.05 | E6: 17685 | F6: 13415 | G6: 17124 | H6: 13594 | I6: 13908 | J6: 14461 | K6: 13891 | L6: 14247 | M6: 16629 | N6: 16559 | O6: 14421 | P6: 14197 | Q6: 13191 | R6: 14840 | S6: 6049 | T6: 10690 | U6: 14492 | V6: 15592
A7: March | B7: 13187 | C7: 13256 | D7: 14527 | E7: 13955 | F7: 14918 | G7: 15258 | H7: 14608 | I7: 14189 | J7: 13943 | K7: 13796 | L7: 14161 | M7: 14402 | N7: 14572 | O7: 15016 | P7: 13093 | Q7: 12607 | R7: 12602 | S7: 8525 | T7: 11585 | U7: 13734 | V7: 15208
A8: April | B8: 15810 | C8: 16829 | D8: 17884 | E8: 19735 | F8: 15686 | G8: 16926 | H8: 16355 | I8: 22650 | J8: 16146 | K8: 16946 | L8: 18603 | M8: 17472 | N8: 17412 | O8: 18404 | P8: 17073 | Q8: 19853 | R8: 7275 | S8: 10441 | T8: 14702 | U8: 19336 | V8: 19182
A9: May | B9: 14237 | C9: 15704 | D9: 14593 | E9: 14927 | F9: 15313 | G9: 13484 | H9: 14374 | I9: 16564 | J9: 14415 | K9: 15953 | L9: 15165 | M9: 15310 | N9: 17593 | O9: 15308 | P9: 14089 | Q9: 17124 | R9: 625 | S9: 10826 | T9: 14293 | U9: 16197 | V9: 16430
A10: June | B10: 13974 | C10: 13078 | D10: 14092 | E10: 13188 | F10: 13077 | G10: 13653 | H10: 12791 | I10: 12130 | J10: 12757 | K10: 14660 | L10: 15557 | M10: 15384 | N10: 14938 | O10: 14328 | P10: 12513 | Q10: 18278 | R10: 753 | S10: 11663 | T10: 12682 | U10: 17211 | V10: 15022
A11: July | B11: 10688 | C11: 11040 | D11: 12310 | E11: 11443 | F11: 9598 | G11: 10192 | H11: 10674 | I11: 10612 | J11: 12585 | K11: 13264 | L11: 12185 | M11: 14348 | N11: 14466 | O11: 13522 | P11: 13120 | Q11: 17202 | R11: 7171 | S11: 11799 | T11: 13827 | U11: 16694 | V11: 15368
A12: August | B12: 16485 | C12: 14397 | D12: 13722 | E12: 13937 | F12: 12664 | G12: 14919 | H12: 14938 | I12: 11690 | J12: 13075 | K12: 13507 | L12: 14787 | M12: 13596 | N12: 14374 | O12: 12463 | P12: 11892 | Q12: 16242 | R12: 8288 | S12: 11707 | T12: 15456 | U12: 12954 | V12: 14583
A13: September | B13: 12519 | C13: 12867 | D13: 14461 | E13: 13896 | F13: 12328 | G13: 12657 | H13: 14209 | I13: 12782 | J13: 13931 | K13: 14958 | L13: 15349 | M13: 15120 | N13: 15016 | O13: 13460 | P13: 13013 | Q13: 17837 | R13: 9234 | S13: 12174 | T13: 12930 | U13: 13820 | V13: 15293
A14: October | B14: 15034 | C14: 15521 | D14: 15368 | E14: 18005 | F14: 13695 | G14: 14053 | H14: 16075 | I14: 13466 | J14: 14774 | K14: 15422 | L14: 15350 | M14: 14978 | N14: 16274 | O14: 15336 | P14: 14170 | Q14: 17438 | R14: 9207 | S14: 12141 | T14: 14892 | U14: 15620 | V14: 14838
A15: November | B15: 15766 | C15: 15623 | D15: 15884 | E15: 15511 | F15: * | G15: 15125 | H15: 14860 | I15: 15124 | J15: 17064 | K15: 16002 | L15: 16713 | M15: 17020 | N15: 16780 | O15: 14525 | P15: 14169 | Q15: 14336 | R15: 9853 | S15: 13577 | T15: 15330 | U15: 17214 | V15: 16230
A16: December | B16: 10892.61 | C16: 13029 | D16: 13842 | E16: 12925 | F16: 26294 | G16: 13016 | H16: 12977 | I16: 12234 | J16: 13552 | K16: 15030 | L16: 14565 | M16: 14572 | N16: 13954 | O16: 13948 | P16: 12596 | Q16: 13257 | R16: 4720 | S16: 11745 | T16: 11765 | U16: 14352 | V16: 15009
A17: Total | B17: =SUM(B5:B16) -> 167321.61 | C17: =SUM(C5:C16) -> 171523 | D17: 192113.05 | E17: 183170 | F17: 162181 | G17: 172077 | H17: 176057 | I17: 170163 | J17: =SUM(J5:J16) -> 171817 | K17: 180662 | L17: 182906 | M17: 186664 | N17: 192386 | O17: 178505 | P17: 167134 | Q17: =SUM(Q5:Q16) -> 192410 | R17: =SUM(R5:R16) -> 103792 | S17: 125930 | T17: 160856 | U17: =SUM(U5:U16) -> 187050 | V17: =SUM(V5:V16) -> 191770
A18: St. Cloud Local Food & Beverage Tax (1.0%)
A19: Month | B19: 2004 | C19: 2005 | D19: 2006 | E19: 2007 | F19: 2008 | G19: 2009 | H19: 2010 | I19: 2011 | J19: 2012 | K19: 2013 | L19: 2014 | M19: 2015 | N19: 2016 | O19: 2017 | P19: 2018 | Q19: 2019 | R19: 2020 | S19: 2021 | T19: 2022 | U19: 2023 | V19: 2024
A20: January | B20: 88110 | C20: 96636 | D20: 95664 | E20: 99292 | F20: 94090 | G20: 90769 | H20: 106753 | I20: 88749 | J20: 97063 | K20: 101064 | L20: 95940 | M20: 106395 | N20: 109806 | O20: 107856 | P20: 117169 | Q20: 114047 | R20: 124060 | S20: 87058 | T20: 109844 | U20: 122763 | V20: 131899
A21: February | B21: 79691 | C21: 77456 | D21: 87233.42 | E21: 87884 | F21: 81800 | G21: 108390 | H21: 80850 | I21: 82908 | J21: 82242 | K21: 88334 | L21: 86733 | M21: 107019 | N21: 108575 | O21: 112379 | P21: 104171 | Q21: 107451 | R21: 112705 | S21: 92391 | T21: 108534 | U21: 123669 | V21: 123171
A22: March | B22: 77448 | C22: 83267.05 | D22: 82541 | E22: 87558.93 | F22: 91300 | G22: 90722 | H22: 83583 | I22: 82663 | J22: 90036 | K22: 86881 | L22: 89797 | M22: 100017 | N22: 100348 | O22: 109195 | P22: 105295 | Q22: 105749 | R22: 118054 | S22: 88527 | T22: 99771 | U22: 123432 | V22: 124306
A23: April | B23: 91369 | C23: 91448 | D23: 96231 | E23: 102107 | F23: 92286 | G23: 97056 | H23: 94595 | I23: 94485 | J23: 101339 | K23: 102180 | L23: 105761 | M23: 111792 | N23: 108762 | O23: 115940 | P23: 121641 | Q23: 125209 | R23: 89623 | S23: 111506 | T23: 117153 | U23: 134855 | V23: 144355
A24: May | B24: 83612.69 | C24: 91769 | D24: 86416 | E24: 92419 | F24: 92080 | G24: 132016 | H24: 93737 | I24: 95821 | J24: 95283 | K24: 97462 | L24: 99536 | M24: 107136 | N24: 117454 | O24: 110005 | P24: 128126 | Q24: 127635 | R24: 70075 | S24: 108355 | T24: 108566 | U24: 130481 | V24: 136176
A25: June | B25: 83394 | C25: 89203 | D25: 90620 | E25: 91224 | F25: 94915 | G25: 91401 | H25: 89274 | I25: 88421 | J25: 91563 | K25: 98837 | L25: 100030 | M25: 108624 | N25: 109491 | O25: 107283 | P25: 114781 | Q25: 122750 | R25: 83558 | S25: 115602 | T25: 148225 | U25: 132736 | V25: 134894
A26: July | B26: 61739 | C26: 72756 | D26: 74967 | E26: 79172 | F26: 69340 | G26: 74207 | H26: 76465 | I26: 72690 | J26: 74148 | K26: 79975 | L26: 80630 | M26: 89586 | N26: 96580 | O26: 93394 | P26: 107427 | Q26: 104781 | R26: 79063 | S26: 108987 | T26: 120902 | U26: 142301 | V26: 142469
A27: August | B27: 122708 | C27: 104869 | D27: 102518 | E27: 106167 | F27: 99896 | G27: 96546 | H27: 101713 | I27: 101033 | J27: 114420 | K27: 107387 | L27: 121440 | M27: 117940 | N27: 117739 | O27: 137926 | P27: 127010 | Q27: 132585 | R27: 121392 | S27: 131603 | T27: 116547 | U27: 127737 | V27: 131289
A28: September | B28: 89007 | C28: 90062 | D28: 91219 | E28: 95604 | F28: 95054 | G28: 90740 | H28: 90104 | I28: 97435 | J28: 100657 | K28: 100679 | L28: 106349 | M28: 110781 | N28: 110567 | O28: 118089 | P28: 124735 | Q28: 123557 | R28: 105517 | S28: 119209 | T28: 125515 | U28: 131049 | V28: 139755.57
A29: October | B29: 90209 | C29: 93580.97 | D29: 94024 | E29: 98868.41 | F29: 96735 | G29: 88762 | H29: 91568 | I29: 101373 | J29: 101639 | K29: 98788 | L29: 104694 | M29: 107329 | N29: 111846 | O29: 115399 | P29: 118580 | Q29: 117632 | R29: 105321 | S29: 116662 | T29: 125314 | U29: 131044 | V29: 127048
A30: November | B30: 88458 | C30: 90186 | D30: 89088 | E30: 93360 | F30: * | G30: 89766 | H30: 91501 | I30: 92679 | J30: 97150 | K30: 100091 | L30: 106005 | M30: 110379 | N30: 112264 | O30: 119569 | P30: 126185 | Q30: 126018 | R30: 104808 | S30: 116839 | T30: 131524 | U30: 134021 | V30: 140379.46
A31: December | B31: 76348.8 | C31: 81771 | D31: 83199 | E31: 85915.7 | F31: 150407 | G31: 81526 | H31: 80916 | I31: 82488 | J31: 89910 | K31: 92661 | L31: 94061 | M31: 94711 | N31: 92630 | O31: 104986 | P31: 111451 | Q31: 111279 | R31: 83640 | S31: 103726 | T31: 120099 | U31: 123173 | V31: 130443
A32: Total | B32: =SUM(B20:B31) -> 1032094.49 | C32: =SUM(C20:C31) -> 1063004.02 | D32: 1073720.42 | E32: 1119572.04 | F32: 1057903 | G32: 1131901 | H32: 1081059 | I32: 1080745 | J32: =SUM(J20:J31) -> 1135450 | K32: 1154339 | L32: 1190976 | M32: 1271709 | N32: 1296062 | O32: 1352021 | P32: 1406571 | Q32: =SUM(Q20:Q31) -> 1418693 | R32: =SUM(R20:R31) -> 1197816 | S32: 1300465 | T32: 1431994 | U32: =SUM(U20:U31) -> 1557261 | V32: =SUM(V20:V31) -> 1606185.03
A33: *Collections for November 2008 are included in December totals due to a new processing system.
A34: ='Lod&Liq'!A71:F71 -> Source: Minnesota Department of Revenue, Tax Research Division, November 2025
A35: end of worksheet

Sheet St. Paul (hidden)
A1: St. Paul Monthly Detail for Minnesota Special Sales & Use Tax
A2: ='Lod&Liq'!A2 -> CY 2024
A3: St. Paul Local Lodging Tax - Less than 50 Rooms (3.0%)
A4: Month | B4: 2004 | C4: 2005 | D4: 2006 | E4: 2007 | F4: 2008 | G4: 2009 | H4: 2010 | I4: 2011 | J4: 2012 | K4: 2013 | L4: 2014 | M4: 2015 | N4: 2016 | O4: 2017 | P4: 2018 | Q4: 2019 | R4: 2020 | S4: 2021 | T4: 2022 | U4: 2023 | V4: 2024
A5: January | B5: - | C5: 2030 | D5: 2460 | E5: 2581 | F5: - | G5: 2552 | H5: 3167 | I5: 4305 | J5: 5190 | K5: 4869 | L5: 5174 | M5: 2647 | N5: 3560 | O5: 3700 | P5: 2922 | Q5: -74539 | R5: 16230 | S5: 8108 | T5: 16690 | U5: 22949 | V5: 25969
A6: February | B6: - | C6: 2113 | D6: 2632 | E6: 2492 | F6: - | G6: 2648 | H6: 2575 | I6: 3910 | J6: 4259 | K6: 4389 | L6: 4156 | M6: 3765 | N6: 2719 | O6: 6025 | P6: 5096 | Q6: 14749 | R6: 15667 | S6: -34517 | T6: 18771 | U6: 26737 | V6: 33477
A7: March | B7: - | C7: 1914 | D7: 2226 | E7: 2188 | F7: - | G7: -14107 | H7: 2633 | I7: 4760 | J7: 5180 | K7: 5011 | L7: 4241 | M7: 1856 | N7: 6408 | O7: 2025 | P7: 10986 | Q7: 12748 | R7: 15965 | S7: 11216 | T7: 20325 | U7: 25934 | V7: 38677
A8: April | B8: - | C8: 1905 | D8: 2593 | E8: 2507 | F8: - | G8: 2843 | H8: 4066 | I8: 5495 | J8: 6550 | K8: 5963 | L8: 5239 | M8: 2651 | N8: 3117 | O8: 3320 | P8: 4548 | Q8: 66703 | R8: 3623 | S8: 19060 | T8: 30071 | U8: 32917 | V8: 44745
A9: May | B9: 397 | C9: 2111 | D9: 2280 | E9: 2369 | F9: - | G9: 2565 | H9: 3423 | I9: 5392 | J9: 4850 | K9: 5302 | L9: 4606 | M9: 1977 | N9: 2402 | O9: 2943 | P9: 3219 | Q9: 15061 | R9: 1721 | S9: 18980 | T9: 27693 | U9: 34296 | V9: 42917
A10: June | B10: 943 | C10: 2203 | D10: 2528 | E10: 2451 | F10: - | G10: 2585 | H10: 3497 | I10: 4476 | J10: 5413 | K10: 5141 | L10: 5449 | M10: 2622 | N10: 2408 | O10: 2653 | P10: 3030 | Q10: 17421 | R10: -247502 | S10: 19426 | T10: 28905 | U10: 37641 | V10: 42145
A11: July | B11: 3907 | C11: 2253 | D11: 3005 | E11: 2667 | F11: - | G11: 3456 | H11: 4621 | I11: 6641 | J11: 6610 | K11: 7316 | L11: 7715 | M11: 3555 | N11: 3573 | O11: 5134 | P11: 6031 | Q11: 19638 | R11: 8750 | S11: 20378 | T11: 29398 | U11: 39924 | V11: 41038
A12: August | B12: 1178 | C12: 2659 | D12: 2868 | E12: 2120 | F12: - | G12: 3939 | H12: 6931 | I12: 5412 | J12: 6269 | K12: 5935 | L12: 2379 | M12: 2287 | N12: 3046 | O12: 2834 | P12: 3727 | Q12: 17341 | R12: 54731 | S12: 19410 | T12: 28412 | U12: 39752 | V12: 45500
A13: September | B13: 1281 | C13: 2679 | D13: 2983 | E13: 3112 | F13: - | G13: 3159 | H13: 5184 | I13: 5923 | J13: 6427 | K13: 6351 | L13: 2548 | M13: 2900 | N13: 3191 | O13: 3178 | P13: 4346 | Q13: 16930 | R13: 12203 | S13: 17110 | T13: 28084 | U13: 43001 | V13: 42539
A14: October | B14: 4441 | C14: 2708 | D14: 2825 | E14: 2530 | F14: - | G14: 3621 | H14: 5512 | I14: 6870 | J14: 6383 | K14: 6361 | L14: 3275 | M14: 4577 | N14: 4347 | O14: 3824 | P14: 4822 | Q14: 17701 | R14: 12428 | S14: 18888 | T14: 31634 | U14: 38063 | V14: 39583
A15: November | B15: 2114 | C15: 2515 | D15: 2687 | E15: 2476 | F15: * | G15: 2641 | H15: 3603 | I15: 5102 | J15: 5836 | K15: 4425 | L15: 2344 | M15: 2520 | N15: 2902 | O15: 1812 | P15: 295594 | Q15: 12934 | R15: 10448 | S15: 19016 | T15: 23584 | U15: 34720 | V15: 34773
A16: December | B16: 1985 | C16: 2220 | D16: 2401 | E16: 2306 | F16: 21584 | G16: 2476 | H16: 4973 | I16: 6914 | J16: 4497 | K16: 3821 | L16: 1979 | M16: 2068 | N16: 2117 | O16: 1711 | P16: 106139 | Q16: 11322 | R16: 6751 | S16: 17730 | T16: 21165 | U16: 30922 | V16: 28000
A17: Total | B17: =SUM(B5:B16) -> 16246 | C17: =SUM(C5:C16) -> 27310 | D17: 31488 | E17: 29799 | F17: 21584 | G17: 18378 | H17: 50185 | I17: 65200 | J17: =SUM(J5:J16) -> 67464 | K17: 64884 | L17: 49105 | M17: 33425 | N17: 39790 | O17: 39159 | P17: 450460 | Q17: =SUM(Q5:Q16) -> 148009 | R17: =SUM(R5:R16) -> -88985 | S17: 154805 | T17: 304732 | U17: =SUM(U5:U16) -> 406856 | V17: =SUM(V5:V16) -> 459363
A18: St. Paul Local Lodging Tax - 50 Rooms or More (6.0%)
A19: Month | B19: 2004 | C19: 2005 | D19: 2006 | E19: 2007 | F19: 2008 | G19: 2009 | H19: 2010 | I19: 2011 | J19: 2012 | K19: 2013 | L19: 2014 | M19: 2015 | N19: 2016 | O19: 2017 | P19: 2018 | Q19: 2019 | R19: 2020 | S19: 2021 | T19: 2022 | U19: 2023 | V19: 2024
A20: January | B20: - | C20: 143542 | D20: 213378 | E20: 175664 | F20: 173357 | G20: 227336 | H20: 159255 | I20: 167079 | J20: 171590 | K20: 156476 | L20: 191806 | M20: 205432 | N20: 231242 | O20: 246952 | P20: 252734 | Q20: 257066 | R20: 266036 | S20: 86325 | T20: 227671 | U20: 261827 | V20: 294345
A21: February | B21: - | C21: 159070 | D21: 185784 | E21: 176483 | F21: 247879 | G21: 195855 | H21: 184621 | I21: 203130 | J21: 206637 | K21: 218114 | L21: 212468 | M21: 252236 | N21: 272391 | O21: 252396 | P21: 293624 | Q21: 237049 | R21: 340148 | S21: 81505 | T21: 171864 | U21: 259818 | V21: 274038
A22: March | B22: - | C22: 197753 | D22: 180692 | E22: 198369 | F22: 244874 | G22: 202298 | H22: 174755 | I22: 198605 | J22: 232461 | K22: 228965 | L22: 248072 | M22: 259345 | N22: 321383 | O22: 329116 | P22: 446920 | Q22: 313546 | R22: 379173 | S22: 76665 | T22: 181172 | U22: 304354 | V22: 326926
A23: April | B23: - | C23: 233196 | D23: 281952 | E23: 277114 | F23: 314709 | G23: 327450 | H23: 305268 | I23: 305209 | J23: 315199 | K23: 311910 | L23: 301148 | M23: 283141 | N23: 317495 | O23: 421181 | P23: 393602 | Q23: 385572 | R23: 187626 | S23: 101742 | T23: 434115 | U23: 456459 | V23: 424246
A24: May | B24: 225244 | C24: 226986 | D24: 244114 | E24: 250307 | F24: 311798.81 | G24: 194661 | H24: 227014 | I24: 262064 | J24: 243817 | K24: 293646 | L24: 259559 | M24: 290521 | N24: 347885 | O24: 327052 | P24: 386772 | Q24: 383204 | R24: 55952 | S24: 124135 | T24: 331687 | U24: 349000 | V24: 491813
A25: June | B25: 223800 | C25: 256778 | D25: 236899 | E25: 248329 | F25: 255858 | G25: 217835 | H25: 254424 | I25: 244256 | J25: 260561 | K25: 280410 | L25: 263273 | M25: 376573 | N25: 314186 | O25: 339505 | P25: 325950 | Q25: 325370 | R25: 69416 | S25: 146970 | T25: 329045 | U25: 386607 | V25: 394781
A26: July | B26: 163660 | C26: 172635 | D26: 133104 | E26: 134796 | F26: 196764 | G26: 191111 | H26: 281289 | I26: 227434 | J26: 268190 | K26: 268121 | L26: 314780 | M26: 317154 | N26: 216838 | O26: 400969 | P26: 449495 | Q26: 287104 | R26: 85671 | S26: 167699 | T26: 393856 | U26: 482542 | V26: 489323
A27: August | B27: 376495 | C27: 367400 | D27: 403975 | E27: 438503 | F27: 309866 | G27: 306780 | H27: 264597 | I27: 340182 | J27: 294774 | K27: 293005 | L27: 343922 | M27: 390373 | N27: 528047 | O27: 411571 | P27: 376765 | Q27: 570495 | R27: 92483 | S27: 273547 | T27: 485715 | U27: 419750 | V27: 585353
A28: September | B28: 275272 | C28: 313812 | D28: 284902 | E28: 290002 | F28: 303851 | G28: 245351 | H28: 264733 | I28: 316803 | J28: 336470 | K28: 294655 | L28: 370176 | M28: 360007 | N28: 411083 | O28: 426532 | P28: 424416 | Q28: 420749 | R28: 98918 | S28: 285746 | T28: 487301 | U28: 501288 | V28: 517744
A29: October | B29: 278813 | C29: 295512 | D29: 303088 | E29: 292242 | F29: 355325 | G29: 249145 | H29: 279146 | I29: 280433 | J29: 281946 | K29: 338427 | L29: 333174 | M29: 348819 | N29: 463159 | O29: 402770 | P29: 433308 | Q29: 441855 | R29: 138882 | S29: 285557 | T29: 469464 | U29: 501694 | V29: 477347
A30: November | B30: 291329 | C30: 295157 | D30: 282351 | E30: 348155 | F30: * | G30: 268181 | H30: 188639 | I30: 288944 | J30: 307537 | K30: 345129 | L30: 350453 | M30: 372214 | N30: 459151 | O30: 402028 | P30: 465824 | Q30: 469482 | R30: 90060 | S30: 276664 | T30: 406529 | U30: 443333 | V30: 489138
A31: December | B31: 188743 | C31: 136101 | D31: 224088 | E31: 220697 | F31: 417603 | G31: 182771 | H31: 299769 | I31: 206978 | J31: 214058 | K31: 236637 | L31: 244743 | M31: 268993 | N31: 202166 | O31: 299573 | P31: 300547 | Q31: 317263 | R31: 65692 | S31: 203939 | T31: 318825 | U31: 392021 | V31: 363245
A32: Total | B32: =SUM(B20:B31) -> 2023356 | C32: =SUM(C20:C31) -> 2797942 | D32: 2974327 | E32: 3050661 | F32: 3131884.81 | G32: 2808774 | H32: 2883510 | I32: 3041117 | J32: =SUM(J20:J31) -> 3133240 | K32: 3265495 | L32: 3433574 | M32: 3724808 | N32: 4085026 | O32: 4259645 | P32: 4549957 | Q32: =SUM(Q20:Q31) -> 4408755 | R32: =SUM(R20:R31) -> 1870057 | S32: 2110494 | T32: 4237244 | U32: =SUM(U20:U31) -> 4758693 | V32: =SUM(V20:V31) -> 5128299
A33: *Collections for November 2008 are included in December totals due to a new processing system.
A34: ='Lod&Liq'!A71:F71 -> Source: Minnesota Department of Revenue, Tax Research Division, November 2025
A35: end of worksheet

Sheet Metro Area Transit (hidden)
A1: Metro Area Transit Monthly Detail for Minnesota Special Sales & Use Tax
A2: ='Lod&Liq'!A2 -> CY 2024
A3: Metro Area Transit Improvement Local Excise Tax (Vehicle Excise)
A4: Month | B4: 2004 | C4: 2005 | D4: 2006 | E4: 2007 | F4: 2008 | G4: 2009 | H4: 2010 | I4: 2011 | J4: 2012 | K4: 2013 | L4: 2014 | M4: 2015 | N4: 2016 | O4: 2017 | P4: 2018 | Q4: 2019 | R4: 2020 | S4: 2021 | T4: 2022 | U4: 2023 | V4: 2024
A5: January | B5: - | C5: - | D5: - | E5: - | F5: - | G5: 414620 | H5: 530620 | I5: 694800 | J5: 492562 | K5: -1144660 | L5: -1290860 | M5: -23020 | N5: 534900 | O5: 595900 | P5: 18480 | Q5: 17240 | R5: -57020 | S5: 0 | T5: -40 | U5: 0 | V5: 0
A6: February | B6: - | C6: - | D6: - | E6: - | F6: - | G6: 326160 | H6: 326880 | I6: 385480 | J6: 333060 | K6: 2024900 | L6: 421000 | M6: 505320 | N6: 464760 | O6: 483300 | P6: 9700 | Q6: 17160 | R6: -800 | S6: 80 | T6: 1040 | U6: 0 | V6: 0
A7: March | B7: - | C7: - | D7: - | E7: - | F7: - | G7: 321040 | H7: 271040 | I7: 347560 | J7: 377920 | K7: 375000 | L7: 2211660 | M7: 439713 | N7: 607540 | O7: 484503 | P7: 6180 | Q7: -58480 | R7: -58260 | S7: 0 | T7: 0 | U7: 0 | V7: 0
A8: April | B8: - | C8: - | D8: - | E8: - | F8: - | G8: 390380 | H8: 445080 | I8: 527320 | J8: 561620 | K8: 524620 | L8: 616500 | M8: 603867 | N8: 569329 | O8: 621300 | P8: 6180 | Q8: 60 | R8: 2700 | S8: 0 | T8: 0 | U8: 0 | V8: 0
A9: May | B9: - | C9: - | D9: - | E9: - | F9: - | G9: 357300 | H9: 369940 | I9: 446760 | J9: 421500 | K9: 471540 | L9: 509240 | M9: 521293 | N9: 534940 | O9: 550080 | P9: 32339 | Q9: 80 | R9: 300 | S9: 0 | T9: 0 | U9: 0 | V9: 8900
A10: June | B10: - | C10: - | D10: - | E10: - | F10: - | G10: 348720 | H10: 361340 | I10: 444800 | J10: 466640 | K10: 779720 | L10: 588220 | M10: 539940 | N10: 556580 | O10: 583960 | P10: 20600 | Q10: 3280 | R10: 140 | S10: 0 | T10: 0 | U10: 0 | V10: 0
A11: July | B11: - | C11: - | D11: - | E11: - | F11: - | G11: 365240 | H11: 369720 | I11: 440740 | J11: 419560 | K11: 557340 | L11: 475860 | M11: 1100400 | N11: 553120 | O11: 559360 | P11: 36240 | Q11: 0 | R11: 6000 | S11: 4840 | T11: 0 | U11: 0 | V11: 0
A12: August | B12: - | C12: - | D12: - | E12: - | F12: 361520 | G12: 450340 | H12: 413680 | I12: 465760 | J12: 533300 | K12: 594360 | L12: 596400 | M12: 597900 | N12: 601400 | O12: 622604 | P12: 2600 | Q12: 0 | R12: 0 | S12: 40 | T12: 0 | U12: -1000 | V12: 0
A13: September | B13: - | C13: - | D13: - | E13: - | F13: 387920 | G13: 436700 | H13: 363680 | I13: 452540 | J13: 461860 | K13: 580693 | L13: 543020 | M13: 583558 | N13: 627220 | O13: 579820 | P13: 1560 | Q13: 1000 | R13: 3820 | S13: 24140 | T13: 0 | U13: 0 | V13: 0
A14: October | B14: - | C14: - | D14: - | E14: - | F14: 203020 | G14: 364300 | H14: 395180 | I14: 479400 | J14: 498660 | K14: 525681 | L14: 659710 | M14: 602060 | N14: 596400 | O14: 607080 | P14: 680 | Q14: 2520 | R14: 0 | S14: 0 | T14: 0 | U14: 0 | V14: 0
A15: November | B15: - | C15: - | D15: - | E15: - | F15: * | G15: 283840 | H15: 343900 | I15: 410880 | J15: 417960 | K15: 469249 | L15: 522263 | M15: 529490 | N15: 516252 | O15: 10400 | P15: 320 | Q15: 60220 | R15: 3160 | S15: 0 | T15: 0 | U15: 0 | V15: 0
A16: December | B16: - | C16: - | D16: - | E16: - | F16: 525200 | G16: 255920 | H16: 309000 | I16: 381900 | J16: 383280 | K16: 450240 | L16: 520859 | M16: 457140 | N16: 498640 | O16: 7740 | P16: 2063 | Q16: -58360 | R16: 0 | S16: 0 | T16: 0 | U16: 0 | V16: 0
A17: Total | B17: - | C17: - | D17: - | E17: - | F17: =SUM(F5:F16) -> 1477660 | G17: 4314560 | H17: 4500060 | I17: 5477940 | J17: 5367922 | K17: 6208683 | L17: =SUM(L5:L16) -> 6373872 | M17: 6457661 | N17: 6661081 | O17: 5706047 | P17: 136942 | Q17: -15280 | R17: =SUM(R5:R16) -> -99960 | S17: =SUM(S5:S16) -> 29100 | T17: 1000 | U17: =SUM(U5:U16) -> -1000 | V17: =SUM(V5:V16) -> 8900
A18: Hidden columns B-E do not contain any data for CY 2004-2007
A19: Note: Tax ended September 30, 2017. Collections in later months are late tax payments or refunds.
A20: *Collections for November 2008 are included in December totals due to a new processing system.
A21: ='Lod&Liq'!A71:F71 -> Source: Minnesota Department of Revenue, Tax Research Division, November 2025
A22: end of worksheet

Sheet Willmar (hidden)
A1: Willmar Monthly Detail for Minnesota Special Sales & Use Tax
A2: ='Lod&Liq'!A2 -> CY 2024
A3: Willmar Vehicle Excise ($20)
A4: Month | B4: 2004 | C4: 2005 | D4: 2006 | E4: 2007 | F4: 2008 | G4: 2009 | H4: 2010 | I4: 2011 | J4: 2012 | K4: 2013 | L4: 2014 | M4: 2015 | N4: 2016 | O4: 2017 | P4: 2018 | Q4: 2019 | R4: 2020 | S4: 2021 | T4: 2022 | U4: 2023 | V4: 2024
A5: January | B5: - | C5: - | D5: - | E5: - | F5: - | G5: - | H5: - | I5: - | J5: - | K5: - | L5: - | M5: - | N5: - | O5: - | P5: - | Q5: - | R5: 4940 | S5: 5260 | T5: 3860 | U5: 3860 | V5: 4420
A6: February | B6: - | C6: - | D6: - | E6: - | F6: - | G6: - | H6: - | I6: - | J6: - | K6: - | L6: - | M6: - | N6: - | O6: - | P6: - | Q6: - | R6: 5080 | S6: 5540 | T6: 5280 | U6: 5320 | V6: 6040
A7: March | B7: - | C7: - | D7: - | E7: - | F7: - | G7: - | H7: - | I7: - | J7: - | K7: - | L7: - | M7: - | N7: - | O7: - | P7: - | Q7: - | R7: 5420 | S7: 5400 | T7: 5960 | U7: 4580 | V7: 4580
A8: April | B8: - | C8: - | D8: - | E8: - | F8: - | G8: - | H8: - | I8: - | J8: - | K8: - | L8: - | M8: - | N8: - | O8: - | P8: - | Q8: - | R8: 3460 | S8: 6180 | T8: 4460 | U8: 4680 | V8: 5140
A9: May | B9: - | C9: - | D9: - | E9: - | F9: - | G9: - | H9: - | I9: - | J9: - | K9: - | L9: - | M9: - | N9: - | O9: - | P9: - | Q9: - | R9: 3720 | S9: 4500 | T9: 3840 | U9: 4800 | V9: 4900
A10: June | B10: - | C10: - | D10: - | E10: - | F10: - | G10: - | H10: - | I10: - | J10: - | K10: - | L10: - | M10: - | N10: - | O10: - | P10: - | Q10: - | R10: 5220 | S10: 5580 | T10: 4120 | U10: 4500 | V10: 4920
A11: July | B11: - | C11: - | D11: - | E11: - | F11: - | G11: - | H11: - | I11: - | J11: - | K11: - | L11: - | M11: - | N11: - | O11: - | P11: - | Q11: - | R11: 6340 | S11: 5300 | T11: 4400 | U11: 4400 | V11: 4320
A12: August | B12: - | C12: - | D12: - | E12: - | F12: - | G12: - | H12: - | I12: - | J12: - | K12: - | L12: - | M12: - | N12: - | O12: - | P12: - | Q12: - | R12: 5940 | S12: 4840 | T12: 4540 | U12: 4560 | V12: 5000
A13: September | B13: - | C13: - | D13: - | E13: - | F13: - | G13: - | H13: - | I13: - | J13: - | K13: - | L13: - | M13: - | N13: - | O13: - | P13: - | Q13: - | R13: 5200 | S13: 5180 | T13: 5400 | U13: 4440 | V13: 4780
A14: October | B14: - | C14: - | D14: - | E14: - | F14: - | G14: - | H14: - | I14: - | J14: - | K14: - | L14: - | M14: - | N14: - | O14: - | P14: - | Q14: - | R14: 5280 | S14: 4400 | T14: 4720 | U14: 4660 | V14: 4500
A15: November | B15: - | C15: - | D15: - | E15: - | F15: - | G15: - | H15: - | I15: - | J15: - | K15: - | L15: - | M15: - | N15: - | O15: - | P15: - | Q15: 4260 | R15: 5360 | S15: 3740 | T15: 4560 | U15: 4200 | V15: 4840
A16: December | B16: - | C16: - | D16: - | E16: - | F16: - | G16: - | H16: - | I16: - | J16: - | K16: - | L16: - | M16: - | N16: - | O16: - | P16: - | Q16: 2660 | R16: 4220 | S16: 3660 | T16: 5000 | U16: 5280 | V16: 4040
A17: Total | B17: =SUM(B5:B16) -> 0 | C17: =SUM(C5:C16) -> 0 | D17: 0 | E17: 0 | F17: 0 | G17: 0 | H17: 0 | I17: 0 | J17: 0 | K17: 0 | L17: 0 | M17: 0 | N17: 0 | O17: 0 | P17: 0 | Q17: 6920 | R17: =SUM(R5:R16) -> 60180 | S17: 59580 | T17: =SUM(T5:T16) -> 56140 | U17: =SUM(U5:U16) -> 55280 | V17: =SUM(V5:V16) -> 57480
A18: Hidden columns B-P do not contain any data for CY 2004-2018
A19: ='Lod&Liq'!A71:F71 -> Source: Minnesota Department of Revenue, Tax Research Division, November 2025
A20: end of worksheet

Sheet Rogers (hidden)
A1: Rogers Monthly Detail for Minnesota Special Sales & Use Tax
A2: ='Lod&Liq'!A2 -> CY 2024
A3: Rogers Vehicle Excise ($20)
A4: Month | B4: 2004 | C4: 2005 | D4: 2006 | E4: 2007 | F4: 2008 | G4: 2009 | H4: 2010 | I4: 2011 | J4: 2012 | K4: 2013 | L4: 2014 | M4: 2015 | N4: 2016 | O4: 2017 | P4: 2018 | Q4: 2019 | R4: 2020 | S4: 2021 | T4: 2022 | U4: 2023 | V4: 2024
A5: January | B5: - | C5: - | D5: - | E5: - | F5: - | G5: - | H5: - | I5: - | J5: - | K5: - | L5: - | M5: - | N5: - | O5: - | P5: - | Q5: - | R5: 4980 | S5: 6400 | T5: 5640 | U5: 4620 | V5: 5120
A6: February | B6: - | C6: - | D6: - | E6: - | F6: - | G6: - | H6: - | I6: - | J6: - | K6: - | L6: - | M6: - | N6: - | O6: - | P6: - | Q6: - | R6: 5820 | S6: 5560 | T6: 4120 | U6: 4500 | V6: 4500
A7: March | B7: - | C7: - | D7: - | E7: - | F7: - | G7: - | H7: - | I7: - | J7: - | K7: - | L7: - | M7: - | N7: - | O7: - | P7: - | Q7: - | R7: 5860 | S7: 5840 | T7: 6100 | U7: 5200 | V7: 5120
A8: April | B8: - | C8: - | D8: - | E8: - | F8: - | G8: - | H8: - | I8: - | J8: - | K8: - | L8: - | M8: - | N8: - | O8: - | P8: - | Q8: - | R8: 6160 | S8: 8800 | T8: 5460 | U8: 6380 | V8: 5200
A9: May | B9: - | C9: - | D9: - | E9: - | F9: - | G9: - | H9: - | I9: - | J9: - | K9: - | L9: - | M9: - | N9: - | O9: - | P9: - | Q9: - | R9: 5060 | S9: 8320 | T9: 5280 | U9: 5820 | V9: 5760
A10: June | B10: - | C10: - | D10: - | E10: - | F10: - | G10: - | H10: - | I10: - | J10: - | K10: - | L10: - | M10: - | N10: - | O10: - | P10: - | Q10: - | R10: 6940 | S10: 7140 | T10: 4640 | U10: 6160 | V10: 5200
A11: July | B11: - | C11: - | D11: - | E11: - | F11: - | G11: - | H11: - | I11: - | J11: - | K11: - | L11: - | M11: - | N11: - | O11: - | P11: - | Q11: - | R11: 8200 | S11: 6440 | T11: 5380 | U11: 7800 | V11: 6040
A12: August | B12: - | C12: - | D12: - | E12: - | F12: - | G12: - | H12: - | I12: - | J12: - | K12: - | L12: - | M12: - | N12: - | O12: - | P12: - | Q12: - | R12: 7560 | S12: 6380 | T12: 4740 | U12: 6720 | V12: 6200
A13: September | B13: - | C13: - | D13: - | E13: - | F13: - | G13: - | H13: - | I13: - | J13: - | K13: - | L13: - | M13: - | N13: - | O13: - | P13: - | Q13: - | R13: 6120 | S13: 5960 | T13: 5600 | U13: 6320 | V13: 5340
A14: October | B14: - | C14: - | D14: - | E14: - | F14: - | G14: - | H14: - | I14: - | J14: - | K14: - | L14: - | M14: - | N14: - | O14: - | P14: - | Q14: 0 | R14: 7200 | S14: 4920 | T14: 5000 | U14: 5820 | V14: 5240
A15: November | B15: - | C15: - | D15: - | E15: - | F15: - | G15: - | H15: - | I15: - | J15: - | K15: - | L15: - | M15: - | N15: - | O15: - | P15: - | Q15: 6420 | R15: 5800 | S15: 5080 | T15: 5280 | U15: 6620 | V15: 5460
A16: December | B16: - | C16: - | D16: - | E16: - | F16: - | G16: - | H16: - | I16: - | J16: - | K16: - | L16: - | M16: - | N16: - | O16: - | P16: - | Q16: 6860 | R16: 4920 | S16: 5040 | T16: 4480 | U16: 6420 | V16: 6080
A17: Total | B17: =SUM(B5:B16) -> 0 | C17: =SUM(C5:C16) -> 0 | D17: 0 | E17: 0 | F17: 0 | G17: 0 | H17: 0 | I17: 0 | J17: 0 | K17: 0 | L17: 0 | M17: 0 | N17: 0 | O17: 0 | P17: 0 | Q17: 13280 | R17: =SUM(R5:R16) -> 74620 | S17: 75880 | T17: 61720 | U17: =SUM(U5:U16) -> 72380 | V17: =SUM(V5:V16) -> 65260
A18: Hidden columns B-P do not contain any data for CY 2004-2018
A19: ='Lod&Liq'!A71:F71 -> Source: Minnesota Department of Revenue, Tax Research Division, November 2025
A20: end of worksheet

Sheet Lake of the Woods (hidden)
A1: Lake of the Woods Monthly Detail for Minnesota Special Sales & Use Tax
A2: ='Lod&Liq'!A2 -> CY 2024
A3: Lake of the Woods Lodging Tax
A4: Month | B4: 2004 | C4: 2005 | D4: 2006 | E4: 2007 | F4: 2008 | G4: 2009 | H4: 2010 | I4: 2011 | J4: 2012 | K4: 2013 | L4: 2014 | M4: 2015 | N4: 2016 | O4: 2017 | P4: 2018 | Q4: 2019 | R4: 2020 | S4: 2021 | T4: 2022 | U4: 2023 | V4: 2024
A5: January | B5: - | C5: - | D5: - | E5: - | F5: - | G5: - | H5: - | I5: - | J5: - | K5: - | L5: - | M5: - | N5: - | O5: - | P5: - | Q5: - | R5: - | S5: - | T5: 40550 | U5: 36691 | V5: 22934
A6: February | B6: - | C6: - | D6: - | E6: - | F6: - | G6: - | H6: - | I6: - | J6: - | K6: - | L6: - | M6: - | N6: - | O6: - | P6: - | Q6: - | R6: - | S6: 87169 | T6: 102639 | U6: 130963 | V6: 103119
A7: March | B7: - | C7: - | D7: - | E7: - | F7: - | G7: - | H7: - | I7: - | J7: - | K7: - | L7: - | M7: - | N7: - | O7: - | P7: - | Q7: - | R7: - | S7: 72469 | T7: 77551 | U7: 65658 | V7: 59372
A8: April | B8: - | C8: - | D8: - | E8: - | F8: - | G8: - | H8: - | I8: - | J8: - | K8: - | L8: - | M8: - | N8: - | O8: - | P8: - | Q8: - | R8: - | S8: 41073 | T8: 48718 | U8: 38042 | V8: 25566
A9: May | B9: - | C9: - | D9: - | E9: - | F9: - | G9: - | H9: - | I9: - | J9: - | K9: - | L9: - | M9: - | N9: - | O9: - | P9: - | Q9: - | R9: - | S9: 15126 | T9: 10622 | U9: 10304 | V9: 10811
A10: June | B10: - | C10: - | D10: - | E10: - | F10: - | G10: - | H10: - | I10: - | J10: - | K10: - | L10: - | M10: - | N10: - | O10: - | P10: - | Q10: - | R10: - | S10: 32496 | T10: 29848 | U10: 28607 | V10: 30013
A11: July | B11: - | C11: - | D11: - | E11: - | F11: - | G11: - | H11: - | I11: - | J11: - | K11: - | L11: - | M11: - | N11: - | O11: - | P11: - | Q11: - | R11: - | S11: 64844 | T11: 60303 | U11: 62472 | V11: 57297
A12: August | B12: - | C12: - | D12: - | E12: - | F12: - | G12: - | H12: - | I12: - | J12: - | K12: - | L12: - | M12: - | N12: - | O12: - | P12: - | Q12: - | R12: - | S12: 53805 | T12: 40425 | U12: 50724 | V12: 45895
A13: September | B13: - | C13: - | D13: - | E13: - | F13: - | G13: - | H13: - | I13: - | J13: - | K13: - | L13: - | M13: - | N13: - | O13: - | P13: - | Q13: - | R13: - | S13: 54298 | T13: 46666 | U13: 45529 | V13: 42608
A14: October | B14: - | C14: - | D14: - | E14: - | F14: - | G14: - | H14: - | I14: - | J14: - | K14: - | L14: - | M14: - | N14: - | O14: - | P14: - | Q14: - | R14: - | S14: 44195 | T14: 40480 | U14: 38683 | V14: 38113
A15: November | B15: - | C15: - | D15: - | E15: - | F15: - | G15: - | H15: - | I15: - | J15: - | K15: - | L15: - | M15: - | N15: - | O15: - | P15: - | Q15: - | R15: - | S15: 32279 | T15: 30600 | U15: 28008 | V15: 23755
A16: December | B16: - | C16: - | D16: - | E16: - | F16: - | G16: - | H16: - | I16: - | J16: - | K16: - | L16: - | M16: - | N16: - | O16: - | P16: - | Q16: - | R16: - | S16: 5063 | T16: 4296 | U16: 2825 | V16: 4456
A17: Total | B17: =SUM(B5:B16) -> 0 | C17: =SUM(C5:C16) -> 0 | D17: 0 | E17: 0 | F17: 0 | G17: 0 | H17: 0 | I17: 0 | J17: 0 | K17: 0 | L17: 0 | M17: 0 | N17: 0 | O17: 0 | P17: 0 | Q17: 0 | R17: 0 | S17: 502817 | T17: =SUM(T5:T16) -> 532698 | U17: =SUM(U5:U16) -> 538506 | V17: =SUM(V5:V16) -> 463939
A18: Hidden columns B-R do not contain any data for CY 2004-2020
A19: ='Lod&Liq'!A71:F71 -> Source: Minnesota Department of Revenue, Tax Research Division, November 2025
A20: end of worksheet

Sheet Sauk Centre (hidden)
A1: Sauk Centre Monthly Detail for Minnesota Special Sales & Use Tax
A2: ='Lod&Liq'!A2 -> CY 2024
A3: Sauk Centre Vehicle Excise ($20)
A4: Month | B4: 2004 | C4: 2005 | D4: 2006 | E4: 2007 | F4: 2008 | G4: 2009 | H4: 2010 | I4: 2011 | J4: 2012 | K4: 2013 | L4: 2014 | M4: 2015 | N4: 2016 | O4: 2017 | P4: 2018 | Q4: 2019 | R4: 2020 | S4: 2021 | T4: 2022 | U4: 2023 | V4: 2024
A5: January | B5: - | C5: - | D5: - | E5: - | F5: - | G5: - | H5: - | I5: - | J5: - | K5: - | L5: - | M5: - | N5: - | O5: - | P5: - | Q5: - | R5: 0 | S5: 2900 | T5: 2540 | U5: 2300 | V5: 2120
A6: February | B6: - | C6: - | D6: - | E6: - | F6: - | G6: - | H6: - | I6: - | J6: - | K6: - | L6: - | M6: - | N6: - | O6: - | P6: - | Q6: - | R6: 2080 | S6: 2440 | T6: 1920 | U6: 1760 | V6: 1960
A7: March | B7: - | C7: - | D7: - | E7: - | F7: - | G7: - | H7: - | I7: - | J7: - | K7: - | L7: - | M7: - | N7: - | O7: - | P7: - | Q7: - | R7: 2660 | S7: 2400 | T7: 3600 | U7: 2020 | V7: 2140
A8: April | B8: - | C8: - | D8: - | E8: - | F8: - | G8: - | H8: - | I8: - | J8: - | K8: - | L8: - | M8: - | N8: - | O8: - | P8: - | Q8: - | R8: 2300 | S8: 4160 | T8: 2860 | U8: 1980 | V8: 2300
A9: May | B9: - | C9: - | D9: - | E9: - | F9: - | G9: - | H9: - | I9: - | J9: - | K9: - | L9: - | M9: - | N9: - | O9: - | P9: - | Q9: - | R9: 2360 | S9: 7300 | T9: 2120 | U9: 2200 | V9: 2260
A10: June | B10: - | C10: - | D10: - | E10: - | F10: - | G10: - | H10: - | I10: - | J10: - | K10: - | L10: - | M10: - | N10: - | O10: - | P10: - | Q10: - | R10: 2640 | S10: 2440 | T10: 1420 | U10: 2080 | V10: 1960
A11: July | B11: - | C11: - | D11: - | E11: - | F11: - | G11: - | H11: - | I11: - | J11: - | K11: - | L11: - | M11: - | N11: - | O11: - | P11: - | Q11: - | R11: 2560 | S11: 3180 | T11: 2160 | U11: 2660 | V11: 1860
A12: August | B12: - | C12: - | D12: - | E12: - | F12: - | G12: - | H12: - | I12: - | J12: - | K12: - | L12: - | M12: - | N12: - | O12: - | P12: - | Q12: - | R12: 1700 | S12: 2720 | T12: 2460 | U12: 1760 | V12: 1740
A13: September | B13: - | C13: - | D13: - | E13: - | F13: - | G13: - | H13: - | I13: - | J13: - | K13: - | L13: - | M13: - | N13: - | O13: - | P13: - | Q13: - | R13: 3180 | S13: 2240 | T13: 2120 | U13: 1780 | V13: 2140
A14: October | B14: - | C14: - | D14: - | E14: - | F14: - | G14: - | H14: - | I14: - | J14: - | K14: - | L14: - | M14: - | N14: - | O14: - | P14: - | Q14: - | R14: 3380 | S14: 2820 | T14: 2420 | U14: 2300 | V14: 2040
A15: November | B15: - | C15: - | D15: - | E15: - | F15: - | G15: - | H15: - | I15: - | J15: - | K15: - | L15: - | M15: - | N15: - | O15: - | P15: - | Q15: - | R15: 2260 | S15: 2740 | T15: 1660 | U15: 1860 | V15: 2360
A16: December | B16: - | C16: - | D16: - | E16: - | F16: - | G16: - | H16: - | I16: - | J16: - | K16: - | L16: - | M16: - | N16: - | O16: - | P16: - | Q16: - | R16: 3280 | S16: 2200 | T16: 1680 | U16: 1680 | V16: 1760
A17: Total | B17: =SUM(B5:B16) -> 0 | C17: =SUM(C5:C16) -> 0 | D17: 0 | E17: 0 | F17: 0 | G17: 0 | H17: 0 | I17: 0 | J17: 0 | K17: 0 | L17: 0 | M17: 0 | N17: 0 | O17: 0 | P17: 0 | Q17: 0 | R17: =SUM(R5:R16) -> 28400 | S17: 37540 | T17: 26960 | U17: =SUM(U5:U16) -> 24380 | V17: =SUM(V5:V16) -> 24640
A18: Hidden columns B-P do not contain any data for CY 2004-2018
A19: ='Lod&Liq'!A71:F71 -> Source: Minnesota Department of Revenue, Tax Research Division, November 2025
A20: end of worksheet

Sheet Lake (hidden)
A1: Lake County Monthly Detail for Minnesota Special Sales & Use Tax
A2: ='Lod&Liq'!A2 -> CY 2024
A3: Lake County Local Lodging Tax (4%)
A4: Month | B4: 2004 | C4: 2005 | D4: 2006 | E4: 2007 | F4: 2008 | G4: 2009 | H4: 2010 | I4: 2011 | J4: 2012 | K4: 2013 | L4: 2014 | M4: 2015 | N4: 2016 | O4: 2017 | P4: 2018 | Q4: 2019 | R4: 2020 | S4: 2021 | T4: 2022 | U4: 2023 | V4: 2024
A5: January | B5: - | C5: - | D5: - | E5: - | F5: - | G5: - | H5: - | I5: - | J5: - | K5: - | L5: - | M5: - | N5: - | O5: - | P5: - | Q5: - | R5: - | S5: 58629 | T5: 75047 | U5: 72728 | V5: 71196
A6: February | B6: - | C6: - | D6: - | E6: - | F6: - | G6: - | H6: - | I6: - | J6: - | K6: - | L6: - | M6: - | N6: - | O6: - | P6: - | Q6: - | R6: - | S6: 61244 | T6: 73760 | U6: 83508 | V6: 72110
A7: March | B7: - | C7: - | D7: - | E7: - | F7: - | G7: - | H7: - | I7: - | J7: - | K7: - | L7: - | M7: - | N7: - | O7: - | P7: - | Q7: - | R7: - | S7: 72249 | T7: 82352 | U7: 71519 | V7: 67453
A8: April | B8: - | C8: - | D8: - | E8: - | F8: - | G8: - | H8: - | I8: - | J8: - | K8: - | L8: - | M8: - | N8: - | O8: - | P8: - | Q8: - | R8: - | S8: 93659 | T8: 90301 | U8: 80884 | V8: 80331
A9: May | B9: - | C9: - | D9: - | E9: - | F9: - | G9: - | H9: - | I9: - | J9: - | K9: - | L9: - | M9: - | N9: - | O9: - | P9: - | Q9: - | R9: - | S9: 85110 | T9: 75334 | U9: 62892 | V9: 57935
A10: June | B10: - | C10: - | D10: - | E10: - | F10: - | G10: - | H10: - | I10: - | J10: - | K10: - | L10: - | M10: - | N10: - | O10: - | P10: - | Q10: - | R10: - | S10: 119393 | T10: 115190 | U10: 112034 | V10: 128460
A11: July | B11: - | C11: - | D11: - | E11: - | F11: - | G11: - | H11: - | I11: - | J11: - | K11: - | L11: - | M11: - | N11: - | O11: - | P11: - | Q11: - | R11: - | S11: 183650 | T11: 214428 | U11: 217513 | V11: 219060
A12: August | B12: - | C12: - | D12: - | E12: - | F12: - | G12: - | H12: - | I12: - | J12: - | K12: - | L12: - | M12: - | N12: - | O12: - | P12: - | Q12: - | R12: - | S12: 275728 | T12: 267051 | U12: 254744 | V12: 247634
A13: September | B13: - | C13: - | D13: - | E13: - | F13: - | G13: - | H13: - | I13: - | J13: - | K13: - | L13: - | M13: - | N13: - | O13: - | P13: - | Q13: - | R13: - | S13: 230795 | T13: 245368 | U13: 262777 | V13: 255058
A14: October | B14: - | C14: - | D14: - | E14: - | F14: - | G14: - | H14: - | I14: - | J14: - | K14: - | L14: - | M14: - | N14: - | O14: - | P14: - | Q14: - | R14: - | S14: 220734 | T14: 233179 | U14: 247860 | V14: 225163
A15: November | B15: - | C15: - | D15: - | E15: - | F15: - | G15: - | H15: - | I15: - | J15: - | K15: - | L15: - | M15: - | N15: - | O15: - | P15: - | Q15: - | R15: 120130 | S15: 152806 | T15: 159004 | U15: 155330 | V15: 160919
A16: December | B16: - | C16: - | D16: - | E16: - | F16: - | G16: - | H16: - | I16: - | J16: - | K16: - | L16: - | M16: - | N16: - | O16: - | P16: - | Q16: - | R16: 44201 | S16: 66835 | T16: 61128 | U16: 57275 | V16: 62095
A17: Total | B17: =SUM(B5:B16) -> 0 | C17: =SUM(C5:C16) -> 0 | D17: 0 | E17: 0 | F17: 0 | G17: 0 | H17: 0 | I17: 0 | J17: 0 | K17: 0 | L17: 0 | M17: 0 | N17: 0 | O17: 0 | P17: 0 | Q17: 0 | R17: =SUM(R5:R16) -> 164331 | S17: 1620832 | T17: 1692142 | U17: =SUM(U5:U16) -> 1679064 | V17: =SUM(V5:V16) -> 1647414
A18: Hidden columns B-Q do not contain any data for CY 2004-2019
A19: ='Lod&Liq'!A71:F71 -> Source: Minnesota Department of Revenue, Tax Research Division, November 2025
A20: end of worksheet

Sheet Two Harbors (hidden)
A1: Two Harbors Monthly Detail for Minnesota Special Sales & Use Tax
A2: ='Lod&Liq'!A2 -> CY 2024
A3: Two Harbors Local Lodging Tax (1%)*
A4: Month | B4: 2004 | C4: 2005 | D4: 2006 | E4: 2007 | F4: 2008 | G4: 2009 | H4: 2010 | I4: 2011 | J4: 2012 | K4: 2013 | L4: 2014 | M4: 2015 | N4: 2016 | O4: 2017 | P4: 2018 | Q4: 2019 | R4: 2020 | S4: 2021 | T4: 2022 | U4: 2023 | V4: 2024
A5: January | B5: - | C5: - | D5: - | E5: - | F5: - | G5: - | H5: - | I5: - | J5: - | K5: - | L5: - | M5: - | N5: - | O5: - | P5: - | Q5: - | R5: - | S5: 1521 | T5: 7519 | U5: 4419 | V5: 4440
A6: February | B6: - | C6: - | D6: - | E6: - | F6: - | G6: - | H6: - | I6: - | J6: - | K6: - | L6: - | M6: - | N6: - | O6: - | P6: - | Q6: - | R6: - | S6: 2642 | T6: 4741 | U6: 6567 | V6: 5372
A7: March | B7: - | C7: - | D7: - | E7: - | F7: - | G7: - | H7: - | I7: - | J7: - | K7: - | L7: - | M7: - | N7: - | O7: - | P7: - | Q7: - | R7: - | S7: 2846 | T7: 5248 | U7: 1709 | V7: 3931
A8: April | B8: - | C8: - | D8: - | E8: - | F8: - | G8: - | H8: - | I8: - | J8: - | K8: - | L8: - | M8: - | N8: - | O8: - | P8: - | Q8: - | R8: - | S8: 4244 | T8: 5373 | U8: 5238 | V8: 5326
A9: May | B9: - | C9: - | D9: - | E9: - | F9: - | G9: - | H9: - | I9: - | J9: - | K9: - | L9: - | M9: - | N9: - | O9: - | P9: - | Q9: - | R9: - | S9: 4458 | T9: 4305 | U9: 3934 | V9: 4349
A10: June | B10: - | C10: - | D10: - | E10: - | F10: - | G10: - | H10: - | I10: - | J10: - | K10: - | L10: - | M10: - | N10: - | O10: - | P10: - | Q10: - | R10: - | S10: 6213 | T10: 6963 | U10: 6262 | V10: 6489
A11: July | B11: - | C11: - | D11: - | E11: - | F11: - | G11: - | H11: - | I11: - | J11: - | K11: - | L11: - | M11: - | N11: - | O11: - | P11: - | Q11: - | R11: - | S11: 7183 | T11: 10939 | U11: 10727 | V11: 10918
A12: August | B12: - | C12: - | D12: - | E12: - | F12: - | G12: - | H12: - | I12: - | J12: - | K12: - | L12: - | M12: - | N12: - | O12: - | P12: - | Q12: - | R12: - | S12: 16385 | T12: 13708 | U12: 13172 | V12: 13136
A13: September | B13: - | C13: - | D13: - | E13: - | F13: - | G13: - | H13: - | I13: - | J13: - | K13: - | L13: - | M13: - | N13: - | O13: - | P13: - | Q13: - | R13: - | S13: 12456 | T13: 14414 | U13: 13957 | V13: 13355
A14: October | B14: - | C14: - | D14: - | E14: - | F14: - | G14: - | H14: - | I14: - | J14: - | K14: - | L14: - | M14: - | N14: - | O14: - | P14: - | Q14: - | R14: - | S14: 11156 | T14: 11774 | U14: 12952 | V14: 10991
A15: November | B15: - | C15: - | D15: - | E15: - | F15: - | G15: - | H15: - | I15: - | J15: - | K15: - | L15: - | M15: - | N15: - | O15: - | P15: - | Q15: - | R15: 5557 | S15: 9813 | T15: 9574 | U15: 8725 | V15: 10122
A16: December | B16: - | C16: - | D16: - | E16: - | F16: - | G16: - | H16: - | I16: - | J16: - | K16: - | L16: - | M16: - | N16: - | O16: - | P16: - | Q16: - | R16: 1934 | S16: 3616 | T16: 3520 | U16: 3185 | V16: 3727
A17: Total | B17: =SUM(B5:B16) -> 0 | C17: =SUM(C5:C16) -> 0 | D17: 0 | E17: 0 | F17: 0 | G17: 0 | H17: 0 | I17: 0 | J17: 0 | K17: 0 | L17: 0 | M17: 0 | N17: 0 | O17: 0 | P17: 0 | Q17: 0 | R17: =SUM(R5:R16) -> 7491 | S17: 82533 | T17: 98078 | U17: =SUM(U5:U16) -> 90847 | V17: =SUM(V5:V16) -> 92156
A18: Hidden columns B-Q do not contain any data for CY 2004-2019
A19: *The Minnesota Department of Revenue took over Two Harbors Local Lodging Tax administration on October 1, 2020. To see figures prior to this date select Two Harbors under Locally Administered.
A20: ='Lod&Liq'!A71:F71 -> Source: Minnesota Department of Revenue, Tax Research Division, November 2025
A21: end of worksheet
